BIOGUIDE_ID,OFFICE,QUARTER,PROGRAM,CATEGORY,DATE,TRANSCODE,RECORDID,PAYEE,START DATE,END DATE,PURPOSE,AMOUNT,YEAR,RECIP (orig.)
,OFFICE OF THE SPEAKER,2017Q1,GENERAL EXPENDITURES,PERSONNEL COMPENSATION,   ,   ,   ,ALTHOUSE JOSHUA S,1/3/2017,3/31/2017,CONSERVATIVE OUTREACH DIRECTOR,19555.57,2017,ALTHOUSE JOSHUA S
,OFFICE OF THE SPEAKER,2017Q1,GENERAL EXPENDITURES,PERSONNEL COMPENSATION,   ,   ,   ,ANDRES DOUGLAS R,1/3/2017,3/31/2017,PRESS SECRETARY,26888.9,2017,ANDRES DOUGLAS R
,OFFICE OF THE SPEAKER,2017Q1,GENERAL EXPENDITURES,PERSONNEL COMPENSATION,   ,   ,   ,ANDREWS THOMAS S,1/3/2017,3/31/2017,MEMBER SERVICES DIRECTOR,23222.23,2017,ANDREWS THOMAS S
,OFFICE OF THE SPEAKER,2017Q1,GENERAL EXPENDITURES,PERSONNEL COMPENSATION,   ,   ,   ,ANTELL GEOFFREY,1/3/2017,3/31/2017,ASST TO THE SPEAKER FOR POLICY,40333.33,2017,ANTELL GEOFFREY
,OFFICE OF THE SPEAKER,2017Q1,GENERAL EXPENDITURES,PERSONNEL COMPENSATION,   ,   ,   ,BENJAMIN WILLIAM C.,1/3/2017,3/31/2017,SYSTEM ADMINISTRATOR,12955.57,2017,BENJAMIN WILLIAM C.
,OFFICE OF THE SPEAKER,2017Q1,GENERAL EXPENDITURES,PERSONNEL COMPENSATION,   ,   ,   ,BLAKE KRISTENE,1/3/2017,3/31/2017,DIR OF ADMIN OPERATIONS,33000,2017,BLAKE KRISTENE
,OFFICE OF THE SPEAKER,2017Q1,GENERAL EXPENDITURES,PERSONNEL COMPENSATION,   ,   ,   ,BLANKENSHIP APRIL L.,1/3/2017,3/31/2017,FINANCIAL ADMINISTRATOR,5967.13,2017,BLANKENSHIP APRIL L.
,OFFICE OF THE SPEAKER,2017Q1,GENERAL EXPENDITURES,PERSONNEL COMPENSATION,   ,   ,   ,BOLDUC BRIAN J.,1/3/2017,1/6/2017,DIRECTOR OF SPEECHWRITING,1222.22,2017,BOLDUC BRIAN J.
,OFFICE OF THE SPEAKER,2017Q1,GENERAL EXPENDITURES,PERSONNEL COMPENSATION,   ,   ,   ,BUCK BRENDAN K,1/3/2017,2/12/2017,CHIEF ADV ON COMMUNICATIONS,19166.67,2017,BUCK BRENDAN K
,OFFICE OF THE SPEAKER,2017Q1,GENERAL EXPENDITURES,PERSONNEL COMPENSATION,   ,   ,   ,BUCK BRENDAN K,2/13/2017,3/31/2017,COUNSELOR TO THE SPEAKER,23000,2017,BUCK BRENDAN K
,OFFICE OF THE SPEAKER,2017Q1,GENERAL EXPENDITURES,PERSONNEL COMPENSATION,   ,   ,   ,BURKS JONATHAN,1/3/2017,3/31/2017,CHIEF OF STAFF,42166.67,2017,BURKS JONATHAN
,OFFICE OF THE SPEAKER,2017Q1,GENERAL EXPENDITURES,PERSONNEL COMPENSATION,   ,   ,   ,CALLAS GEORGE A,1/3/2017,3/31/2017,CHIEF TAX COUNSEL,41725.7,2017,CALLAS GEORGE A
,OFFICE OF THE SPEAKER,2017Q1,GENERAL EXPENDITURES,PERSONNEL COMPENSATION,   ,   ,   ,CASTINE PETER L,1/3/2017,3/31/2017,STAFF ASSISTANT,9661.1,2017,CASTINE PETER L
,OFFICE OF THE SPEAKER,2017Q1,GENERAL EXPENDITURES,PERSONNEL COMPENSATION,   ,   ,   ,CASTINE PETER L,2/1/2017,2/28/2017,STAFF ASSISTANT (OVERTIME),346.15,2017,CASTINE PETER L
,OFFICE OF THE SPEAKER,2017Q1,GENERAL EXPENDITURES,PERSONNEL COMPENSATION,   ,   ,   ,COYLE SARAH M,1/3/2017,3/31/2017,FLOOR ASSISTANT,12222.23,2017,COYLE SARAH M
,OFFICE OF THE SPEAKER,2017Q1,GENERAL EXPENDITURES,PERSONNEL COMPENSATION,   ,   ,   ,CRAVEN KELLY F.,1/3/2017,1/8/2017,DIRECTOR OF HOUSE OPERATIONS,2875,2017,CRAVEN KELLY F.
,OFFICE OF THE SPEAKER,2017Q1,GENERAL EXPENDITURES,PERSONNEL COMPENSATION,   ,   ,   ,DIXON KELLY A.,1/3/2017,3/31/2017,SHARED EMPLOYEE,24444.43,2017,DIXON KELLY A.
,OFFICE OF THE SPEAKER,2017Q1,GENERAL EXPENDITURES,PERSONNEL COMPENSATION,   ,   ,   ,DOCKERY DERRICK D,1/3/2017,3/31/2017,INTERGOVERNMENTAL OUTREACH DIR,19555.57,2017,DOCKERY DERRICK D
,OFFICE OF THE SPEAKER,2017Q1,GENERAL EXPENDITURES,PERSONNEL COMPENSATION,   ,   ,   ,DRESSLER JEFFREY A,2/13/2017,3/31/2017,ASST TO THE SPEAKER FOR POLICY,14666.67,2017,DRESSLER JEFFREY A
,OFFICE OF THE SPEAKER,2017Q1,GENERAL EXPENDITURES,PERSONNEL COMPENSATION,   ,   ,   ,EASBY-SMITH ANNE S.,1/3/2017,3/31/2017,SPECIAL EVENTS COORDINATOR,23222.23,2017,EASBY-SMITH ANNE S.
,OFFICE OF THE SPEAKER,2017Q1,GENERAL EXPENDITURES,PERSONNEL COMPENSATION,   ,   ,   ,EDWARDS SPENCER M,1/3/2017,3/31/2017,DEPUTY PRESS SECRETARY,17111.1,2017,EDWARDS SPENCER M
,OFFICE OF THE SPEAKER,2017Q1,GENERAL EXPENDITURES,PERSONNEL COMPENSATION,   ,   ,   ,EICHHORN JARED D.,1/3/2017,3/31/2017,CLOAKROOM DIRECTOR,24444.43,2017,EICHHORN JARED D.
,OFFICE OF THE SPEAKER,2017Q1,GENERAL EXPENDITURES,PERSONNEL COMPENSATION,   ,   ,   ,EPLEY MARK D,1/3/2017,3/31/2017,GENERAL COUNSEL/OVERSIGHT,42166.67,2017,EPLEY MARK D
,OFFICE OF THE SPEAKER,2017Q1,GENERAL EXPENDITURES,PERSONNEL COMPENSATION,   ,   ,   ,FOLTZ DEVON N,1/3/2017,3/31/2017,COUNSEL FOR FLOOR OPERATIONS,34222.23,2017,FOLTZ DEVON N
,OFFICE OF THE SPEAKER,2017Q1,GENERAL EXPENDITURES,PERSONNEL COMPENSATION,   ,   ,   ,GEFFERT REBEKAH L,1/3/2017,3/31/2017,STAFF ASSISTANT,9777.77,2017,GEFFERT REBEKAH L
,OFFICE OF THE SPEAKER,2017Q1,GENERAL EXPENDITURES,PERSONNEL COMPENSATION,   ,   ,   ,GEFFERT REBEKAH L,2/1/2017,2/28/2017,STAFF ASSISTANT (OVERTIME),100.96,2017,GEFFERT REBEKAH L
,OFFICE OF THE SPEAKER,2017Q1,GENERAL EXPENDITURES,PERSONNEL COMPENSATION,   ,   ,   ,GILLESPIE JAMES M,1/3/2017,3/31/2017,CLERICAL TECHNICAN,11000,2017,GILLESPIE JAMES M
,OFFICE OF THE SPEAKER,2017Q1,GENERAL EXPENDITURES,PERSONNEL COMPENSATION,   ,   ,   ,GILLESPIE JAMES M,1/1/2017,2/28/2017,CLERICAL TECHNICAN (OVERTIME),64.9,2017,GILLESPIE JAMES M
,OFFICE OF THE SPEAKER,2017Q1,GENERAL EXPENDITURES,PERSONNEL COMPENSATION,   ,   ,   ,GOLDOUST CARAH S,1/3/2017,3/31/2017,SPECIAL EVENTS COORDINATOR,9777.77,2017,GOLDOUST CARAH S
,OFFICE OF THE SPEAKER,2017Q1,GENERAL EXPENDITURES,PERSONNEL COMPENSATION,   ,   ,   ,GOLDOUST CARAH S,2/1/2017,2/28/2017,SPECIAL EVENTS COORDINATOR (OVERTIME),822.11,2017,GOLDOUST CARAH S
,OFFICE OF THE SPEAKER,2017Q1,GENERAL EXPENDITURES,PERSONNEL COMPENSATION,   ,   ,   ,HALPERN HUGH N.,1/3/2017,3/31/2017,FLOOR DIRECTOR - STATUTORY,42166.67,2017,HALPERN HUGH N.
,OFFICE OF THE SPEAKER,2017Q1,GENERAL EXPENDITURES,PERSONNEL COMPENSATION,   ,   ,   ,HEMINGWAY JENNIFER A,1/23/2017,3/31/2017,DIRECTOR OF HOUSE OPERATIONS,32583.33,2017,HEMINGWAY JENNIFER A
,OFFICE OF THE SPEAKER,2017Q1,GENERAL EXPENDITURES,PERSONNEL COMPENSATION,   ,   ,   ,HERRLE CYNTHIA A.,1/3/2017,3/31/2017,ASST TO THE SPEAKER FOR POLICY,41066.67,2017,HERRLE CYNTHIA A.
,OFFICE OF THE SPEAKER,2017Q1,GENERAL EXPENDITURES,PERSONNEL COMPENSATION,   ,   ,   ,HIGGINS CASEY,1/3/2017,3/31/2017,ASSIST TO SPEAKER FOR POLICY,38723.67,2017,HIGGINS CASEY
,OFFICE OF THE SPEAKER,2017Q1,GENERAL EXPENDITURES,PERSONNEL COMPENSATION,   ,   ,   ,HOFFMANN MATTHEW,1/3/2017,3/31/2017,ASSIST TO SPEAKER FOR POLICY,38723.67,2017,HOFFMANN MATTHEW
,OFFICE OF THE SPEAKER,2017Q1,GENERAL EXPENDITURES,PERSONNEL COMPENSATION,   ,   ,   ,HUSTON JOHNATHON B,1/3/2017,3/31/2017,SHARED EMPLOYEE,11000,2017,HUSTON JOHNATHON B
,OFFICE OF THE SPEAKER,2017Q1,GENERAL EXPENDITURES,PERSONNEL COMPENSATION,   ,   ,   ,JORDON BENJAMIN D,1/3/2017,3/31/2017,STAFF ASSISTANT,9777.77,2017,JORDON BENJAMIN D
,OFFICE OF THE SPEAKER,2017Q1,GENERAL EXPENDITURES,PERSONNEL COMPENSATION,   ,   ,   ,JORDON BENJAMIN D,2/1/2017,2/28/2017,STAFF ASSISTANT (OVERTIME),346.15,2017,JORDON BENJAMIN D
,OFFICE OF THE SPEAKER,2017Q1,GENERAL EXPENDITURES,PERSONNEL COMPENSATION,   ,   ,   ,KISH DANIEL V,1/3/2017,3/3/2017,ASSIST TO SPEAKER FOR POLICY,28466.67,2017,KISH DANIEL V
,OFFICE OF THE SPEAKER,2017Q1,GENERAL EXPENDITURES,PERSONNEL COMPENSATION,   ,   ,   ,KISH DANIEL V,3/1/2017,3/3/2017,ASSIST TO SPEAKER FOR POLICY (OTHER COMPENSATION),4666.67,2017,KISH DANIEL V
,OFFICE OF THE SPEAKER,2017Q1,GENERAL EXPENDITURES,PERSONNEL COMPENSATION,   ,   ,   ,KISH DANIEL V,3/1/2017,3/3/2017,ASSIST TO SPEAKER FOR POLICY (OTHER COMPENSATION),7933.33,2017,KISH DANIEL V
,OFFICE OF THE SPEAKER,2017Q1,GENERAL EXPENDITURES,PERSONNEL COMPENSATION,   ,   ,   ,LARSON SALLY R,1/3/2017,3/31/2017,SHARED EMPLOYEE,24444.44,2017,LARSON SALLY R
,OFFICE OF THE SPEAKER,2017Q1,GENERAL EXPENDITURES,PERSONNEL COMPENSATION,   ,   ,   ,MATTHEWS TITUS V,1/3/2017,1/19/2017,STAFF ASSISTANT,1818.06,2017,MATTHEWS TITUS V
,OFFICE OF THE SPEAKER,2017Q1,GENERAL EXPENDITURES,PERSONNEL COMPENSATION,   ,   ,   ,MCCALLIE CARLY L,1/3/2017,3/31/2017,ASSOCIATE COUNSEL,14666.67,2017,MCCALLIE CARLY L
,OFFICE OF THE SPEAKER,2017Q1,GENERAL EXPENDITURES,PERSONNEL COMPENSATION,   ,   ,   ,MCCANN EDWARD D.,1/3/2017,3/31/2017,ASSIST TO SPEAKER FOR POLICY,39111.1,2017,MCCANN EDWARD D.
,OFFICE OF THE SPEAKER,2017Q1,GENERAL EXPENDITURES,PERSONNEL COMPENSATION,   ,   ,   ,MEYER JOYCE Y.,1/3/2017,2/12/2017,DEPUTY CHIEF OF STAFF,19166.67,2017,MEYER JOYCE Y.
,OFFICE OF THE SPEAKER,2017Q1,GENERAL EXPENDITURES,PERSONNEL COMPENSATION,   ,   ,   ,MEYER JOYCE Y.,2/1/2017,2/12/2017,DEPUTY CHIEF OF STAFF (OTHER COMPENSATION),7187.5,2017,MEYER JOYCE Y.
,OFFICE OF THE SPEAKER,2017Q1,GENERAL EXPENDITURES,PERSONNEL COMPENSATION,   ,   ,   ,MILLER WILLIAM,1/3/2017,3/31/2017,SPECIAL ASSISTANT TO THE SPEAK,17111.1,2017,MILLER WILLIAM
,OFFICE OF THE SPEAKER,2017Q1,GENERAL EXPENDITURES,PERSONNEL COMPENSATION,   ,   ,   ,MITCHELL MAUREEN E,1/3/2017,3/31/2017,DIRECTOR OF SCHEDULING,33000,2017,MITCHELL MAUREEN E
,OFFICE OF THE SPEAKER,2017Q1,GENERAL EXPENDITURES,PERSONNEL COMPENSATION,   ,   ,   ,MUNDAY J M.,1/3/2017,3/31/2017,DIRECTOR OF INFORMATION TECHNO,31777.77,2017,MUNDAY J M.
,OFFICE OF THE SPEAKER,2017Q1,GENERAL EXPENDITURES,PERSONNEL COMPENSATION,   ,   ,   ,O'TOOLE RYAN T,1/3/2017,3/31/2017,FLOOR ASSISTANT,12041.67,2017,O'TOOLE RYAN T
,OFFICE OF THE SPEAKER,2017Q1,GENERAL EXPENDITURES,PERSONNEL COMPENSATION,   ,   ,   ,POINTER KATHERINE C,1/3/2017,3/31/2017,SENIOR STAFF ASSISTANT,13444.43,2017,POINTER KATHERINE C
,OFFICE OF THE SPEAKER,2017Q1,GENERAL EXPENDITURES,PERSONNEL COMPENSATION,   ,   ,   ,POINTER KATHERINE C,2/1/2017,2/28/2017,SENIOR STAFF ASSISTANT (OVERTIME),634.61,2017,POINTER KATHERINE C
,OFFICE OF THE SPEAKER,2017Q1,GENERAL EXPENDITURES,PERSONNEL COMPENSATION,   ,   ,   ,RICCI MICHAEL,1/3/2017,3/31/2017,DIRECTOR OF COMMUNICATIONS,41066.67,2017,RICCI MICHAEL
,OFFICE OF THE SPEAKER,2017Q1,GENERAL EXPENDITURES,PERSONNEL COMPENSATION,   ,   ,   ,ROMAN MARK J.,1/3/2017,3/31/2017,SHARED EMPLOYEE,24444.44,2017,ROMAN MARK J.
,OFFICE OF THE SPEAKER,2017Q1,GENERAL EXPENDITURES,PERSONNEL COMPENSATION,   ,   ,   ,SHAPIRO MICHAEL I.,1/3/2017,3/31/2017,COMMUNICATIONS ADVISOR,19555.57,2017,SHAPIRO MICHAEL I.
,OFFICE OF THE SPEAKER,2017Q1,GENERAL EXPENDITURES,PERSONNEL COMPENSATION,   ,   ,   ,SLINGSBY JULIA K.,1/3/2017,3/31/2017,DEPUTY COMMUNICATIONS DIRECTOR,25666.67,2017,SLINGSBY JULIA K.
,OFFICE OF THE SPEAKER,2017Q1,GENERAL EXPENDITURES,PERSONNEL COMPENSATION,   ,   ,   ,SMITH CALEB J,1/3/2017,3/31/2017,DIGITAL COMMUNICATIONS DIRECTO,31777.77,2017,SMITH CALEB J
,OFFICE OF THE SPEAKER,2017Q1,GENERAL EXPENDITURES,PERSONNEL COMPENSATION,   ,   ,   ,SMYTHE AUGUSTINE,1/3/2017,3/31/2017,POLICY DIRECTOR,42166.67,2017,SMYTHE AUGUSTINE
,OFFICE OF THE SPEAKER,2017Q1,GENERAL EXPENDITURES,PERSONNEL COMPENSATION,   ,   ,   ,SPETH ANDREW D.,1/3/2017,2/12/2017,SENIOR ADVISOR,9583.33,2017,SPETH ANDREW D.
,OFFICE OF THE SPEAKER,2017Q1,GENERAL EXPENDITURES,PERSONNEL COMPENSATION,   ,   ,   ,SPETH ANDREW D.,2/13/2017,3/31/2017,DEPUTY CHIEF OF STAFF,14312.5,2017,SPETH ANDREW D.
,OFFICE OF THE SPEAKER,2017Q1,GENERAL EXPENDITURES,PERSONNEL COMPENSATION,   ,   ,   ,STRONG ASHLEE A,1/3/2017,3/31/2017,PRESS SECRETARY,37888.9,2017,STRONG ASHLEE A
,OFFICE OF THE SPEAKER,2017Q1,GENERAL EXPENDITURES,PERSONNEL COMPENSATION,   ,   ,   ,STRUNK LYDIA,1/3/2017,3/31/2017,DEPUTY FLOOR DIRECTOR,30555.57,2017,STRUNK LYDIA
,OFFICE OF THE SPEAKER,2017Q1,GENERAL EXPENDITURES,PERSONNEL COMPENSATION,   ,   ,   ,SWINEHART SARAH V,1/3/2017,3/31/2017,DIRECTOR OF MEDIA AFFAIRS,26888.9,2017,SWINEHART SARAH V
,OFFICE OF THE SPEAKER,2017Q1,GENERAL EXPENDITURES,PERSONNEL COMPENSATION,   ,   ,   ,VANDEHEY VANESSA P,2/21/2017,3/31/2017,STAFF ASSISTANT,3888.89,2017,VANDEHEY VANESSA P
,OFFICE OF THE SPEAKER,2017Q1,GENERAL EXPENDITURES,PERSONNEL COMPENSATION,   ,   ,   ,VREEBURG JACOBUS A,1/3/2017,3/31/2017,SHARED EMPLOYEE,19555.57,2017,VREEBURG JACOBUS A
,OFFICE OF THE SPEAKER,2017Q1,GENERAL EXPENDITURES,PERSONNEL COMPENSATION,   ,   ,   ,WALTZ PAIGE M,2/17/2017,3/31/2017,DIGITAL MEDIA COORDINATOR,6355.55,2017,WALTZ PAIGE M
,OFFICE OF THE SPEAKER,2017Q1,GENERAL EXPENDITURES,PERSONNEL COMPENSATION,   ,   ,   ,WHETSTONE COURTNEY D,1/3/2017,3/31/2017,SHARED EMPLOYEE,24444.44,2017,WHETSTONE COURTNEY D
,OFFICE OF THE SPEAKER,2017Q1,GENERAL EXPENDITURES,PERSONNEL COMPENSATION,   ,   ,   ,WICKISER VICTORIA H,1/3/2017,3/31/2017,DEPUTY DIRECTOR OF SCHEDULING,19555.57,2017,WICKISER VICTORIA H
,OFFICE OF THE SPEAKER,2017Q1,GENERAL EXPENDITURES,PERSONNEL COMPENSATION,   ,   ,   ,ZULKOSKY ERIC T,1/3/2017,3/31/2017,SHARED EMPLOYEE,24444.43,2017,ZULKOSKY ERIC T
,r,2017Q1,GENERAL EXPENDITURES,TRAVEL,2/7/2017,AP,E0485179,ALTHOUSE JOSHUA,1/4/2017,1/26/2017,TAXI/PARKING/TOLLS,53.09,2017,ALTHOUSE JOSHUA
,OFFICE OF THE SPEAKER,2017Q1,GENERAL EXPENDITURES,TRAVEL,2/27/2017,AP,E0490926,SMYTHE AUGUSTINE,2/17/2017,2/17/2017,TAXI/PARKING/TOLLS,33.38,2017,SMYTHE AUGUSTINE
,OFFICE OF THE SPEAKER,2017Q1,GENERAL EXPENDITURES,TRAVEL,3/2/2017,AP,E0492104,BURKS JONATHAN,2/23/2017,2/23/2017,TAXI/PARKING/TOLLS,29.06,2017,BURKS JONATHAN
,OFFICE OF THE SPEAKER,2017Q1,GENERAL EXPENDITURES,TRAVEL,3/6/2017,AP,E0492553,ALTHOUSE JOSHUA,2/1/2017,2/15/2017,TAXI/PARKING/TOLLS,65.33,2017,ALTHOUSE JOSHUA
,OFFICE OF THE SPEAKER,2017Q1,GENERAL EXPENDITURES,TRAVEL,3/15/2017,AP,E0495661,SMYTHE AUGUSTINE,3/3/2017,3/3/2017,TAXI/PARKING/TOLLS,20,2017,SMYTHE AUGUSTINE
,OFFICE OF THE SPEAKER,2017Q1,GENERAL EXPENDITURES,TRAVEL,3/15/2017,AP,E0495668,SMITH CALEB,2/21/2017,2/23/2017,COMMERCIAL TRANSPORTATION,798.1,2017,SMITH CALEB
,OFFICE OF THE SPEAKER,2017Q1,GENERAL EXPENDITURES,TRAVEL,3/15/2017,AP,E0495668,SMITH CALEB,2/21/2017,2/23/2017,LODGING,273.7,2017,SMITH CALEB
,OFFICE OF THE SPEAKER,2017Q1,GENERAL EXPENDITURES,TRAVEL,3/15/2017,AP,E0495668,SMITH CALEB,2/21/2017,2/23/2017,MEALS,100.74,2017,SMITH CALEB
,OFFICE OF THE SPEAKER,2017Q1,GENERAL EXPENDITURES,TRAVEL,3/15/2017,AP,E0495668,SMITH CALEB,2/21/2017,2/23/2017,TAXI/PARKING/TOLLS,37.49,2017,SMITH CALEB
,OFFICE OF THE SPEAKER,2017Q1,GENERAL EXPENDITURES,RENT  COMMUNICATION  UTILITIES,3/20/2017,AP,912151,FEDEX,1/13/2017,1/13/2017,POSTAGE / COURIER / BOX RENTAL,5.07,2017,FEDEX
,OFFICE OF THE SPEAKER,2017Q1,GENERAL EXPENDITURES,RENT  COMMUNICATION  UTILITIES,3/21/2017,AP,912200,CITI PCARD-DESIGN CUISINE,1/29/2017,2/28/2017,EQUIP RENTAL (EFF 1/3/03),711.56,2017,CITI PCARD-DESIGN CUISINE
,OFFICE OF THE SPEAKER,2017Q1,GENERAL EXPENDITURES,PRINTING AND REPRODUCTION,1/27/2017,GL,PIX0065253, ,1/1/2017,1/31/2017,PHOTOGRAPHIC (TRANSFER),531.5,2017, 
,OFFICE OF THE SPEAKER,2017Q1,GENERAL EXPENDITURES,PRINTING AND REPRODUCTION,2/23/2017,GL,PIX0066009, ,2/1/2017,2/28/2017,PHOTOGRAPHIC (TRANSFER),46.2,2017, 
,OFFICE OF THE SPEAKER,2017Q1,GENERAL EXPENDITURES,PRINTING AND REPRODUCTION,3/28/2017,GL,PIX0066926, ,3/1/2017,3/31/2017,PHOTOGRAPHIC (TRANSFER),716,2017, 
,OFFICE OF THE SPEAKER,2017Q1,GENERAL EXPENDITURES,SUPPLIES AND MATERIALS,1/9/2017,AP,E0476005,HAGUE QUALITY WATER OF MD INC,1/3/2017,12/31/2017,WATER,3780,2017,HAGUE QUALITY WATER OF MD INC
,OFFICE OF THE SPEAKER,2017Q1,GENERAL EXPENDITURES,SUPPLIES AND MATERIALS,1/13/2017,AP,E0478293,FIRST CHOICE COFFEE SERVICES,1/6/2017,1/6/2017,FOOD & BEVERAGE,47.85,2017,FIRST CHOICE COFFEE SERVICES
,OFFICE OF THE SPEAKER,2017Q1,GENERAL EXPENDITURES,SUPPLIES AND MATERIALS,1/13/2017,AP,E0478294,FIRST CHOICE COFFEE SERVICES,1/6/2017,1/6/2017,FOOD & BEVERAGE,342.57,2017,FIRST CHOICE COFFEE SERVICES
,OFFICE OF THE SPEAKER,2017Q1,GENERAL EXPENDITURES,SUPPLIES AND MATERIALS,1/13/2017,AP,E0478295,FIRST CHOICE COFFEE SERVICES,1/6/2017,1/6/2017,FOOD & BEVERAGE,20,2017,FIRST CHOICE COFFEE SERVICES
,OFFICE OF THE SPEAKER,2017Q1,GENERAL EXPENDITURES,SUPPLIES AND MATERIALS,1/26/2017,AP,E0480373,FIRST CHOICE COFFEE SERVICES,1/13/2017,1/13/2017,FOOD & BEVERAGE,1150.28,2017,FIRST CHOICE COFFEE SERVICES
,OFFICE OF THE SPEAKER,2017Q1,GENERAL EXPENDITURES,SUPPLIES AND MATERIALS,1/27/2017,AP,E0480724,COCA-COLA BOTTLING COMPANY CONSOLIDATED,1/13/2017,1/13/2017,FOOD & BEVERAGE,281.75,2017,COCA-COLA BOTTLING COMPANY CONSOLIDATED
,OFFICE OF THE SPEAKER,2017Q1,GENERAL EXPENDITURES,SUPPLIES AND MATERIALS,2/17/2017,AP,904174,CITI PCARD-BUCA DI BEPPO,1/3/2017,1/28/2017,FOOD & BEVERAGE,1776.77,2017,CITI PCARD-BUCA DI BEPPO
,OFFICE OF THE SPEAKER,2017Q1,GENERAL EXPENDITURES,SUPPLIES AND MATERIALS,2/17/2017,AP,904174,CITI PCARD-CAPITOL HOST,1/3/2017,1/28/2017,FOOD & BEVERAGE,105,2017,CITI PCARD-CAPITOL HOST
,OFFICE OF THE SPEAKER,2017Q1,GENERAL EXPENDITURES,SUPPLIES AND MATERIALS,2/17/2017,AP,904174,CITI PCARD-CHICK-FIL-A,1/3/2017,1/28/2017,FOOD & BEVERAGE,1443.5,2017,CITI PCARD-CHICK-FIL-A
,OFFICE OF THE SPEAKER,2017Q1,GENERAL EXPENDITURES,SUPPLIES AND MATERIALS,2/17/2017,AP,904174,CITI PCARD-CORNER BAKERY,1/3/2017,1/28/2017,FOOD & BEVERAGE,1741.7,2017,CITI PCARD-CORNER BAKERY
,OFFICE OF THE SPEAKER,2017Q1,GENERAL EXPENDITURES,SUPPLIES AND MATERIALS,2/17/2017,AP,904174,CITI PCARD-CREAMERY DD,1/3/2017,1/28/2017,FOOD & BEVERAGE,34.5,2017,CITI PCARD-CREAMERY DD
,OFFICE OF THE SPEAKER,2017Q1,GENERAL EXPENDITURES,SUPPLIES AND MATERIALS,2/17/2017,AP,904174,CITI PCARD-DT,1/3/2017,1/28/2017,FOOD & BEVERAGE,555.66,2017,CITI PCARD-DT
,OFFICE OF THE SPEAKER,2017Q1,GENERAL EXPENDITURES,SUPPLIES AND MATERIALS,2/17/2017,AP,904174,CITI PCARD-HARRISTEETER,1/3/2017,1/28/2017,FOOD & BEVERAGE,169.71,2017,CITI PCARD-HARRISTEETER
,OFFICE OF THE SPEAKER,2017Q1,GENERAL EXPENDITURES,SUPPLIES AND MATERIALS,2/17/2017,AP,904174,CITI PCARD-MEDIUM RARE BARRACKS,1/3/2017,1/28/2017,FOOD & BEVERAGE,132.48,2017,CITI PCARD-MEDIUM RARE BARRACKS
,OFFICE OF THE SPEAKER,2017Q1,GENERAL EXPENDITURES,SUPPLIES AND MATERIALS,2/17/2017,AP,904174,CITI PCARD-PRET A MANGER,1/3/2017,1/28/2017,FOOD & BEVERAGE,76.64,2017,CITI PCARD-PRET A MANGER
,OFFICE OF THE SPEAKER,2017Q1,GENERAL EXPENDITURES,SUPPLIES AND MATERIALS,2/17/2017,AP,904174,CITI PCARD-TAYLOR GOURMET,1/3/2017,1/28/2017,FOOD & BEVERAGE,682.23,2017,CITI PCARD-TAYLOR GOURMET
,OFFICE OF THE SPEAKER,2017Q1,GENERAL EXPENDITURES,SUPPLIES AND MATERIALS,2/28/2017,AP,E0490942,VREEBURG JACOBUS A.,2/16/2017,2/16/2017,FOOD & BEVERAGE,194.94,2017,VREEBURG JACOBUS A.
,OFFICE OF THE SPEAKER,2017Q1,GENERAL EXPENDITURES,SUPPLIES AND MATERIALS,3/4/2017,AP,E0491777,POLITICO LLC,2/23/2017,2/22/2019,PUBLICATIONS/REFERENCE MAT'L,11500,2019,POLITICO LLC
,OFFICE OF THE SPEAKER,2017Q1,GENERAL EXPENDITURES,SUPPLIES AND MATERIALS,3/21/2017,AP,912200,CITI PCARD-BUCA DI BEPPO,1/29/2017,2/28/2017,FOOD & BEVERAGE,364.65,2017,CITI PCARD-BUCA DI BEPPO
,OFFICE OF THE SPEAKER,2017Q1,GENERAL EXPENDITURES,SUPPLIES AND MATERIALS,3/21/2017,AP,912200,CITI PCARD-CAFE RIO FALLS CHURCH,1/29/2017,2/28/2017,FOOD & BEVERAGE,302.17,2017,CITI PCARD-CAFE RIO FALLS CHURCH
,OFFICE OF THE SPEAKER,2017Q1,GENERAL EXPENDITURES,SUPPLIES AND MATERIALS,3/21/2017,AP,912200,CITI PCARD-CORNER BAKERY,1/29/2017,2/28/2017,FOOD & BEVERAGE,1032.5,2017,CITI PCARD-CORNER BAKERY
,OFFICE OF THE SPEAKER,2017Q1,GENERAL EXPENDITURES,SUPPLIES AND MATERIALS,3/21/2017,AP,912200,CITI PCARD-CORNER BAKERY CAFE,1/29/2017,2/28/2017,FOOD & BEVERAGE,93.37,2017,CITI PCARD-CORNER BAKERY CAFE
,OFFICE OF THE SPEAKER,2017Q1,GENERAL EXPENDITURES,SUPPLIES AND MATERIALS,3/21/2017,AP,912200,CITI PCARD-FAMOUS DAVE'S,1/29/2017,2/28/2017,FOOD & BEVERAGE,543.56,2017,CITI PCARD-FAMOUS DAVE'S
,OFFICE OF THE SPEAKER,2017Q1,GENERAL EXPENDITURES,SUPPLIES AND MATERIALS,3/21/2017,AP,912200,CITI PCARD-FTP FINANCIAL TIMES,1/29/2017,2/28/2017,PUBLICATIONS/REFERENCE MAT'L,335.4,2017,CITI PCARD-FTP FINANCIAL TIMES
,OFFICE OF THE SPEAKER,2017Q1,GENERAL EXPENDITURES,SUPPLIES AND MATERIALS,3/21/2017,AP,912200,CITI PCARD-HARRIS TEETER,1/29/2017,2/28/2017,FOOD & BEVERAGE,20.66,2017,CITI PCARD-HARRIS TEETER
,OFFICE OF THE SPEAKER,2017Q1,GENERAL EXPENDITURES,SUPPLIES AND MATERIALS,3/21/2017,AP,912200,CITI PCARD-SQ  SQ  BULLFROG BAGEL,1/29/2017,2/28/2017,FOOD & BEVERAGE,135,2017,CITI PCARD-SQ  SQ  BULLFROG BAGEL
,OFFICE OF THE SPEAKER,2017Q1,GENERAL EXPENDITURES,SUPPLIES AND MATERIALS,3/21/2017,AP,912200,CITI PCARD-WHOLEFOODS.COM,1/29/2017,2/28/2017,FOOD & BEVERAGE,775.88,2017,CITI PCARD-WHOLEFOODS.COM
,OFFICE OF THE SPEAKER,2017Q1,GENERAL EXPENDITURES,SUPPLIES AND MATERIALS,3/28/2017,AP,E0499777,DESIGN CUISINE,2/28/2017,2/28/2017,FOOD & BEVERAGE,3720,2017,DESIGN CUISINE
,OFFICE OF THE SPEAKER,2017Q1,GENERAL EXPENDITURES,SUPPLIES AND MATERIALS,3/30/2017,AP,E0501241,DESIGN CUISINE,1/3/2017,1/3/2017,FOOD & BEVERAGE,7460.41,2017,DESIGN CUISINE
,OFFICE OF THE SPEAKER,2017Q1,GENERAL EXPENDITURES,PERSONNEL COMPENSATION,   ,   ,   ,ALTHOUSE JOSHUA S,1/1/2017,1/2/2017,CONSERVATIVE OUTREACH DIRECTOR,444.44,2017,ALTHOUSE JOSHUA S
,OFFICE OF THE SPEAKER,2017Q1,GENERAL EXPENDITURES,PERSONNEL COMPENSATION,   ,   ,   ,ANDRES DOUGLAS R,1/1/2017,1/2/2017,PRESS SECRETARY,611.11,2017,ANDRES DOUGLAS R
,OFFICE OF THE SPEAKER,2017Q1,GENERAL EXPENDITURES,PERSONNEL COMPENSATION,   ,   ,   ,ANDREWS THOMAS S,1/1/2017,1/2/2017,MEMBER SERVICES DIRECTOR,527.78,2017,ANDREWS THOMAS S
,OFFICE OF THE SPEAKER,2017Q1,GENERAL EXPENDITURES,PERSONNEL COMPENSATION,   ,   ,   ,ANDREWS THOMAS S,1/1/2017,1/2/2017,MEMBER SERVICES DIRECTOR (OTHER COMPENSATION),750,2017,ANDREWS THOMAS S
,OFFICE OF THE SPEAKER,2017Q1,GENERAL EXPENDITURES,PERSONNEL COMPENSATION,   ,   ,   ,ANTELL GEOFFREY,1/1/2017,1/2/2017,ASST TO THE SPEAKER FOR POLICY,916.67,2017,ANTELL GEOFFREY
,OFFICE OF THE SPEAKER,2017Q1,GENERAL EXPENDITURES,PERSONNEL COMPENSATION,   ,   ,   ,BENJAMIN WILLIAM C.,1/1/2017,1/2/2017,SYSTEM ADMINISTRATOR,294.44,2017,BENJAMIN WILLIAM C.
,OFFICE OF THE SPEAKER,2017Q1,GENERAL EXPENDITURES,PERSONNEL COMPENSATION,   ,   ,   ,BLAKE KRISTENE,1/1/2017,1/2/2017,DIR OF ADMIN OPERATIONS,750,2017,BLAKE KRISTENE
,OFFICE OF THE SPEAKER,2017Q1,GENERAL EXPENDITURES,PERSONNEL COMPENSATION,   ,   ,   ,BLANKENSHIP APRIL L.,1/1/2017,1/2/2017,FINANCIAL ADMINISTRATOR,133.33,2017,BLANKENSHIP APRIL L.
,OFFICE OF THE SPEAKER,2017Q1,GENERAL EXPENDITURES,PERSONNEL COMPENSATION,   ,   ,   ,BOLDUC BRIAN J.,1/1/2017,1/2/2017,DIRECTOR OF SPEECHWRITING,611.11,2017,BOLDUC BRIAN J.
,OFFICE OF THE SPEAKER,2017Q1,GENERAL EXPENDITURES,PERSONNEL COMPENSATION,   ,   ,   ,BOLDUC BRIAN J.,1/1/2017,1/2/2017,DIRECTOR OF SPEECHWRITING (OTHER COMPENSATION),4583.33,2017,BOLDUC BRIAN J.
,OFFICE OF THE SPEAKER,2017Q1,GENERAL EXPENDITURES,PERSONNEL COMPENSATION,   ,   ,   ,BUCK BRENDAN K,1/1/2017,1/2/2017,CHIEF ADV ON COMMUNICATIONS,958.33,2017,BUCK BRENDAN K
,OFFICE OF THE SPEAKER,2017Q1,GENERAL EXPENDITURES,PERSONNEL COMPENSATION,   ,   ,   ,BURKS JONATHAN,1/1/2017,1/2/2017,ASST TO SPEAKER FOR POLICY,729.53,2017,BURKS JONATHAN
,OFFICE OF THE SPEAKER,2017Q1,GENERAL EXPENDITURES,PERSONNEL COMPENSATION,   ,   ,   ,CALLAS GEORGE A,1/1/2017,1/2/2017,CHIEF TAX COUNSEL,948.31,2017,CALLAS GEORGE A
,OFFICE OF THE SPEAKER,2017Q1,GENERAL EXPENDITURES,PERSONNEL COMPENSATION,   ,   ,   ,CASTINE PETER L,1/1/2017,1/2/2017,STAFF ASSISTANT,213.89,2017,CASTINE PETER L
,OFFICE OF THE SPEAKER,2017Q1,GENERAL EXPENDITURES,PERSONNEL COMPENSATION,   ,   ,   ,CASTINE PETER L,12/1/2016,12/31/2016,STAFF ASSISTANT (OVERTIME),138.82,2016,CASTINE PETER L
,OFFICE OF THE SPEAKER,2017Q1,GENERAL EXPENDITURES,PERSONNEL COMPENSATION,   ,   ,   ,COYLE SARAH M,1/1/2017,1/2/2017,FLOOR ASSISTANT,277.78,2017,COYLE SARAH M
,OFFICE OF THE SPEAKER,2017Q1,GENERAL EXPENDITURES,PERSONNEL COMPENSATION,   ,   ,   ,CRAVEN KELLY F.,1/1/2017,1/2/2017,DIRECTOR OF HOUSE OPERATIONS,958.33,2017,CRAVEN KELLY F.
,OFFICE OF THE SPEAKER,2017Q1,GENERAL EXPENDITURES,PERSONNEL COMPENSATION,   ,   ,   ,CRAVEN KELLY F.,1/1/2017,1/2/2017,DIRECTOR OF HOUSE OPERATIONS (OTHER COMPENSATION),7187.5,2017,CRAVEN KELLY F.
,OFFICE OF THE SPEAKER,2017Q1,GENERAL EXPENDITURES,PERSONNEL COMPENSATION,   ,   ,   ,DAY VANESSA M,1/1/2017,1/2/2017,SENIOR COMMUNICATIONS ADVISOR (OTHER COMPENSATION),4375,2017,DAY VANESSA M
,OFFICE OF THE SPEAKER,2017Q1,GENERAL EXPENDITURES,PERSONNEL COMPENSATION,   ,   ,   ,DAY VANESSA M,1/1/2017,1/2/2017,SENIOR COMMUNICATIONS ADVISOR (OTHER COMPENSATION),-4375,2017,DAY VANESSA M
,OFFICE OF THE SPEAKER,2017Q1,GENERAL EXPENDITURES,PERSONNEL COMPENSATION,   ,   ,   ,DAY VANESSA M,1/1/2017,1/2/2017,SENIOR COMMUNICATIONS ADVISOR (OTHER COMPENSATION),4375,2017,DAY VANESSA M
,OFFICE OF THE SPEAKER,2017Q1,GENERAL EXPENDITURES,PERSONNEL COMPENSATION,   ,   ,   ,DIXON KELLY A.,1/1/2017,1/2/2017,SHARED EMPLOYEE,555.56,2017,DIXON KELLY A.
,OFFICE OF THE SPEAKER,2017Q1,GENERAL EXPENDITURES,PERSONNEL COMPENSATION,   ,   ,   ,DOCKERY DERRICK D,1/1/2017,1/2/2017,INTERGOVERNMENTAL OUTREACH DIR,444.44,2017,DOCKERY DERRICK D
,OFFICE OF THE SPEAKER,2017Q1,GENERAL EXPENDITURES,PERSONNEL COMPENSATION,   ,   ,   ,EASBY-SMITH ANNE S.,1/1/2017,1/2/2017,SPECIAL EVENTS COORDINATOR,527.78,2017,EASBY-SMITH ANNE S.
,OFFICE OF THE SPEAKER,2017Q1,GENERAL EXPENDITURES,PERSONNEL COMPENSATION,   ,   ,   ,EASBY-SMITH ANNE S.,1/1/2017,1/2/2017,SPECIAL EVENTS COORDINATOR (OTHER COMPENSATION),750,2017,EASBY-SMITH ANNE S.
,OFFICE OF THE SPEAKER,2017Q1,GENERAL EXPENDITURES,PERSONNEL COMPENSATION,   ,   ,   ,EDWARDS SPENCER M,1/1/2017,1/2/2017,DEPUTY PRESS SECRETARY,388.89,2017,EDWARDS SPENCER M
,OFFICE OF THE SPEAKER,2017Q1,GENERAL EXPENDITURES,PERSONNEL COMPENSATION,   ,   ,   ,EICHHORN JARED D.,1/1/2017,1/2/2017,CLOAKROOM DIRECTOR,555.56,2017,EICHHORN JARED D.
,OFFICE OF THE SPEAKER,2017Q1,GENERAL EXPENDITURES,PERSONNEL COMPENSATION,   ,   ,   ,EICHHORN JARED D.,1/1/2017,1/2/2017,CLOAKROOM DIRECTOR (OTHER COMPENSATION),750,2017,EICHHORN JARED D.
,OFFICE OF THE SPEAKER,2017Q1,GENERAL EXPENDITURES,PERSONNEL COMPENSATION,   ,   ,   ,EPLEY MARK D,1/1/2017,1/2/2017,GENERAL COUNSEL/OVERSIGHT,958.33,2017,EPLEY MARK D
,OFFICE OF THE SPEAKER,2017Q1,GENERAL EXPENDITURES,PERSONNEL COMPENSATION,   ,   ,   ,FOLTZ DEVON N,1/1/2017,1/2/2017,COUNSEL FOR FLOOR OPERATIONS,777.78,2017,FOLTZ DEVON N
,OFFICE OF THE SPEAKER,2017Q1,GENERAL EXPENDITURES,PERSONNEL COMPENSATION,   ,   ,   ,GEFFERT REBEKAH L,1/1/2017,1/2/2017,STAFF ASSISTANT,222.22,2017,GEFFERT REBEKAH L
,OFFICE OF THE SPEAKER,2017Q1,GENERAL EXPENDITURES,PERSONNEL COMPENSATION,   ,   ,   ,GEFFERT REBEKAH L,12/1/2016,12/31/2016,STAFF ASSISTANT (OVERTIME),461.53,2016,GEFFERT REBEKAH L
,OFFICE OF THE SPEAKER,2017Q1,GENERAL EXPENDITURES,PERSONNEL COMPENSATION,   ,   ,   ,GILLESPIE JAMES M,1/1/2017,1/2/2017,CLERICAL TECHNICAN,250,2017,GILLESPIE JAMES M
,OFFICE OF THE SPEAKER,2017Q1,GENERAL EXPENDITURES,PERSONNEL COMPENSATION,   ,   ,   ,GILLESPIE JAMES M,12/1/2016,12/31/2016,CLERICAL TECHNICAN (OVERTIME),64.9,2016,GILLESPIE JAMES M
,OFFICE OF THE SPEAKER,2017Q1,GENERAL EXPENDITURES,PERSONNEL COMPENSATION,   ,   ,   ,GOLDOUST CARAH S,1/1/2017,1/2/2017,SPECIAL EVENTS COORDINATOR,222.22,2017,GOLDOUST CARAH S
,OFFICE OF THE SPEAKER,2017Q1,GENERAL EXPENDITURES,PERSONNEL COMPENSATION,   ,   ,   ,GOLDOUST CARAH S,12/1/2016,12/31/2016,SPECIAL EVENTS COORDINATOR (OVERTIME),677.88,2016,GOLDOUST CARAH S
,OFFICE OF THE SPEAKER,2017Q1,GENERAL EXPENDITURES,PERSONNEL COMPENSATION,   ,   ,   ,GOLDOUST CARAH S,1/1/2017,1/2/2017,SPECIAL EVENTS COORDINATOR (OTHER COMPENSATION),750,2017,GOLDOUST CARAH S
,OFFICE OF THE SPEAKER,2017Q1,GENERAL EXPENDITURES,PERSONNEL COMPENSATION,   ,   ,   ,HALPERN HUGH N.,1/1/2017,1/2/2017,FLOOR DIRECTOR - STATUTORY,958.33,2017,HALPERN HUGH N.
,OFFICE OF THE SPEAKER,2017Q1,GENERAL EXPENDITURES,PERSONNEL COMPENSATION,   ,   ,   ,HERRLE CYNTHIA A.,1/1/2017,1/2/2017,ASST TO THE SPEAKER FOR POLICY,933.33,2017,HERRLE CYNTHIA A.
,OFFICE OF THE SPEAKER,2017Q1,GENERAL EXPENDITURES,PERSONNEL COMPENSATION,   ,   ,   ,HIGGINS CASEY,1/1/2017,1/2/2017,ASSIST TO SPEAKER FOR POLICY,880.08,2017,HIGGINS CASEY
,OFFICE OF THE SPEAKER,2017Q1,GENERAL EXPENDITURES,PERSONNEL COMPENSATION,   ,   ,   ,HOFFMANN MATTHEW,1/1/2017,1/2/2017,ASSIST TO SPEAKER FOR POLICY,880.08,2017,HOFFMANN MATTHEW
,OFFICE OF THE SPEAKER,2017Q1,GENERAL EXPENDITURES,PERSONNEL COMPENSATION,   ,   ,   ,HOPPE JOHN D,1/1/2017,1/2/2017,CHIEF OF STAFF,958.33,2017,HOPPE JOHN D
,OFFICE OF THE SPEAKER,2017Q1,GENERAL EXPENDITURES,PERSONNEL COMPENSATION,   ,   ,   ,HOPPE JOHN D,1/1/2017,1/2/2017,CHIEF OF STAFF (OTHER COMPENSATION),7187.5,2017,HOPPE JOHN D
,OFFICE OF THE SPEAKER,2017Q1,GENERAL EXPENDITURES,PERSONNEL COMPENSATION,   ,   ,   ,HUSTON JOHNATHON B,1/1/2017,1/2/2017,SHARED EMPLOYEE,250,2017,HUSTON JOHNATHON B
,OFFICE OF THE SPEAKER,2017Q1,GENERAL EXPENDITURES,PERSONNEL COMPENSATION,   ,   ,   ,JORDON BENJAMIN D,1/1/2017,1/2/2017,STAFF ASSISTANT,222.22,2017,JORDON BENJAMIN D
,OFFICE OF THE SPEAKER,2017Q1,GENERAL EXPENDITURES,PERSONNEL COMPENSATION,   ,   ,   ,JORDON BENJAMIN D,12/1/2016,12/31/2016,STAFF ASSISTANT (OVERTIME),173.08,2016,JORDON BENJAMIN D
,OFFICE OF THE SPEAKER,2017Q1,GENERAL EXPENDITURES,PERSONNEL COMPENSATION,   ,   ,   ,KISH DANIEL V,1/1/2017,1/2/2017,ASSIST TO SPEAKER FOR POLICY,933.33,2017,KISH DANIEL V
,OFFICE OF THE SPEAKER,2017Q1,GENERAL EXPENDITURES,PERSONNEL COMPENSATION,   ,   ,   ,LEOPOLD PATRICK R,1/1/2017,1/2/2017,SHARED EMPLOYEE,555.56,2017,LEOPOLD PATRICK R
,OFFICE OF THE SPEAKER,2017Q1,GENERAL EXPENDITURES,PERSONNEL COMPENSATION,   ,   ,   ,MACDONALD BRIAN C.,1/1/2017,1/2/2017,SHARED EMPLOYEE,555.56,2017,MACDONALD BRIAN C.
,OFFICE OF THE SPEAKER,2017Q1,GENERAL EXPENDITURES,PERSONNEL COMPENSATION,   ,   ,   ,MATTHEWS TITUS V,1/1/2017,1/2/2017,STAFF ASSISTANT,213.89,2017,MATTHEWS TITUS V
,OFFICE OF THE SPEAKER,2017Q1,GENERAL EXPENDITURES,PERSONNEL COMPENSATION,   ,   ,   ,MATTHEWS TITUS V,12/1/2016,12/31/2016,STAFF ASSISTANT (OVERTIME),222.11,2016,MATTHEWS TITUS V
,OFFICE OF THE SPEAKER,2017Q1,GENERAL EXPENDITURES,PERSONNEL COMPENSATION,   ,   ,   ,MATTHEWS TITUS V,1/1/2017,1/2/2017,STAFF ASSISTANT (OTHER COMPENSATION),828.82,2017,MATTHEWS TITUS V
,OFFICE OF THE SPEAKER,2017Q1,GENERAL EXPENDITURES,PERSONNEL COMPENSATION,   ,   ,   ,MATTHEWS TITUS V,1/1/2017,1/2/2017,STAFF ASSISTANT (OTHER COMPENSATION),775.35,2017,MATTHEWS TITUS V
,OFFICE OF THE SPEAKER,2017Q1,GENERAL EXPENDITURES,PERSONNEL COMPENSATION,   ,   ,   ,MCCALLIE CARLY L,1/1/2017,1/2/2017,ASSOCIATE COUNSEL,333.33,2017,MCCALLIE CARLY L
,OFFICE OF THE SPEAKER,2017Q1,GENERAL EXPENDITURES,PERSONNEL COMPENSATION,   ,   ,   ,MCCANN EDWARD D.,1/1/2017,1/2/2017,ASSIST TO SPEAKER FOR POLICY,888.89,2017,MCCANN EDWARD D.
,OFFICE OF THE SPEAKER,2017Q1,GENERAL EXPENDITURES,PERSONNEL COMPENSATION,   ,   ,   ,MEYER JOYCE Y.,1/1/2017,1/2/2017,DEPUTY CHIEF OF STAFF,958.33,2017,MEYER JOYCE Y.
,OFFICE OF THE SPEAKER,2017Q1,GENERAL EXPENDITURES,PERSONNEL COMPENSATION,   ,   ,   ,MILLER WILLIAM,1/1/2017,1/2/2017,SPECIAL ASSISTANT TO THE SPEAK,388.89,2017,MILLER WILLIAM
,OFFICE OF THE SPEAKER,2017Q1,GENERAL EXPENDITURES,PERSONNEL COMPENSATION,   ,   ,   ,MITCHELL MAUREEN E,1/1/2017,1/2/2017,DIRECTOR OF SCHEDULING,750,2017,MITCHELL MAUREEN E
,OFFICE OF THE SPEAKER,2017Q1,GENERAL EXPENDITURES,PERSONNEL COMPENSATION,   ,   ,   ,MUNDAY J M.,1/1/2017,1/2/2017,DIRECTOR OF INFORMATION TECHNO,722.22,2017,MUNDAY J M.
,OFFICE OF THE SPEAKER,2017Q1,GENERAL EXPENDITURES,PERSONNEL COMPENSATION,   ,   ,   ,O'TOOLE RYAN T,1/1/2017,1/2/2017,FLOOR ASSISTANT,250,2017,O'TOOLE RYAN T
,OFFICE OF THE SPEAKER,2017Q1,GENERAL EXPENDITURES,PERSONNEL COMPENSATION,   ,   ,   ,POINTER KATHERINE C,1/1/2017,1/2/2017,SENIOR STAFF ASSISTANT,305.56,2017,POINTER KATHERINE C
,OFFICE OF THE SPEAKER,2017Q1,GENERAL EXPENDITURES,PERSONNEL COMPENSATION,   ,   ,   ,POINTER KATHERINE C,12/1/2016,12/31/2016,SENIOR STAFF ASSISTANT (OVERTIME),634.61,2016,POINTER KATHERINE C
,OFFICE OF THE SPEAKER,2017Q1,GENERAL EXPENDITURES,PERSONNEL COMPENSATION,   ,   ,   ,RENZ BRANDON,1/1/2017,1/2/2017,SHARED EMPLOYEE,555.56,2017,RENZ BRANDON
,OFFICE OF THE SPEAKER,2017Q1,GENERAL EXPENDITURES,PERSONNEL COMPENSATION,   ,   ,   ,RICCI MICHAEL,1/1/2017,1/2/2017,DIRECTOR OF COMMUNICATIONS,933.33,2017,RICCI MICHAEL
,OFFICE OF THE SPEAKER,2017Q1,GENERAL EXPENDITURES,PERSONNEL COMPENSATION,   ,   ,   ,SHAPIRO MICHAEL I.,1/1/2017,1/2/2017,COMMUNICATIONS ADVISOR,444.44,2017,SHAPIRO MICHAEL I.
,OFFICE OF THE SPEAKER,2017Q1,GENERAL EXPENDITURES,PERSONNEL COMPENSATION,   ,   ,   ,SLINGSBY JULIA K.,1/1/2017,1/2/2017,DEPUTY COMMUNICATIONS DIRECTOR,583.33,2017,SLINGSBY JULIA K.
,OFFICE OF THE SPEAKER,2017Q1,GENERAL EXPENDITURES,PERSONNEL COMPENSATION,   ,   ,   ,SMITH CALEB J,1/1/2017,1/2/2017,DIGITAL COMMUNICATIONS DIRECTO,722.22,2017,SMITH CALEB J
,OFFICE OF THE SPEAKER,2017Q1,GENERAL EXPENDITURES,PERSONNEL COMPENSATION,   ,   ,   ,SMYTHE AUGUSTINE,1/1/2017,1/2/2017,POLICY DIRECTOR,958.33,2017,SMYTHE AUGUSTINE
,OFFICE OF THE SPEAKER,2017Q1,GENERAL EXPENDITURES,PERSONNEL COMPENSATION,   ,   ,   ,SPETH ANDREW D.,1/1/2017,1/2/2017,SENIOR ADVISOR,479.17,2017,SPETH ANDREW D.
,OFFICE OF THE SPEAKER,2017Q1,GENERAL EXPENDITURES,PERSONNEL COMPENSATION,   ,   ,   ,STRONG ASHLEE A,1/1/2017,1/2/2017,PRESS SECRETARY,861.11,2017,STRONG ASHLEE A
,OFFICE OF THE SPEAKER,2017Q1,GENERAL EXPENDITURES,PERSONNEL COMPENSATION,   ,   ,   ,STRUNK LYDIA,1/1/2017,1/2/2017,DEPUTY FLOOR DIRECTOR,694.44,2017,STRUNK LYDIA
,OFFICE OF THE SPEAKER,2017Q1,GENERAL EXPENDITURES,PERSONNEL COMPENSATION,   ,   ,   ,SWINEHART SARAH V,1/1/2017,1/2/2017,DIRECTOR OF MEDIA AFFAIRS,611.11,2017,SWINEHART SARAH V
,OFFICE OF THE SPEAKER,2017Q1,GENERAL EXPENDITURES,PERSONNEL COMPENSATION,   ,   ,   ,VREEBURG JACOBUS A,1/1/2017,1/2/2017,SHARED EMPLOYEE,444.44,2017,VREEBURG JACOBUS A
,OFFICE OF THE SPEAKER,2017Q1,GENERAL EXPENDITURES,PERSONNEL COMPENSATION,   ,   ,   ,WICKISER VICTORIA H,1/1/2017,1/2/2017,DEPUTY DIRECTOR OF SCHEDULING,444.44,2017,WICKISER VICTORIA H
,OFFICE OF THE SPEAKER,2017Q1,GENERAL EXPENDITURES,PERSONNEL COMPENSATION,   ,   ,   ,ZULKOSKY ERIC T,1/1/2017,1/2/2017,SHARED EMPLOYEE,555.56,2017,ZULKOSKY ERIC T
,OFFICE OF THE SPEAKER,2017Q1,GENERAL EXPENDITURES,TRAVEL,1/5/2017,AP,E0474784,BURKS JONATHAN,10/27/2016,11/14/2016,TAXI/PARKING/TOLLS,58.92,2016,BURKS JONATHAN
,OFFICE OF THE SPEAKER,2017Q1,GENERAL EXPENDITURES,TRAVEL,1/11/2017,AP,E0477259,SWINEHART SARAH V,12/14/2016,12/15/2016,TAXI/PARKING/TOLLS,27.65,2016,SWINEHART SARAH V
,OFFICE OF THE SPEAKER,2017Q1,GENERAL EXPENDITURES,TRAVEL,1/24/2017,AP,900851,STRONG ASHLEE A,4/25/2016,4/26/2016,COMMERCIAL TRANSPORTATION,289,2016,STRONG ASHLEE A
,OFFICE OF THE SPEAKER,2017Q1,GENERAL EXPENDITURES,TRAVEL,1/24/2017,AP,900851,STRONG ASHLEE A,4/25/2016,4/26/2016,LODGING,313.32,2016,STRONG ASHLEE A
,OFFICE OF THE SPEAKER,2017Q1,GENERAL EXPENDITURES,TRAVEL,1/24/2017,AP,900851,STRONG ASHLEE A,4/26/2016,4/26/2016,MEALS,3.69,2016,STRONG ASHLEE A
,OFFICE OF THE SPEAKER,2017Q1,GENERAL EXPENDITURES,TRAVEL,1/24/2017,AP,900851,STRONG ASHLEE A,4/25/2016,4/25/2016,TAXI/PARKING/TOLLS,47.5,2016,STRONG ASHLEE A
,OFFICE OF THE SPEAKER,2017Q1,GENERAL EXPENDITURES,TRAVEL,1/24/2017,AP,900984,STRONG ASHLEE A,2/21/2016,2/23/2016,COMMERCIAL TRANSPORTATION,313,2016,STRONG ASHLEE A
,OFFICE OF THE SPEAKER,2017Q1,GENERAL EXPENDITURES,TRAVEL,1/24/2017,AP,900984,STRONG ASHLEE A,2/21/2016,2/23/2016,LODGING,578.46,2016,STRONG ASHLEE A
,OFFICE OF THE SPEAKER,2017Q1,GENERAL EXPENDITURES,TRAVEL,1/24/2017,AP,900984,STRONG ASHLEE A,2/21/2016,2/23/2016,MEALS,17.97,2016,STRONG ASHLEE A
,OFFICE OF THE SPEAKER,2017Q1,GENERAL EXPENDITURES,TRAVEL,1/24/2017,AP,900984,STRONG ASHLEE A,2/21/2016,2/23/2016,TAXI/PARKING/TOLLS,75.75,2016,STRONG ASHLEE A
,OFFICE OF THE SPEAKER,2017Q1,GENERAL EXPENDITURES,RENT  COMMUNICATION  UTILITIES,1/9/2017,AP,E0476000,FEDEX,12/14/2016,12/14/2016,POSTAGE / COURIER / BOX RENTAL,3.72,2016,FEDEX
,OFFICE OF THE SPEAKER,2017Q1,GENERAL EXPENDITURES,RENT  COMMUNICATION  UTILITIES,1/9/2017,AP,E0476002,FEDEX,12/2/2016,12/2/2016,POSTAGE / COURIER / BOX RENTAL,9.07,2016,FEDEX
,OFFICE OF THE SPEAKER,2017Q1,GENERAL EXPENDITURES,SUPPLIES AND MATERIALS,1/3/2017,AP,E0473385,INSIDE WASHINGTON PUBLISHERS LLC,1/1/2017,12/31/2018,PUBLICATIONS/REFERENCE MAT'L,3560,2018,INSIDE WASHINGTON PUBLISHERS LLC
,OFFICE OF THE SPEAKER,2017Q1,GENERAL EXPENDITURES,SUPPLIES AND MATERIALS,1/3/2017,AP,E0473700,FIRST CHOICE COFFEE SERVICES,12/22/2016,12/22/2016,FOOD & BEVERAGE,367.29,2016,FIRST CHOICE COFFEE SERVICES
,OFFICE OF THE SPEAKER,2017Q1,GENERAL EXPENDITURES,SUPPLIES AND MATERIALS,1/3/2017,AP,E0473702,COCA-COLA BOTTLING COMPANY CONSOLIDATED,12/23/2016,12/23/2016,FOOD & BEVERAGE,120,2016,COCA-COLA BOTTLING COMPANY CONSOLIDATED
,OFFICE OF THE SPEAKER,2017Q1,GENERAL EXPENDITURES,SUPPLIES AND MATERIALS,1/3/2017,AP,E0474290,LEADERSHIP DIRECTORIES INC,12/31/2016,12/31/2016,PUBLICATIONS/REFERENCE MAT'L,1310,2016,LEADERSHIP DIRECTORIES INC
,OFFICE OF THE SPEAKER,2017Q1,GENERAL EXPENDITURES,SUPPLIES AND MATERIALS,1/5/2017,AP,E0474502,LEXISNEXIS,12/31/2016,12/31/2018,PUBLICATIONS/REFERENCE MAT'L,20628,2018,LEXISNEXIS
,OFFICE OF THE SPEAKER,2017Q1,GENERAL EXPENDITURES,SUPPLIES AND MATERIALS,1/19/2017,AP,900647,CITI PCARD-CHICK-FIL-A,11/29/2016,12/28/2016,FOOD & BEVERAGE,2121.55,2016,CITI PCARD-CHICK-FIL-A
,OFFICE OF THE SPEAKER,2017Q1,GENERAL EXPENDITURES,SUPPLIES AND MATERIALS,1/19/2017,AP,900647,CITI PCARD-DT,11/29/2016,12/28/2016,FOOD & BEVERAGE,264.6,2016,CITI PCARD-DT
,OFFICE OF THE SPEAKER,2017Q1,GENERAL EXPENDITURES,SUPPLIES AND MATERIALS,1/19/2017,AP,900647,CITI PCARD-HARRISTEETER,11/29/2016,12/28/2016,FOOD & BEVERAGE,116.92,2016,CITI PCARD-HARRISTEETER
,OFFICE OF THE SPEAKER,2017Q1,GENERAL EXPENDITURES,SUPPLIES AND MATERIALS,1/19/2017,AP,900647,CITI PCARD-NANDOS OF THE YARDS,11/29/2016,12/28/2016,FOOD & BEVERAGE,203.17,2016,CITI PCARD-NANDOS OF THE YARDS
,OFFICE OF THE SPEAKER,2017Q1,GENERAL EXPENDITURES,SUPPLIES AND MATERIALS,1/19/2017,AP,900647,CITI PCARD-PRET A MANGER,11/29/2016,12/28/2016,FOOD & BEVERAGE,90.32,2016,CITI PCARD-PRET A MANGER
,OFFICE OF THE SPEAKER,2017Q1,GENERAL EXPENDITURES,SUPPLIES AND MATERIALS,1/19/2017,AP,900647,CITI PCARD-SAMS INTERNET,11/29/2016,12/28/2016,FOOD & BEVERAGE,73.19,2016,CITI PCARD-SAMS INTERNET
,OFFICE OF THE SPEAKER,2017Q1,GENERAL EXPENDITURES,SUPPLIES AND MATERIALS,1/19/2017,AP,900647,CITI PCARD-TAYLOR GOURMET,11/29/2016,12/28/2016,FOOD & BEVERAGE,757.45,2016,CITI PCARD-TAYLOR GOURMET
,OFFICE OF THE SPEAKER,2017Q1,GENERAL EXPENDITURES,SUPPLIES AND MATERIALS,1/23/2017,AP,900763,ITSAVVY LLC,12/15/2016,12/20/2016,OFFICE SUPPLIES (OUTSIDE) QTY - 8,1976,2016,ITSAVVY LLC
,OFFICE OF THE SPEAKER,2017Q1,GENERAL EXPENDITURES,SUPPLIES AND MATERIALS,2/10/2017,AP,902318,ITSAVVY LLC,1/4/2017,1/4/2017,OFFICE SUPPLIES (OUTSIDE) QTY - 81,37874.79,2017,ITSAVVY LLC
,OFFICE OF THE SPEAKER,2017Q1,GENERAL EXPENDITURES,SUPPLIES AND MATERIALS,2/10/2017,AP,902319,ITSAVVY LLC,1/3/2017,1/3/2017,OFFICE SUPPLIES (OUTSIDE) QTY - 55,876.7,2017,ITSAVVY LLC
,OFFICE OF THE SPEAKER,2017Q1,GENERAL EXPENDITURES,SUPPLIES AND MATERIALS,2/15/2017,AP,902605,ITSAVVY LLC,12/16/2016,1/18/2017,OFFICE SUPPLIES (OUTSIDE) QTY - 3,75,2017,ITSAVVY LLC
,OFFICE OF THE SPEAKER,2017Q1,GENERAL EXPENDITURES,SUPPLIES AND MATERIALS,2/15/2017,AP,902605,ITSAVVY LLC,12/16/2016,1/18/2017,OFFICE SUPPLIES (OUTSIDE),85,2017,ITSAVVY LLC
,OFFICE OF THE SPEAKER,2017Q1,GENERAL EXPENDITURES,SUPPLIES AND MATERIALS,2/15/2017,AP,902605,ITSAVVY LLC,12/16/2016,1/18/2017,OFFICE SUPPLIES (OUTSIDE) QTY - 2,88,2017,ITSAVVY LLC
,OFFICE OF THE SPEAKER,2017Q1,GENERAL EXPENDITURES,SUPPLIES AND MATERIALS,2/23/2017,AP,906635,OMNI BUSINESS SYSTEMS INC - FAXPLUS INC,12/15/2016,12/15/2016,OFFICE SUPPLIES (OUTSIDE),362,2016,OMNI BUSINESS SYSTEMS INC - FAXPLUS INC
,OFFICE OF THE SPEAKER,2017Q1,GENERAL EXPENDITURES,SUPPLIES AND MATERIALS,2/23/2017,AP,906635,OMNI BUSINESS SYSTEMS INC - FAXPLUS INC,12/15/2016,12/15/2016,OFFICE SUPPLIES (OUTSIDE) QTY - 3,477,2016,OMNI BUSINESS SYSTEMS INC - FAXPLUS INC
,OFFICE OF THE SPEAKER,2017Q1,GENERAL EXPENDITURES,SUPPLIES AND MATERIALS,2/23/2017,AP,906635,OMNI BUSINESS SYSTEMS INC - FAXPLUS INC,12/15/2016,12/15/2016,OFFICE SUPPLIES (OUTSIDE) QTY - 2,894,2016,OMNI BUSINESS SYSTEMS INC - FAXPLUS INC
,OFFICE OF THE SPEAKER,2017Q1,GENERAL EXPENDITURES,SUPPLIES AND MATERIALS,2/23/2017,AP,906635,OMNI BUSINESS SYSTEMS INC - FAXPLUS INC,12/15/2016,12/15/2016,OFFICE SUPPLIES (OUTSIDE) QTY - 4,1420,2016,OMNI BUSINESS SYSTEMS INC - FAXPLUS INC
,OFFICE OF THE SPEAKER,2017Q1,GENERAL EXPENDITURES,SUPPLIES AND MATERIALS,3/16/2017,AP,E0495670,DESIGN CUISINE,12/6/2016,12/6/2016,FOOD & BEVERAGE,5817.31,2016,DESIGN CUISINE
,OFFICE OF THE SPEAKER,2017Q1,GENERAL EXPENDITURES,SUPPLIES AND MATERIALS,3/17/2017,AP,E0495669,DESIGN CUISINE,11/30/2016,11/30/2016,FOOD & BEVERAGE,13624,2016,DESIGN CUISINE
,OFFICE OF THE SPEAKER,2017Q1,GENERAL EXPENDITURES,SUPPLIES AND MATERIALS,3/24/2017,AP,912485,CDW GOVERNMENT INC. C/O ISM IN,3/17/2017,3/17/2017,SOFTWARE  LESS THAN  $500,44,2017,CDW GOVERNMENT INC. C/O ISM IN
,OFFICE OF THE SPEAKER,2017Q1,GENERAL EXPENDITURES,EQUIPMENT,1/23/2017,AP,900763,ITSAVVY LLC,12/15/2016,12/20/2016,COMPUTER HARDW PURCH  LESS THAN $25 000,2138.29,2016,ITSAVVY LLC
,OFFICE OF THE SPEAKER,2017Q1,GENERAL EXPENDITURES,EQUIPMENT,1/25/2017,AP,900943,CBT NUGGETS LLC,1/3/2017,1/3/2018,COMPUTER SOFTW PURCH  LESS THAN $10 000 QTY - 2,1798.2,2018,CBT NUGGETS LLC
,OFFICE OF THE SPEAKER,2017Q1,GENERAL EXPENDITURES,EQUIPMENT,1/27/2017,AP,901110,CDW GOVERNMENT INC. C/O ISM IN,1/9/2017,1/9/2017,COMPUTER HARDW PURCH  LESS THAN $25 000,3260.26,2017,CDW GOVERNMENT INC. C/O ISM IN
,OFFICE OF THE SPEAKER,2017Q1,GENERAL EXPENDITURES,EQUIPMENT,2/15/2017,AP,902605,ITSAVVY LLC,12/16/2016,1/18/2017,COMPUTER HARDW PURCH  LESS THAN $25 000,14420,2017,ITSAVVY LLC
,OFFICE OF THE SPEAKER,2017Q1,GENERAL EXPENDITURES,EQUIPMENT,2/15/2017,AP,902605,ITSAVVY LLC,12/16/2016,1/18/2017,WARRANTIES,1300,2017,ITSAVVY LLC
,OFFICE OF THE SPEAKER,2017Q1,GENERAL EXPENDITURES,EQUIPMENT,2/15/2017,AP,902704,KELYN TECHNOLOGIES,12/23/2016,2/9/2017,COMPUTER SOFTW PURCH  LESS THAN $10 000,3729,2017,KELYN TECHNOLOGIES
,OFFICE OF THE SPEAKER,2017Q1,GENERAL EXPENDITURES,EQUIPMENT,2/15/2017,AP,902704,KELYN TECHNOLOGIES,12/23/2016,2/9/2017,COMPUTER SOFTW PURCH  LESS THAN $10 000 QTY - 5,4620,2017,KELYN TECHNOLOGIES
,OFFICE OF THE SPEAKER,2017Q1,GENERAL EXPENDITURES,EQUIPMENT,2/15/2017,AP,902704,KELYN TECHNOLOGIES,12/23/2016,2/9/2017,MAINTENANCE / REPAIRS QTY - 5,4000,2017,KELYN TECHNOLOGIES
,OFFICE OF THE SPEAKER,2017Q1,GENERAL EXPENDITURES,EQUIPMENT,2/15/2017,AP,902704,KELYN TECHNOLOGIES,12/23/2016,2/9/2017,MAINTENANCE / REPAIRS QTY - 25,4900,2017,KELYN TECHNOLOGIES
,OFFICE OF THE SPEAKER,2017Q1,GENERAL EXPENDITURES,EQUIPMENT,2/22/2017,AP,906600,ITSAVVY LLC,1/20/2017,1/20/2017,COMPUTER HARDW PURCH  LESS THAN $25 000,46901.1,2017,ITSAVVY LLC
,OFFICE OF THE SPEAKER,2017Q1,GENERAL EXPENDITURES,EQUIPMENT,2/22/2017,AP,906600,ITSAVVY LLC,1/20/2017,1/20/2017,WARRANTIES QTY - 30,1979.7,2017,ITSAVVY LLC
,OFFICE OF THE SPEAKER,2017Q1,GENERAL EXPENDITURES,EQUIPMENT,2/23/2017,AP,906628,STORAGEHAWK,1/4/2017,1/4/2017,COMPUTER HARDW PURCH  LESS THAN $25 000,12233,2017,STORAGEHAWK
,OFFICE OF THE SPEAKER,2017Q1,GENERAL EXPENDITURES,EQUIPMENT,2/23/2017,AP,906628,STORAGEHAWK,1/4/2017,1/4/2017,WARRANTIES,2852,2017,STORAGEHAWK
,OFFICE OF THE SPEAKER,2017Q1,GENERAL EXPENDITURES,EQUIPMENT,3/24/2017,AP,912485,CDW GOVERNMENT INC. C/O ISM IN,3/17/2017,3/17/2017,COMPUTER HARDW PURCH  LESS THAN $25 000,20667.35,2017,CDW GOVERNMENT INC. C/O ISM IN
,OFFICE OF THE SPEAKER,2017Q1,GENERAL EXPENDITURES,EQUIPMENT,3/24/2017,AP,912485,CDW GOVERNMENT INC. C/O ISM IN,3/17/2017,3/17/2017,WARRANTIES QTY - 11,1074.81,2017,CDW GOVERNMENT INC. C/O ISM IN
,OFFICE OF THE MAJORITY LEADER,2017Q1,GENERAL EXPENDITURES,PERSONNEL COMPENSATION,   ,   ,   ,BERRY TIMOTHY J,1/3/2017,1/6/2017,CHIEF OF STAFF,1916.67,2017,BERRY TIMOTHY J
,OFFICE OF THE MAJORITY LEADER,2017Q1,GENERAL EXPENDITURES,PERSONNEL COMPENSATION,   ,   ,   ,BIEN CHRISTOPHER A,1/3/2017,3/31/2017,FLOOR ASSISTANT,11733.33,2017,BIEN CHRISTOPHER A
,OFFICE OF THE MAJORITY LEADER,2017Q1,GENERAL EXPENDITURES,PERSONNEL COMPENSATION,   ,   ,   ,BUCHANAN NATALIE L,1/3/2017,3/31/2017,DIR OF MEMBER SERVICES,32266.67,2017,BUCHANAN NATALIE L
,OFFICE OF THE MAJORITY LEADER,2017Q1,GENERAL EXPENDITURES,PERSONNEL COMPENSATION,   ,   ,   ,DIXON KELLY A.,1/3/2017,3/31/2017,DIR OF LEGISLATIVE OPERATIONS,7822.23,2017,DIXON KELLY A.
,OFFICE OF THE MAJORITY LEADER,2017Q1,GENERAL EXPENDITURES,PERSONNEL COMPENSATION,   ,   ,   ,DRESSLER JEFFREY A,1/3/2017,2/12/2017,SENIOR POLICY ADVISOR,13666.67,2017,DRESSLER JEFFREY A
,OFFICE OF THE MAJORITY LEADER,2017Q1,GENERAL EXPENDITURES,PERSONNEL COMPENSATION,   ,   ,   ,DUNHAM WILL,1/3/2017,3/31/2017,POLICY DIRECTOR,38133.33,2017,DUNHAM WILL
,OFFICE OF THE MAJORITY LEADER,2017Q1,GENERAL EXPENDITURES,PERSONNEL COMPENSATION,   ,   ,   ,FLORIO JOHN A,1/3/2017,3/31/2017,DEPUTY PRESS SECRETARY,16133.33,2017,FLORIO JOHN A
,OFFICE OF THE MAJORITY LEADER,2017Q1,GENERAL EXPENDITURES,PERSONNEL COMPENSATION,   ,   ,   ,GERZOF DEVIN A,1/3/2017,3/31/2017,STAFF ASSISTANT,7333.33,2017,GERZOF DEVIN A
,OFFICE OF THE MAJORITY LEADER,2017Q1,GENERAL EXPENDITURES,PERSONNEL COMPENSATION,   ,   ,   ,GOURDIKIAN ALEXANDRA G,1/3/2017,3/31/2017,SCHEDULER,14666.67,2017,GOURDIKIAN ALEXANDRA G
,OFFICE OF THE MAJORITY LEADER,2017Q1,GENERAL EXPENDITURES,PERSONNEL COMPENSATION,   ,   ,   ,HILL PRESTON W,1/3/2017,3/31/2017,SPECIAL ASSISTANT,8800,2017,HILL PRESTON W
,OFFICE OF THE MAJORITY LEADER,2017Q1,GENERAL EXPENDITURES,PERSONNEL COMPENSATION,   ,   ,   ,HOWARD BENJAMIN R,1/3/2017,1/20/2017,DIRECTOR OF FLOOR OPERATIONS,6000,2017,HOWARD BENJAMIN R
,OFFICE OF THE MAJORITY LEADER,2017Q1,GENERAL EXPENDITURES,PERSONNEL COMPENSATION,   ,   ,   ,HOWARD BENJAMIN R,1/19/2017,1/30/2017,DIRECTOR OF FLOOR OPERATIONS (OTHER COMPENSATION),2500,2017,HOWARD BENJAMIN R
,OFFICE OF THE MAJORITY LEADER,2017Q1,GENERAL EXPENDITURES,PERSONNEL COMPENSATION,   ,   ,   ,KARR ELIZABETH B,1/3/2017,1/30/2017,DEPUTY CHIEF OF STAFF FOR POLI,1900,2017,KARR ELIZABETH B
,OFFICE OF THE MAJORITY LEADER,2017Q1,GENERAL EXPENDITURES,PERSONNEL COMPENSATION,   ,   ,   ,KARR ELIZABETH B,1/7/2017,3/31/2017,CHIEF OF STAFF,40250,2017,KARR ELIZABETH B
,OFFICE OF THE MAJORITY LEADER,2017Q1,GENERAL EXPENDITURES,PERSONNEL COMPENSATION,   ,   ,   ,KELLOGG MATTHEW B,1/3/2017,3/28/2017,SR POLICY ADVISOR  & COUNSEL,29383.34,2017,KELLOGG MATTHEW B
,OFFICE OF THE MAJORITY LEADER,2017Q1,GENERAL EXPENDITURES,PERSONNEL COMPENSATION,   ,   ,   ,LEGANSKI JOHN G,1/3/2017,3/31/2017,DEPUTY DIRECTOR OF FLOOR OPERA,19066.67,2017,LEGANSKI JOHN G
,OFFICE OF THE MAJORITY LEADER,2017Q1,GENERAL EXPENDITURES,PERSONNEL COMPENSATION,   ,   ,   ,LIRA MATHEW L,1/3/2017,3/19/2017,SENIOR ADVISOR,23100,2017,LIRA MATHEW L
,OFFICE OF THE MAJORITY LEADER,2017Q1,GENERAL EXPENDITURES,PERSONNEL COMPENSATION,   ,   ,   ,LIRA MATHEW L,3/1/2017,3/19/2017,SENIOR ADVISOR (OTHER COMPENSATION),1950,2017,LIRA MATHEW L
,OFFICE OF THE MAJORITY LEADER,2017Q1,GENERAL EXPENDITURES,PERSONNEL COMPENSATION,   ,   ,   ,LONG MICHAEL P,1/3/2017,3/31/2017,COMMUNICATIONS DIRECTOR,25666.67,2017,LONG MICHAEL P
,OFFICE OF THE MAJORITY LEADER,2017Q1,GENERAL EXPENDITURES,PERSONNEL COMPENSATION,   ,   ,   ,MAHAN ROGER A,1/3/2017,3/31/2017,SENIOR POLICY ADVISOR,31533.33,2017,MAHAN ROGER A
,OFFICE OF THE MAJORITY LEADER,2017Q1,GENERAL EXPENDITURES,PERSONNEL COMPENSATION,   ,   ,   ,MEYER KATHERINE R,1/3/2017,3/31/2017,SENIOR POLICY ADVISOR,32266.67,2017,MEYER KATHERINE R
,OFFICE OF THE MAJORITY LEADER,2017Q1,GENERAL EXPENDITURES,PERSONNEL COMPENSATION,   ,   ,   ,MIN JAMES B.,1/3/2017,3/31/2017,DEPUTY CHIEF OF STAFF/COUNSEL,22733.33,2017,MIN JAMES B.
,OFFICE OF THE MAJORITY LEADER,2017Q1,GENERAL EXPENDITURES,PERSONNEL COMPENSATION,   ,   ,   ,PETERSON SAGE E,1/3/2017,3/31/2017,SENIOR STAFF ASSISTANT,8800,2017,PETERSON SAGE E
,OFFICE OF THE MAJORITY LEADER,2017Q1,GENERAL EXPENDITURES,PERSONNEL COMPENSATION,   ,   ,   ,SPARKS MATTHEW E,1/3/2017,3/31/2017,PRESS SECRETARY,20533.33,2017,SPARKS MATTHEW E
,OFFICE OF THE MAJORITY LEADER,2017Q1,GENERAL EXPENDITURES,PERSONNEL COMPENSATION,   ,   ,   ,STIPICEVIC KRISTIN,1/3/2017,3/31/2017,EXECUTIVE ASSISTANT,12466.67,2017,STIPICEVIC KRISTIN
,OFFICE OF THE MAJORITY LEADER,2017Q1,GENERAL EXPENDITURES,PERSONNEL COMPENSATION,   ,   ,   ,TORRES ALEC C,1/3/2017,3/31/2017,COMM ADVISOR & SPEECHWRITER,14700,2017,TORRES ALEC C
,OFFICE OF THE MAJORITY LEADER,2017Q1,GENERAL EXPENDITURES,TRAVEL,2/15/2017,AP,E0487718,DRESSLER JEFFREY A.,1/18/2017,1/18/2017,TAXI/PARKING/TOLLS,12,2017,DRESSLER JEFFREY A.
,OFFICE OF THE MAJORITY LEADER,2017Q1,GENERAL EXPENDITURES,TRAVEL,2/16/2017,AP,E0487723,PETERSON SAGE E.,2/8/2017,2/8/2017,TAXI/PARKING/TOLLS,19.99,2017,PETERSON SAGE E.
,OFFICE OF THE MAJORITY LEADER,2017Q1,GENERAL EXPENDITURES,RENT  COMMUNICATION  UTILITIES,3/21/2017,AP,912200,CITI PCARD-USPS PO,1/29/2017,2/28/2017,POSTAGE / COURIER / BOX RENTAL,98,2017,CITI PCARD-USPS PO
,OFFICE OF THE MAJORITY LEADER,2017Q1,GENERAL EXPENDITURES,PRINTING AND REPRODUCTION,3/28/2017,GL,PIX0066926, ,3/1/2017,3/31/2017,PHOTOGRAPHIC (TRANSFER),12.9,2017, 
,OFFICE OF THE MAJORITY LEADER,2017Q1,GENERAL EXPENDITURES,OTHER SERVICES,2/6/2017,AP,901922,FIRESIDE21,1/1/2017,1/31/2017,WEB DEV HST EMAIL & RLTD SERV,585,2017,FIRESIDE21
,OFFICE OF THE MAJORITY LEADER,2017Q1,GENERAL EXPENDITURES,OTHER SERVICES,3/6/2017,AP,907394,FIRESIDE21,1/1/2017,1/31/2017,WEB DEV HST EMAIL & RLTD SERV,-585,2017,FIRESIDE21
,OFFICE OF THE MAJORITY LEADER,2017Q1,GENERAL EXPENDITURES,OTHER SERVICES,3/8/2017,AP,907605,FIRESIDE21,2/1/2017,2/28/2017,WEB DEV HST EMAIL & RLTD SERV,585,2017,FIRESIDE21
,OFFICE OF THE MAJORITY LEADER,2017Q1,GENERAL EXPENDITURES,SUPPLIES AND MATERIALS,1/30/2017,AP,E0482295,MIN JAMES B.,1/16/2017,1/16/2017,FOOD & BEVERAGE,508.37,2017,MIN JAMES B.
,OFFICE OF THE MAJORITY LEADER,2017Q1,GENERAL EXPENDITURES,SUPPLIES AND MATERIALS,1/31/2017,AP,E0482303,POLITICO LLC,1/1/2017,12/31/2017,PUBLICATIONS/REFERENCE MAT'L,10990.04,2017,POLITICO LLC
,OFFICE OF THE MAJORITY LEADER,2017Q1,GENERAL EXPENDITURES,SUPPLIES AND MATERIALS,2/17/2017,AP,904174,CITI PCARD-CORNER BAKERY,1/3/2017,1/28/2017,FOOD & BEVERAGE,319,2017,CITI PCARD-CORNER BAKERY
,OFFICE OF THE MAJORITY LEADER,2017Q1,GENERAL EXPENDITURES,SUPPLIES AND MATERIALS,2/17/2017,AP,904174,CITI PCARD-D J WALL-ST-JOURNAL,1/3/2017,1/28/2017,PUBLICATIONS/REFERENCE MAT'L,61.32,2017,CITI PCARD-D J WALL-ST-JOURNAL
,OFFICE OF THE MAJORITY LEADER,2017Q1,GENERAL EXPENDITURES,SUPPLIES AND MATERIALS,2/17/2017,AP,904174,CITI PCARD-HARRISTEETER,1/3/2017,1/28/2017,FOOD & BEVERAGE,124.72,2017,CITI PCARD-HARRISTEETER
,OFFICE OF THE MAJORITY LEADER,2017Q1,GENERAL EXPENDITURES,SUPPLIES AND MATERIALS,2/17/2017,AP,904174,CITI PCARD-NEW YORK TIMES DIGITAL,1/3/2017,1/28/2017,PUBLICATIONS/REFERENCE MAT'L,37.01,2017,CITI PCARD-NEW YORK TIMES DIGITAL
,OFFICE OF THE MAJORITY LEADER,2017Q1,GENERAL EXPENDITURES,SUPPLIES AND MATERIALS,2/27/2017,AP,906775,DEER PARK,1/31/2017,1/31/2017,WATER,217.71,2017,DEER PARK
,OFFICE OF THE MAJORITY LEADER,2017Q1,GENERAL EXPENDITURES,SUPPLIES AND MATERIALS,3/14/2017,AP,E0495530,MIN JAMES B.,3/3/2017,3/3/2017,FOOD & BEVERAGE,429.04,2017,MIN JAMES B.
,OFFICE OF THE MAJORITY LEADER,2017Q1,GENERAL EXPENDITURES,SUPPLIES AND MATERIALS,3/16/2017,AP,E0495545,MIN JAMES B.,2/10/2017,2/10/2017,FOOD & BEVERAGE,379.2,2017,MIN JAMES B.
,OFFICE OF THE MAJORITY LEADER,2017Q1,GENERAL EXPENDITURES,SUPPLIES AND MATERIALS,3/21/2017,AP,912200,CITI PCARD-CHICK-FIL-A,1/29/2017,2/28/2017,FOOD & BEVERAGE,329.56,2017,CITI PCARD-CHICK-FIL-A
,OFFICE OF THE MAJORITY LEADER,2017Q1,GENERAL EXPENDITURES,SUPPLIES AND MATERIALS,3/21/2017,AP,912200,CITI PCARD-CORNER BAKERY,1/29/2017,2/28/2017,FOOD & BEVERAGE,220,2017,CITI PCARD-CORNER BAKERY
,OFFICE OF THE MAJORITY LEADER,2017Q1,GENERAL EXPENDITURES,SUPPLIES AND MATERIALS,3/21/2017,AP,912200,CITI PCARD-D J WALL-ST-JOURNAL,1/29/2017,2/28/2017,PUBLICATIONS/REFERENCE MAT'L,30.66,2017,CITI PCARD-D J WALL-ST-JOURNAL
,OFFICE OF THE MAJORITY LEADER,2017Q1,GENERAL EXPENDITURES,SUPPLIES AND MATERIALS,3/21/2017,AP,912200,CITI PCARD-FIRST CHOICE COFFEE SE,1/29/2017,2/28/2017,FOOD & BEVERAGE,466.55,2017,CITI PCARD-FIRST CHOICE COFFEE SE
,OFFICE OF THE MAJORITY LEADER,2017Q1,GENERAL EXPENDITURES,SUPPLIES AND MATERIALS,3/21/2017,AP,912200,CITI PCARD-FTP FINANCIAL TIMES,1/29/2017,2/28/2017,PUBLICATIONS/REFERENCE MAT'L,56.5,2017,CITI PCARD-FTP FINANCIAL TIMES
,OFFICE OF THE MAJORITY LEADER,2017Q1,GENERAL EXPENDITURES,SUPPLIES AND MATERIALS,3/21/2017,AP,912200,CITI PCARD-HARRIS TEETER,1/29/2017,2/28/2017,FOOD & BEVERAGE,152.95,2017,CITI PCARD-HARRIS TEETER
,OFFICE OF THE MAJORITY LEADER,2017Q1,GENERAL EXPENDITURES,SUPPLIES AND MATERIALS,3/21/2017,AP,912200,CITI PCARD-HARRISTEETER,1/29/2017,2/28/2017,FOOD & BEVERAGE,36.14,2017,CITI PCARD-HARRISTEETER
,OFFICE OF THE MAJORITY LEADER,2017Q1,GENERAL EXPENDITURES,SUPPLIES AND MATERIALS,3/21/2017,AP,912200,CITI PCARD-LA TIMES SUBSCRIPTION,1/29/2017,2/28/2017,PUBLICATIONS/REFERENCE MAT'L,31.92,2017,CITI PCARD-LA TIMES SUBSCRIPTION
,OFFICE OF THE MAJORITY LEADER,2017Q1,GENERAL EXPENDITURES,SUPPLIES AND MATERIALS,3/21/2017,AP,912200,CITI PCARD-NEW YORK TIMES DIGITAL,1/29/2017,2/28/2017,PUBLICATIONS/REFERENCE MAT'L,37.01,2017,CITI PCARD-NEW YORK TIMES DIGITAL
,OFFICE OF THE MAJORITY LEADER,2017Q1,GENERAL EXPENDITURES,SUPPLIES AND MATERIALS,3/21/2017,AP,912200,CITI PCARD-THE INFORMATION,1/29/2017,2/28/2017,PUBLICATIONS/REFERENCE MAT'L,39,2017,CITI PCARD-THE INFORMATION
,OFFICE OF THE MAJORITY LEADER,2017Q1,GENERAL EXPENDITURES,SUPPLIES AND MATERIALS,3/28/2017,AP,912405,DEER PARK,2/28/2017,2/28/2017,WATER,111.83,2017,DEER PARK
,OFFICE OF THE MAJORITY LEADER,2017Q1,GENERAL EXPENDITURES,PERSONNEL COMPENSATION,   ,   ,   ,BERRY TIMOTHY J,1/1/2017,1/2/2017,CHIEF OF STAFF,958.33,2017,BERRY TIMOTHY J
,OFFICE OF THE MAJORITY LEADER,2017Q1,GENERAL EXPENDITURES,PERSONNEL COMPENSATION,   ,   ,   ,BIEN CHRISTOPHER A,1/1/2017,1/2/2017,FLOOR ASSISTANT,266.67,2017,BIEN CHRISTOPHER A
,OFFICE OF THE MAJORITY LEADER,2017Q1,GENERAL EXPENDITURES,PERSONNEL COMPENSATION,   ,   ,   ,BUCHANAN NATALIE L,1/1/2017,1/2/2017,DIR OF MEMBER SERVICES,733.33,2017,BUCHANAN NATALIE L
,OFFICE OF THE MAJORITY LEADER,2017Q1,GENERAL EXPENDITURES,PERSONNEL COMPENSATION,   ,   ,   ,DIXON KELLY A.,1/1/2017,1/2/2017,DIR OF LEGISLATIVE OPERATIONS,177.78,2017,DIXON KELLY A.
,OFFICE OF THE MAJORITY LEADER,2017Q1,GENERAL EXPENDITURES,PERSONNEL COMPENSATION,   ,   ,   ,DRESSLER JEFFREY A,1/1/2017,1/2/2017,SENIOR POLICY ADVISOR,683.33,2017,DRESSLER JEFFREY A
,OFFICE OF THE MAJORITY LEADER,2017Q1,GENERAL EXPENDITURES,PERSONNEL COMPENSATION,   ,   ,   ,DUNHAM WILL,1/1/2017,1/2/2017,POLICY DIRECTOR,866.67,2017,DUNHAM WILL
,OFFICE OF THE MAJORITY LEADER,2017Q1,GENERAL EXPENDITURES,PERSONNEL COMPENSATION,   ,   ,   ,FLORIO JOHN A,1/1/2017,1/2/2017,DEPUTY PRESS SECRETARY,366.67,2017,FLORIO JOHN A
,OFFICE OF THE MAJORITY LEADER,2017Q1,GENERAL EXPENDITURES,PERSONNEL COMPENSATION,   ,   ,   ,GERZOF DEVIN A,1/1/2017,1/2/2017,STAFF ASSISTANT,166.67,2017,GERZOF DEVIN A
,OFFICE OF THE MAJORITY LEADER,2017Q1,GENERAL EXPENDITURES,PERSONNEL COMPENSATION,   ,   ,   ,GOURDIKIAN ALEXANDRA G,1/1/2017,1/2/2017,SCHEDULER,333.33,2017,GOURDIKIAN ALEXANDRA G
,OFFICE OF THE MAJORITY LEADER,2017Q1,GENERAL EXPENDITURES,PERSONNEL COMPENSATION,   ,   ,   ,HILL PRESTON W,1/1/2017,1/2/2017,SPECIAL ASSISTANT,200,2017,HILL PRESTON W
,OFFICE OF THE MAJORITY LEADER,2017Q1,GENERAL EXPENDITURES,PERSONNEL COMPENSATION,   ,   ,   ,HOWARD BENJAMIN R,1/1/2017,1/2/2017,DIRECTOR OF FLOOR OPERATIONS,666.67,2017,HOWARD BENJAMIN R
,OFFICE OF THE MAJORITY LEADER,2017Q1,GENERAL EXPENDITURES,PERSONNEL COMPENSATION,   ,   ,   ,KARR ELIZABETH B,1/1/2017,1/2/2017,DEPUTY CHIEF OF STAFF FOR POLI,950,2017,KARR ELIZABETH B
,OFFICE OF THE MAJORITY LEADER,2017Q1,GENERAL EXPENDITURES,PERSONNEL COMPENSATION,   ,   ,   ,KELLOGG MATTHEW B,1/1/2017,1/2/2017,SR POLICY ADVISOR  & COUNSEL,683.33,2017,KELLOGG MATTHEW B
,OFFICE OF THE MAJORITY LEADER,2017Q1,GENERAL EXPENDITURES,PERSONNEL COMPENSATION,   ,   ,   ,LEGANSKI JOHN G,1/1/2017,1/2/2017,DEPUTY DIRECTOR OF FLOOR OPERA,433.33,2017,LEGANSKI JOHN G
,OFFICE OF THE MAJORITY LEADER,2017Q1,GENERAL EXPENDITURES,PERSONNEL COMPENSATION,   ,   ,   ,LIRA MATHEW L,1/1/2017,1/2/2017,SENIOR ADVISOR,600,2017,LIRA MATHEW L
,OFFICE OF THE MAJORITY LEADER,2017Q1,GENERAL EXPENDITURES,PERSONNEL COMPENSATION,   ,   ,   ,LONG MICHAEL P,1/1/2017,1/2/2017,COMMUNICATIONS DIRECTOR,583.33,2017,LONG MICHAEL P
,OFFICE OF THE MAJORITY LEADER,2017Q1,GENERAL EXPENDITURES,PERSONNEL COMPENSATION,   ,   ,   ,MAHAN ROGER A,1/1/2017,1/2/2017,SENIOR POLICY ADVISOR,716.67,2017,MAHAN ROGER A
,OFFICE OF THE MAJORITY LEADER,2017Q1,GENERAL EXPENDITURES,PERSONNEL COMPENSATION,   ,   ,   ,MEYER KATHERINE R,1/1/2017,1/2/2017,SENIOR POLICY ADVISOR,733.33,2017,MEYER KATHERINE R
,OFFICE OF THE MAJORITY LEADER,2017Q1,GENERAL EXPENDITURES,PERSONNEL COMPENSATION,   ,   ,   ,MIN JAMES B.,1/1/2017,1/2/2017,DEPUTY CHIEF OF STAFF/COUNSEL,516.67,2017,MIN JAMES B.
,OFFICE OF THE MAJORITY LEADER,2017Q1,GENERAL EXPENDITURES,PERSONNEL COMPENSATION,   ,   ,   ,PETERSON SAGE E,1/1/2017,1/2/2017,SENIOR STAFF ASSISTANT,200,2017,PETERSON SAGE E
,OFFICE OF THE MAJORITY LEADER,2017Q1,GENERAL EXPENDITURES,PERSONNEL COMPENSATION,   ,   ,   ,SPARKS MATTHEW E,1/1/2017,1/2/2017,PRESS SECRETARY,466.67,2017,SPARKS MATTHEW E
,OFFICE OF THE MAJORITY LEADER,2017Q1,GENERAL EXPENDITURES,PERSONNEL COMPENSATION,   ,   ,   ,STIPICEVIC KRISTIN,1/1/2017,1/2/2017,EXECUTIVE ASSISTANT,283.33,2017,STIPICEVIC KRISTIN
,OFFICE OF THE MAJORITY LEADER,2017Q1,GENERAL EXPENDITURES,PERSONNEL COMPENSATION,   ,   ,   ,TORRES ALEC C,1/1/2017,1/2/2017,COMM ADVISOR & SPEECHWRITER,300,2017,TORRES ALEC C
,OFFICE OF THE MAJORITY LEADER,2017Q1,GENERAL EXPENDITURES,RENT  COMMUNICATION  UTILITIES,1/19/2017,AP,900647,CITI PCARD-USPS PO,11/29/2016,12/28/2016,POSTAGE / COURIER / BOX RENTAL,94,2016,CITI PCARD-USPS PO
,OFFICE OF THE MAJORITY LEADER,2017Q1,GENERAL EXPENDITURES,SUPPLIES AND MATERIALS,1/19/2017,AP,900647,CITI PCARD-CORNER BAKERY,11/29/2016,12/28/2016,FOOD & BEVERAGE,460.9,2016,CITI PCARD-CORNER BAKERY
,OFFICE OF THE MAJORITY LEADER,2017Q1,GENERAL EXPENDITURES,SUPPLIES AND MATERIALS,1/19/2017,AP,900647,CITI PCARD-FIRST CHOICE COFFEE SE,11/29/2016,12/28/2016,FOOD & BEVERAGE,601.2,2016,CITI PCARD-FIRST CHOICE COFFEE SE
,OFFICE OF THE MAJORITY LEADER,2017Q1,GENERAL EXPENDITURES,SUPPLIES AND MATERIALS,1/19/2017,AP,900647,CITI PCARD-FTP FINANCIAL TIMES,11/29/2016,12/28/2016,PUBLICATIONS/REFERENCE MAT'L,56.5,2016,CITI PCARD-FTP FINANCIAL TIMES
,OFFICE OF THE MAJORITY LEADER,2017Q1,GENERAL EXPENDITURES,SUPPLIES AND MATERIALS,1/19/2017,AP,900647,CITI PCARD-HARRIS TEETER,11/29/2016,12/28/2016,FOOD & BEVERAGE,35.87,2016,CITI PCARD-HARRIS TEETER
,OFFICE OF THE MAJORITY LEADER,2017Q1,GENERAL EXPENDITURES,SUPPLIES AND MATERIALS,1/19/2017,AP,900647,CITI PCARD-HARRISTEETER,11/29/2016,12/28/2016,FOOD & BEVERAGE,56.84,2016,CITI PCARD-HARRISTEETER
,OFFICE OF THE MAJORITY LEADER,2017Q1,GENERAL EXPENDITURES,SUPPLIES AND MATERIALS,1/20/2017,AP,900787,DEER PARK,12/31/2016,12/31/2016,WATER,101.36,2016,DEER PARK
,OFFICE OF THE MAJORITY LEADER,2017Q1,GENERAL EXPENDITURES,SUPPLIES AND MATERIALS,1/30/2017,AP,E0482306,READYREFRESH BY NESTLE,12/2/2016,12/26/2016,WATER,747.78,2016,READYREFRESH BY NESTLE
,OFFICE OF THE MAJORITY LEADER,2017Q1,GENERAL EXPENDITURES,SUPPLIES AND MATERIALS,1/31/2017,AP,E0482301,BLOOMBERG LP,1/1/2017,12/31/2017,PUBLICATIONS/REFERENCE MAT'L,5940,2017,BLOOMBERG LP
,OFFICE OF THE MAJORITY LEADER,2017Q1,GENERAL EXPENDITURES,SUPPLIES AND MATERIALS,2/15/2017,AP,E0487729,READYREFRESH BY NESTLE,12/27/2016,1/26/2017,WATER,245.92,2017,READYREFRESH BY NESTLE
,OFFICE OF THE MAJORITY LEADER,2017Q1,GENERAL EXPENDITURES,SUPPLIES AND MATERIALS,2/17/2017,AP,904174,CITI PCARD-NEW YORK TIMES DIGITAL,12/29/2016,1/2/2017,PUBLICATIONS/REFERENCE MAT'L,37.01,2017,CITI PCARD-NEW YORK TIMES DIGITAL
,OFFICE OF THE MAJORITY LEADER,2017Q1,GENERAL EXPENDITURES,SUPPLIES AND MATERIALS,2/17/2017,AP,904174,CITI PCARD-THEINFORMATION.COM,12/29/2016,1/2/2017,PUBLICATIONS/REFERENCE MAT'L,39,2017,CITI PCARD-THEINFORMATION.COM
,OFFICE OF THE MINORITY LEADER,2017Q1,GENERAL EXPENDITURES,PERSONNEL COMPENSATION,   ,   ,   ,AGUILAR JORGE A,1/3/2017,1/30/2017,PRESS SEC/DIR HISPANIC MEDIA,5833.33,2017,AGUILAR JORGE A
,OFFICE OF THE MINORITY LEADER,2017Q1,GENERAL EXPENDITURES,PERSONNEL COMPENSATION,   ,   ,   ,AGUILAR JORGE A,2/1/2017,3/31/2017,PRESS SEC/DIR HISPANIC MEDIA,12500,2017,AGUILAR JORGE A
,OFFICE OF THE MINORITY LEADER,2017Q1,GENERAL EXPENDITURES,PERSONNEL COMPENSATION,   ,   ,   ,ANDROFF BLAKE J,2/6/2017,3/31/2017,EXC DIR DEM POL & COMM CMTE,25208.33,2017,ANDROFF BLAKE J
,OFFICE OF THE MINORITY LEADER,2017Q1,GENERAL EXPENDITURES,PERSONNEL COMPENSATION,   ,   ,   ,BEHRINGER CAROLINE,1/3/2017,1/30/2017,DEPUTY COMMUNICATIONS DIRECTOR,10111.11,2017,BEHRINGER CAROLINE
,OFFICE OF THE MINORITY LEADER,2017Q1,GENERAL EXPENDITURES,PERSONNEL COMPENSATION,   ,   ,   ,BEHRINGER CAROLINE,2/1/2017,3/31/2017,DEPUTY COMMUNICATIONS DIRECTOR,21666.66,2017,BEHRINGER CAROLINE
,OFFICE OF THE MINORITY LEADER,2017Q1,GENERAL EXPENDITURES,PERSONNEL COMPENSATION,   ,   ,   ,BERRET EMILY C,1/3/2017,1/30/2017,SPECIAL ASST TO THE LEADER,5444.44,2017,BERRET EMILY C
,OFFICE OF THE MINORITY LEADER,2017Q1,GENERAL EXPENDITURES,PERSONNEL COMPENSATION,   ,   ,   ,BERRET EMILY C,2/1/2017,3/31/2017,SPECIAL ASST TO THE LEADER,11666.66,2017,BERRET EMILY C
,OFFICE OF THE MINORITY LEADER,2017Q1,GENERAL EXPENDITURES,PERSONNEL COMPENSATION,   ,   ,   ,BLOOM MICHAEL T.,1/3/2017,1/30/2017,SENIOR ADVISOR,8944.44,2017,BLOOM MICHAEL T.
,OFFICE OF THE MINORITY LEADER,2017Q1,GENERAL EXPENDITURES,PERSONNEL COMPENSATION,   ,   ,   ,BLOOM MICHAEL T.,2/1/2017,2/12/2017,SENIOR ADVISOR,3833.33,2017,BLOOM MICHAEL T.
,OFFICE OF THE MINORITY LEADER,2017Q1,GENERAL EXPENDITURES,PERSONNEL COMPENSATION,   ,   ,   ,BLOOM MICHAEL T.,2/1/2017,2/12/2017,SENIOR ADVISOR (OTHER COMPENSATION),9583.33,2017,BLOOM MICHAEL T.
,OFFICE OF THE MINORITY LEADER,2017Q1,GENERAL EXPENDITURES,PERSONNEL COMPENSATION,   ,   ,   ,CAPRON MARGARET W.,1/3/2017,1/30/2017,SENIOR ADV POLICY & COMM,10320.87,2017,CAPRON MARGARET W.
,OFFICE OF THE MINORITY LEADER,2017Q1,GENERAL EXPENDITURES,PERSONNEL COMPENSATION,   ,   ,   ,CAPRON MARGARET W.,2/1/2017,3/31/2017,SENIOR ADV POLICY & COMM,22116.16,2017,CAPRON MARGARET W.
,OFFICE OF THE MINORITY LEADER,2017Q1,GENERAL EXPENDITURES,PERSONNEL COMPENSATION,   ,   ,   ,CAYEA DEVAN W,1/3/2017,3/31/2017,DEPUTY DIRECTOR OF ADVANCE,15888.9,2017,CAYEA DEVAN W
,OFFICE OF THE MINORITY LEADER,2017Q1,GENERAL EXPENDITURES,PERSONNEL COMPENSATION,   ,   ,   ,CHERRY STEPHANIE,1/3/2017,1/30/2017,DIRECTOR OF MEDIA AFFAIRS,5588.26,2017,CHERRY STEPHANIE
,OFFICE OF THE MINORITY LEADER,2017Q1,GENERAL EXPENDITURES,PERSONNEL COMPENSATION,   ,   ,   ,CHERRY STEPHANIE,2/1/2017,3/31/2017,DIRECTOR OF MEDIA AFFAIRS,11974.84,2017,CHERRY STEPHANIE
,OFFICE OF THE MINORITY LEADER,2017Q1,GENERAL EXPENDITURES,PERSONNEL COMPENSATION,   ,   ,   ,CONNELLY HENRY V,1/3/2017,1/30/2017,DIRECTOR OF SPEECHWRITING,6611.11,2017,CONNELLY HENRY V
,OFFICE OF THE MINORITY LEADER,2017Q1,GENERAL EXPENDITURES,PERSONNEL COMPENSATION,   ,   ,   ,CONNELLY HENRY V,2/1/2017,3/31/2017,DIRECTOR OF SPEECHWRITING,14166.66,2017,CONNELLY HENRY V
,OFFICE OF THE MINORITY LEADER,2017Q1,GENERAL EXPENDITURES,PERSONNEL COMPENSATION,   ,   ,   ,DEGRAFF KENNETH B.,1/3/2017,3/31/2017,SENIOR POLICY ADVISOR,28111.1,2017,DEGRAFF KENNETH B.
,OFFICE OF THE MINORITY LEADER,2017Q1,GENERAL EXPENDITURES,PERSONNEL COMPENSATION,   ,   ,   ,DEVLIN PATRICK J.,1/3/2017,3/31/2017,COMMUNICATIONS DIRECTOR,30555.57,2017,DEVLIN PATRICK J.
,OFFICE OF THE MINORITY LEADER,2017Q1,GENERAL EXPENDITURES,PERSONNEL COMPENSATION,   ,   ,   ,DEWHIRST DIANE,1/3/2017,3/31/2017,DEPUTY CHIEF OF STAFF,42166.67,2017,DEWHIRST DIANE
,OFFICE OF THE MINORITY LEADER,2017Q1,GENERAL EXPENDITURES,PERSONNEL COMPENSATION,   ,   ,   ,EDMONSON ROBERT D,1/3/2017,1/30/2017,CHIEF OF STAFF,5444.44,2017,EDMONSON ROBERT D
,OFFICE OF THE MINORITY LEADER,2017Q1,GENERAL EXPENDITURES,PERSONNEL COMPENSATION,   ,   ,   ,EDMONSON ROBERT D,2/1/2017,3/31/2017,CHIEF OF STAFF,11666.66,2017,EDMONSON ROBERT D
,OFFICE OF THE MINORITY LEADER,2017Q1,GENERAL EXPENDITURES,PERSONNEL COMPENSATION,   ,   ,   ,ELSHAMI NADEAM,1/3/2017,3/31/2017,CHIEF OF STAFF,42166.67,2017,ELSHAMI NADEAM
,OFFICE OF THE MINORITY LEADER,2017Q1,GENERAL EXPENDITURES,PERSONNEL COMPENSATION,   ,   ,   ,ETIENNE ASHLEY D,3/10/2017,3/31/2017,COMM DIR/SENIOR ADVISOR,9625,2017,ETIENNE ASHLEY D
,OFFICE OF THE MINORITY LEADER,2017Q1,GENERAL EXPENDITURES,PERSONNEL COMPENSATION,   ,   ,   ,FISCHER JR ROBERT V.,1/3/2017,3/31/2017,ASST FLOOR CHIEF,42166.67,2017,FISCHER JR ROBERT V.
,OFFICE OF THE MINORITY LEADER,2017Q1,GENERAL EXPENDITURES,PERSONNEL COMPENSATION,   ,   ,   ,GIBSON DYLAN B,1/6/2017,3/31/2017,DIGITAL MANAGER,9444.44,2017,GIBSON DYLAN B
,OFFICE OF THE MINORITY LEADER,2017Q1,GENERAL EXPENDITURES,PERSONNEL COMPENSATION,   ,   ,   ,GIBSON DYLAN B,1/6/2017,2/28/2017,DIGITAL MANAGER (OVERTIME),2578.82,2017,GIBSON DYLAN B
,OFFICE OF THE MINORITY LEADER,2017Q1,GENERAL EXPENDITURES,PERSONNEL COMPENSATION,   ,   ,   ,GREENER APRIL L.,1/3/2017,3/31/2017,RESEARCH DIRECTOR,25666.67,2017,GREENER APRIL L.
,OFFICE OF THE MINORITY LEADER,2017Q1,GENERAL EXPENDITURES,PERSONNEL COMPENSATION,   ,   ,   ,GRIFFIN SAHARRA E,1/3/2017,1/6/2017,ASST TO THE EXECUTIVE OFFICE,366.67,2017,GRIFFIN SAHARRA E
,OFFICE OF THE MINORITY LEADER,2017Q1,GENERAL EXPENDITURES,PERSONNEL COMPENSATION,   ,   ,   ,GRIFFIN SAHARRA E,1/6/2017,1/30/2017,ASST TO THE EXECUTIVE OFFICE (OTHER COMPENSATION),458.33,2017,GRIFFIN SAHARRA E
,OFFICE OF THE MINORITY LEADER,2017Q1,GENERAL EXPENDITURES,PERSONNEL COMPENSATION,   ,   ,   ,GRIFFIN TAYLOR T,1/3/2017,1/30/2017,DEPUTY PRESS SECRETARY,3927.78,2017,GRIFFIN TAYLOR T
,OFFICE OF THE MINORITY LEADER,2017Q1,GENERAL EXPENDITURES,PERSONNEL COMPENSATION,   ,   ,   ,GRIFFIN TAYLOR T,2/1/2017,3/31/2017,DEPUTY PRESS SECRETARY,8416.66,2017,GRIFFIN TAYLOR T
,OFFICE OF THE MINORITY LEADER,2017Q1,GENERAL EXPENDITURES,PERSONNEL COMPENSATION,   ,   ,   ,HAMMILL ANDREW T.,1/3/2017,3/31/2017,DEPUTY CHIEF OF STAFF,42166.67,2017,HAMMILL ANDREW T.
,OFFICE OF THE MINORITY LEADER,2017Q1,GENERAL EXPENDITURES,PERSONNEL COMPENSATION,   ,   ,   ,HAYNES JR WILFRED J.,1/3/2017,3/31/2017,IT DIRECTOR,23985.37,2017,HAYNES JR WILFRED J.
,OFFICE OF THE MINORITY LEADER,2017Q1,GENERAL EXPENDITURES,PERSONNEL COMPENSATION,   ,   ,   ,HOLMES NATHANIEL J,1/3/2017,1/30/2017,DEPUTY DIRECTOR OF SCHEDULING,4394.44,2017,HOLMES NATHANIEL J
,OFFICE OF THE MINORITY LEADER,2017Q1,GENERAL EXPENDITURES,PERSONNEL COMPENSATION,   ,   ,   ,HOLMES NATHANIEL J,2/1/2017,3/31/2017,DEPUTY DIRECTOR OF SCHEDULING,9416.66,2017,HOLMES NATHANIEL J
,OFFICE OF THE MINORITY LEADER,2017Q1,GENERAL EXPENDITURES,PERSONNEL COMPENSATION,   ,   ,   ,KAPLAN EMMA L,1/3/2017,1/30/2017,MBR SERV ADVISER/SPECIAL ASST,4861.11,2017,KAPLAN EMMA L
,OFFICE OF THE MINORITY LEADER,2017Q1,GENERAL EXPENDITURES,PERSONNEL COMPENSATION,   ,   ,   ,KAPLAN EMMA L,2/1/2017,3/31/2017,MBR SERV ADVISER/SPECIAL ASST,10666.66,2017,KAPLAN EMMA L
,OFFICE OF THE MINORITY LEADER,2017Q1,GENERAL EXPENDITURES,PERSONNEL COMPENSATION,   ,   ,   ,KEATING ROSE M,1/3/2017,3/31/2017,ASST FLOOR MANAGER,30555.57,2017,KEATING ROSE M
,OFFICE OF THE MINORITY LEADER,2017Q1,GENERAL EXPENDITURES,PERSONNEL COMPENSATION,   ,   ,   ,KEITA KAMILAH Z,1/3/2017,3/31/2017,DEPUTY INFOMATION TECH. DIRECT,21787.83,2017,KEITA KAMILAH Z
,OFFICE OF THE MINORITY LEADER,2017Q1,GENERAL EXPENDITURES,PERSONNEL COMPENSATION,   ,   ,   ,KUHN ELENA M,1/23/2017,3/31/2017,PRESS ASSISTANT,6044.45,2017,KUHN ELENA M
,OFFICE OF THE MINORITY LEADER,2017Q1,GENERAL EXPENDITURES,PERSONNEL COMPENSATION,   ,   ,   ,KUHN ELENA M,1/23/2017,2/28/2017,PRESS ASSISTANT (OVERTIME),2405.74,2017,KUHN ELENA M
,OFFICE OF THE MINORITY LEADER,2017Q1,GENERAL EXPENDITURES,PERSONNEL COMPENSATION,   ,   ,   ,KUNDANIS GEORGE,1/3/2017,3/31/2017,DEPUTY CHIEF OF STAFF,42166.67,2017,KUNDANIS GEORGE
,OFFICE OF THE MINORITY LEADER,2017Q1,GENERAL EXPENDITURES,PERSONNEL COMPENSATION,   ,   ,   ,LEE SERYEUNG,1/3/2017,3/31/2017,SENIOR PRESS ASSISTANT,8555.57,2017,LEE SERYEUNG
,OFFICE OF THE MINORITY LEADER,2017Q1,GENERAL EXPENDITURES,PERSONNEL COMPENSATION,   ,   ,   ,LEE SERYEUNG,1/1/2017,2/28/2017,SENIOR PRESS ASSISTANT (OVERTIME),2738.55,2017,LEE SERYEUNG
,OFFICE OF THE MINORITY LEADER,2017Q1,GENERAL EXPENDITURES,PERSONNEL COMPENSATION,   ,   ,   ,LIZARRAGA JAIME E.,1/3/2017,3/31/2017,SR ADV & DIR OF MEMBER SVC,40240.93,2017,LIZARRAGA JAIME E.
,OFFICE OF THE MINORITY LEADER,2017Q1,GENERAL EXPENDITURES,PERSONNEL COMPENSATION,   ,   ,   ,LONG MICHAEL G,1/3/2017,1/30/2017,SENIOR ADVISOR,8944.44,2017,LONG MICHAEL G
,OFFICE OF THE MINORITY LEADER,2017Q1,GENERAL EXPENDITURES,PERSONNEL COMPENSATION,   ,   ,   ,LONG MICHAEL G,2/1/2017,3/31/2017,SENIOR ADVISOR,19166.66,2017,LONG MICHAEL G
,OFFICE OF THE MINORITY LEADER,2017Q1,GENERAL EXPENDITURES,PERSONNEL COMPENSATION,   ,   ,   ,MANGRUM PEARL J.,1/3/2017,1/30/2017,FINANCIAL ADMINISTRATOR,6572.22,2017,MANGRUM PEARL J.
,OFFICE OF THE MINORITY LEADER,2017Q1,GENERAL EXPENDITURES,PERSONNEL COMPENSATION,   ,   ,   ,MANGRUM PEARL J.,2/1/2017,3/31/2017,FINANCIAL ADMINISTRATOR,14083.34,2017,MANGRUM PEARL J.
,OFFICE OF THE MINORITY LEADER,2017Q1,GENERAL EXPENDITURES,PERSONNEL COMPENSATION,   ,   ,   ,MASON TAMIKA K,1/3/2017,3/31/2017,SR STAFF ASST SYS ADMIN,12222.23,2017,MASON TAMIKA K
,OFFICE OF THE MINORITY LEADER,2017Q1,GENERAL EXPENDITURES,PERSONNEL COMPENSATION,   ,   ,   ,MELTZER RICHARD,1/3/2017,3/31/2017,POLICY DIRECTOR,42166.67,2017,MELTZER RICHARD
,OFFICE OF THE MINORITY LEADER,2017Q1,GENERAL EXPENDITURES,PERSONNEL COMPENSATION,   ,   ,   ,MONGE KATHERINE S,1/3/2017,3/31/2017,SENIOR POLICY ADVISOR,36666.67,2017,MONGE KATHERINE S
,OFFICE OF THE MINORITY LEADER,2017Q1,GENERAL EXPENDITURES,PERSONNEL COMPENSATION,   ,   ,   ,PALMER ASHLI S,1/3/2017,3/31/2017,POLICY DIRECTOR,31777.77,2017,PALMER ASHLI S
,OFFICE OF THE MINORITY LEADER,2017Q1,GENERAL EXPENDITURES,PERSONNEL COMPENSATION,   ,   ,   ,PARKER WYNDEE R.,1/3/2017,3/31/2017,SENIOR POLICY ADVISOR,42166.67,2017,PARKER WYNDEE R.
,OFFICE OF THE MINORITY LEADER,2017Q1,GENERAL EXPENDITURES,PERSONNEL COMPENSATION,   ,   ,   ,PFEIFFER AMY M,1/3/2017,3/31/2017,SENIOR ADVISOR,24444.43,2017,PFEIFFER AMY M
,OFFICE OF THE MINORITY LEADER,2017Q1,GENERAL EXPENDITURES,PERSONNEL COMPENSATION,   ,   ,   ,POLZIN SAVANNAH J,1/13/2017,3/31/2017,ASST TO THE EXECUTIVE OFFICE,7475,2017,POLZIN SAVANNAH J
,OFFICE OF THE MINORITY LEADER,2017Q1,GENERAL EXPENDITURES,PERSONNEL COMPENSATION,   ,   ,   ,POLZIN SAVANNAH J,1/13/2017,2/28/2017,ASST TO THE EXECUTIVE OFFICE (OVERTIME),2400.87,2017,POLZIN SAVANNAH J
,OFFICE OF THE MINORITY LEADER,2017Q1,GENERAL EXPENDITURES,PERSONNEL COMPENSATION,   ,   ,   ,POWELL LATRICE S,1/3/2017,3/31/2017,ASSISTANT CLOAKROOM MANAGER,26888.9,2017,POWELL LATRICE S
,OFFICE OF THE MINORITY LEADER,2017Q1,GENERAL EXPENDITURES,PERSONNEL COMPENSATION,   ,   ,   ,PRICE REVA B.,1/3/2017,1/30/2017,OUTREACH DIRECTOR & ADVISOR,9931.99,2017,PRICE REVA B.
,OFFICE OF THE MINORITY LEADER,2017Q1,GENERAL EXPENDITURES,PERSONNEL COMPENSATION,   ,   ,   ,PRICE REVA B.,2/1/2017,3/31/2017,OUTREACH DIRECTOR & ADVISOR,21282.84,2017,PRICE REVA B.
,OFFICE OF THE MINORITY LEADER,2017Q1,GENERAL EXPENDITURES,PERSONNEL COMPENSATION,   ,   ,   ,PRIMUS WENDELL E.,1/3/2017,3/31/2017,SENIOR POLICY ADVISOR,42166.67,2017,PRIMUS WENDELL E.
,OFFICE OF THE MINORITY LEADER,2017Q1,GENERAL EXPENDITURES,PERSONNEL COMPENSATION,   ,   ,   ,ROBINSON MALAIKA,1/3/2017,3/31/2017,DEP DIR OF SPEECHWRITING,15888.9,2017,ROBINSON MALAIKA
,OFFICE OF THE MINORITY LEADER,2017Q1,GENERAL EXPENDITURES,PERSONNEL COMPENSATION,   ,   ,   ,ROCHELLE COURTNEY E,1/3/2017,3/31/2017,DISTRICT SCHEDULER/EXEC ASSIST,4888.9,2017,ROCHELLE COURTNEY E
,OFFICE OF THE MINORITY LEADER,2017Q1,GENERAL EXPENDITURES,PERSONNEL COMPENSATION,   ,   ,   ,SMITH KELSEY L,1/3/2017,1/30/2017,DIR. OF SCHEDULING & ADVANCE,7000,2017,SMITH KELSEY L
,OFFICE OF THE MINORITY LEADER,2017Q1,GENERAL EXPENDITURES,PERSONNEL COMPENSATION,   ,   ,   ,SMITH KELSEY L,2/1/2017,3/31/2017,DIR. OF SCHEDULING & ADVANCE,15000,2017,SMITH KELSEY L
,OFFICE OF THE MINORITY LEADER,2017Q1,GENERAL EXPENDITURES,PERSONNEL COMPENSATION,   ,   ,   ,STERN KEITH L.,1/3/2017,3/31/2017,DIRECTOR OF FLOOR OPERATIONS,39111.1,2017,STERN KEITH L.
,OFFICE OF THE MINORITY LEADER,2017Q1,GENERAL EXPENDITURES,PERSONNEL COMPENSATION,   ,   ,   ,SURGEON BINA G,1/3/2017,1/30/2017,SPECIAL ASST TO THE LEADER,8555.56,2017,SURGEON BINA G
,OFFICE OF THE MINORITY LEADER,2017Q1,GENERAL EXPENDITURES,PERSONNEL COMPENSATION,   ,   ,   ,SURGEON BINA G,2/1/2017,3/31/2017,SPECIAL ASST TO THE LEADER,18333.34,2017,SURGEON BINA G
,OFFICE OF THE MINORITY LEADER,2017Q1,GENERAL EXPENDITURES,PERSONNEL COMPENSATION,   ,   ,   ,TECKLENBURG MICHAEL H.,1/3/2017,3/31/2017,COUNSEL,31777.77,2017,TECKLENBURG MICHAEL H.
,OFFICE OF THE MINORITY LEADER,2017Q1,GENERAL EXPENDITURES,PERSONNEL COMPENSATION,   ,   ,   ,WATKINS YELBERTON R.,1/3/2017,3/31/2017,CHIEF OF STAFF,40333.33,2017,WATKINS YELBERTON R.
,OFFICE OF THE MINORITY LEADER,2017Q1,GENERAL EXPENDITURES,PERSONNEL COMPENSATION,   ,   ,   ,WEST JULIUS L,1/3/2017,1/30/2017,ADVISER  MEMBER SERVICES,5600,2017,WEST JULIUS L
,OFFICE OF THE MINORITY LEADER,2017Q1,GENERAL EXPENDITURES,PERSONNEL COMPENSATION,   ,   ,   ,WEST JULIUS L,2/1/2017,3/31/2017,ADVISER MEMBER SERVICES,12000,2017,WEST JULIUS L
,OFFICE OF THE MINORITY LEADER,2017Q1,GENERAL EXPENDITURES,PERSONNEL COMPENSATION,   ,   ,   ,WOLTERS KATE,1/3/2017,3/31/2017,DIRECTOR OF PROTOCOL,35098.8,2017,WOLTERS KATE
,OFFICE OF THE MINORITY LEADER,2017Q1,GENERAL EXPENDITURES,PERSONNEL COMPENSATION,   ,   ,   ,YORK JEMMA D,3/16/2017,3/31/2017,PRESS ADVISOR,2500,2017,YORK JEMMA D
,OFFICE OF THE MINORITY LEADER,2017Q1,GENERAL EXPENDITURES,TRAVEL,2/3/2017,AP,E0484051,GRIFFIN TAYLOR T.,1/5/2017,1/9/2017,MEALS,118.09,2017,GRIFFIN TAYLOR T.
,OFFICE OF THE MINORITY LEADER,2017Q1,GENERAL EXPENDITURES,TRAVEL,2/3/2017,AP,E0484051,GRIFFIN TAYLOR T.,1/9/2017,1/9/2017,TAXI/PARKING/TOLLS,22,2017,GRIFFIN TAYLOR T.
,OFFICE OF THE MINORITY LEADER,2017Q1,GENERAL EXPENDITURES,TRAVEL,2/3/2017,AP,E0484052,KAPLAN EMMA L.,1/20/2017,1/20/2017,TAXI/PARKING/TOLLS,13.52,2017,KAPLAN EMMA L.
,OFFICE OF THE MINORITY LEADER,2017Q1,GENERAL EXPENDITURES,TRAVEL,2/3/2017,AP,E0484052,KAPLAN EMMA L.,1/23/2017,1/23/2017,TAXI/PARKING/TOLLS,13,2017,KAPLAN EMMA L.
,OFFICE OF THE MINORITY LEADER,2017Q1,GENERAL EXPENDITURES,TRAVEL,2/3/2017,AP,E0484052,KAPLAN EMMA L.,1/24/2017,1/24/2017,TAXI/PARKING/TOLLS,8.52,2017,KAPLAN EMMA L.
,OFFICE OF THE MINORITY LEADER,2017Q1,GENERAL EXPENDITURES,TRAVEL,2/3/2017,AP,E0484053,KAPLAN EMMA L.,1/3/2017,1/3/2017,TAXI/PARKING/TOLLS,12.4,2017,KAPLAN EMMA L.
,OFFICE OF THE MINORITY LEADER,2017Q1,GENERAL EXPENDITURES,TRAVEL,2/3/2017,AP,E0484053,KAPLAN EMMA L.,1/11/2017,1/11/2017,TAXI/PARKING/TOLLS,9.71,2017,KAPLAN EMMA L.
,OFFICE OF THE MINORITY LEADER,2017Q1,GENERAL EXPENDITURES,TRAVEL,2/3/2017,AP,E0484053,KAPLAN EMMA L.,1/15/2017,1/15/2017,TAXI/PARKING/TOLLS,7.92,2017,KAPLAN EMMA L.
,OFFICE OF THE MINORITY LEADER,2017Q1,GENERAL EXPENDITURES,TRAVEL,2/3/2017,AP,E0484058,PRIMUS WENDELL E.,1/8/2017,1/9/2017,LODGING,313.32,2017,PRIMUS WENDELL E.
,OFFICE OF THE MINORITY LEADER,2017Q1,GENERAL EXPENDITURES,TRAVEL,2/3/2017,AP,E0484058,PRIMUS WENDELL E.,1/9/2017,1/9/2017,MEALS,8.25,2017,PRIMUS WENDELL E.
,OFFICE OF THE MINORITY LEADER,2017Q1,GENERAL EXPENDITURES,TRAVEL,2/3/2017,AP,E0484058,PRIMUS WENDELL E.,1/8/2017,1/8/2017,TAXI/PARKING/TOLLS,11.8,2017,PRIMUS WENDELL E.
,OFFICE OF THE MINORITY LEADER,2017Q1,GENERAL EXPENDITURES,TRAVEL,2/3/2017,AP,E0484058,PRIMUS WENDELL E.,1/9/2017,1/9/2017,TAXI/PARKING/TOLLS,12.3,2017,PRIMUS WENDELL E.
,OFFICE OF THE MINORITY LEADER,2017Q1,GENERAL EXPENDITURES,TRAVEL,2/6/2017,AP,E0484048,POLZIN SAVANNAH J.,1/23/2017,1/23/2017,TAXI/PARKING/TOLLS,27.08,2017,POLZIN SAVANNAH J.
,OFFICE OF THE MINORITY LEADER,2017Q1,GENERAL EXPENDITURES,TRAVEL,2/10/2017,AP,E0485809,HAMMILL ANDREW T.,1/31/2017,2/1/2017,LODGING,392.51,2017,HAMMILL ANDREW T.
,OFFICE OF THE MINORITY LEADER,2017Q1,GENERAL EXPENDITURES,TRAVEL,2/10/2017,AP,E0485809,HAMMILL ANDREW T.,1/31/2017,2/1/2017,MEALS,77.75,2017,HAMMILL ANDREW T.
,OFFICE OF THE MINORITY LEADER,2017Q1,GENERAL EXPENDITURES,TRAVEL,2/10/2017,AP,E0485816,POLZIN SAVANNAH J.,1/31/2017,1/31/2017,TAXI/PARKING/TOLLS,29.95,2017,POLZIN SAVANNAH J.
,OFFICE OF THE MINORITY LEADER,2017Q1,GENERAL EXPENDITURES,TRAVEL,2/16/2017,AP,E0488390,CITIBANK GOV CARD SERVICE,1/23/2017,1/23/2017,COMMERCIAL TRANSPORTATION,106,2017,CITIBANK GOV CARD SERVICE
,OFFICE OF THE MINORITY LEADER,2017Q1,GENERAL EXPENDITURES,TRAVEL,2/16/2017,AP,E0488390,CITIBANK GOV CARD SERVICE,1/25/2017,1/26/2017,COMMERCIAL TRANSPORTATION,298.4,2017,CITIBANK GOV CARD SERVICE
,OFFICE OF THE MINORITY LEADER,2017Q1,GENERAL EXPENDITURES,TRAVEL,2/16/2017,AP,E0488390,CITIBANK GOV CARD SERVICE,1/24/2017,1/24/2017,MEALS,41.73,2017,CITIBANK GOV CARD SERVICE
,OFFICE OF THE MINORITY LEADER,2017Q1,GENERAL EXPENDITURES,TRAVEL,2/16/2017,AP,E0488390,CITIBANK GOV CARD SERVICE,1/25/2017,1/25/2017,MEALS,9.1,2017,CITIBANK GOV CARD SERVICE
,OFFICE OF THE MINORITY LEADER,2017Q1,GENERAL EXPENDITURES,TRAVEL,2/16/2017,AP,E0488390,CITIBANK GOV CARD SERVICE,1/26/2017,1/26/2017,MEALS,6.18,2017,CITIBANK GOV CARD SERVICE
,OFFICE OF THE MINORITY LEADER,2017Q1,GENERAL EXPENDITURES,TRAVEL,2/16/2017,AP,E0488390,CITIBANK GOV CARD SERVICE,1/24/2017,1/24/2017,TAXI/PARKING/TOLLS,71.11,2017,CITIBANK GOV CARD SERVICE
,OFFICE OF THE MINORITY LEADER,2017Q1,GENERAL EXPENDITURES,TRAVEL,2/17/2017,AP,E0488379,CITIBANK GOV CARD SERVICE,1/11/2017,1/11/2017,COMMERCIAL TRANSPORTATION,125.2,2017,CITIBANK GOV CARD SERVICE
,OFFICE OF THE MINORITY LEADER,2017Q1,GENERAL EXPENDITURES,TRAVEL,2/17/2017,AP,E0488379,CITIBANK GOV CARD SERVICE,1/16/2017,1/16/2017,COMMERCIAL TRANSPORTATION,565.6,2017,CITIBANK GOV CARD SERVICE
,OFFICE OF THE MINORITY LEADER,2017Q1,GENERAL EXPENDITURES,TRAVEL,2/17/2017,AP,E0488379,CITIBANK GOV CARD SERVICE,1/31/2017,1/31/2017,COMMERCIAL TRANSPORTATION,119.2,2017,CITIBANK GOV CARD SERVICE
,OFFICE OF THE MINORITY LEADER,2017Q1,GENERAL EXPENDITURES,TRAVEL,2/17/2017,AP,E0488379,CITIBANK GOV CARD SERVICE,2/1/2017,2/1/2017,COMMERCIAL TRANSPORTATION,119.2,2017,CITIBANK GOV CARD SERVICE
,OFFICE OF THE MINORITY LEADER,2017Q1,GENERAL EXPENDITURES,TRAVEL,2/17/2017,AP,E0488384,CAYEA DEVAN W.,1/25/2017,2/2/2017,TAXI/PARKING/TOLLS,47.52,2017,CAYEA DEVAN W.
,OFFICE OF THE MINORITY LEADER,2017Q1,GENERAL EXPENDITURES,TRAVEL,2/17/2017,AP,E0488387,AGUILAR JORGE A.,1/16/2017,1/16/2017,COMMERCIAL TRANSPORTATION,25,2017,AGUILAR JORGE A.
,OFFICE OF THE MINORITY LEADER,2017Q1,GENERAL EXPENDITURES,TRAVEL,2/17/2017,AP,E0488387,AGUILAR JORGE A.,1/25/2017,1/31/2017,TAXI/PARKING/TOLLS,104.2,2017,AGUILAR JORGE A.
,OFFICE OF THE MINORITY LEADER,2017Q1,GENERAL EXPENDITURES,TRAVEL,2/17/2017,AP,E0488389,CITIBANK GOV CARD SERVICE,1/16/2017,1/16/2017,COMMERCIAL TRANSPORTATION,565.6,2017,CITIBANK GOV CARD SERVICE
,OFFICE OF THE MINORITY LEADER,2017Q1,GENERAL EXPENDITURES,TRAVEL,2/17/2017,AP,E0488392,CITIBANK GOV CARD SERVICE,1/8/2017,1/8/2017,COMMERCIAL TRANSPORTATION,326,2017,CITIBANK GOV CARD SERVICE
,OFFICE OF THE MINORITY LEADER,2017Q1,GENERAL EXPENDITURES,TRAVEL,2/17/2017,AP,E0488392,CITIBANK GOV CARD SERVICE,1/25/2017,1/25/2017,COMMERCIAL TRANSPORTATION,88.2,2017,CITIBANK GOV CARD SERVICE
,OFFICE OF THE MINORITY LEADER,2017Q1,GENERAL EXPENDITURES,TRAVEL,2/17/2017,AP,E0488392,CITIBANK GOV CARD SERVICE,1/27/2017,1/27/2017,COMMERCIAL TRANSPORTATION,118.2,2017,CITIBANK GOV CARD SERVICE
,OFFICE OF THE MINORITY LEADER,2017Q1,GENERAL EXPENDITURES,TRAVEL,2/17/2017,AP,E0488392,CITIBANK GOV CARD SERVICE,1/26/2017,1/26/2017,MEALS,17.97,2017,CITIBANK GOV CARD SERVICE
,OFFICE OF THE MINORITY LEADER,2017Q1,GENERAL EXPENDITURES,TRAVEL,2/17/2017,AP,E0488394,CITIBANK GOV CARD SERVICE,1/5/2017,1/8/2017,COMMERCIAL TRANSPORTATION,454.4,2017,CITIBANK GOV CARD SERVICE
,OFFICE OF THE MINORITY LEADER,2017Q1,GENERAL EXPENDITURES,TRAVEL,2/17/2017,AP,E0488394,CITIBANK GOV CARD SERVICE,1/5/2017,1/5/2017,TAXI/PARKING/TOLLS,45.44,2017,CITIBANK GOV CARD SERVICE
,OFFICE OF THE MINORITY LEADER,2017Q1,GENERAL EXPENDITURES,TRAVEL,2/17/2017,AP,E0488394,CITIBANK GOV CARD SERVICE,1/6/2017,1/6/2017,TAXI/PARKING/TOLLS,30.68,2017,CITIBANK GOV CARD SERVICE
,OFFICE OF THE MINORITY LEADER,2017Q1,GENERAL EXPENDITURES,TRAVEL,2/17/2017,AP,E0488394,CITIBANK GOV CARD SERVICE,1/7/2017,1/7/2017,TAXI/PARKING/TOLLS,17.19,2017,CITIBANK GOV CARD SERVICE
,OFFICE OF THE MINORITY LEADER,2017Q1,GENERAL EXPENDITURES,TRAVEL,2/17/2017,AP,E0488394,CITIBANK GOV CARD SERVICE,1/9/2017,1/9/2017,TAXI/PARKING/TOLLS,47.53,2017,CITIBANK GOV CARD SERVICE
,OFFICE OF THE MINORITY LEADER,2017Q1,GENERAL EXPENDITURES,TRAVEL,3/4/2017,AP,E0494013,CITIBANK GOV CARD SERVICE,1/29/2017,2/3/2017,COMMERCIAL TRANSPORTATION,705,2017,CITIBANK GOV CARD SERVICE
,OFFICE OF THE MINORITY LEADER,2017Q1,GENERAL EXPENDITURES,TRAVEL,3/4/2017,AP,E0494013,CITIBANK GOV CARD SERVICE,1/31/2017,2/1/2017,LODGING,599.81,2017,CITIBANK GOV CARD SERVICE
,OFFICE OF THE MINORITY LEADER,2017Q1,GENERAL EXPENDITURES,TRAVEL,3/4/2017,AP,E0494013,CITIBANK GOV CARD SERVICE,1/26/2017,2/1/2017,MEALS,47.71,2017,CITIBANK GOV CARD SERVICE
,OFFICE OF THE MINORITY LEADER,2017Q1,GENERAL EXPENDITURES,TRAVEL,3/4/2017,AP,E0494013,CITIBANK GOV CARD SERVICE,1/29/2017,2/7/2017,TAXI/PARKING/TOLLS,135.69,2017,CITIBANK GOV CARD SERVICE
,OFFICE OF THE MINORITY LEADER,2017Q1,GENERAL EXPENDITURES,TRAVEL,3/7/2017,AP,E0493228,CITIBANK GOV CARD SERVICE,1/16/2017,1/16/2017,COMMERCIAL TRANSPORTATION,293.4,2017,CITIBANK GOV CARD SERVICE
,OFFICE OF THE MINORITY LEADER,2017Q1,GENERAL EXPENDITURES,TRAVEL,3/7/2017,AP,E0493228,CITIBANK GOV CARD SERVICE,1/25/2017,1/26/2017,COMMERCIAL TRANSPORTATION,206.4,2017,CITIBANK GOV CARD SERVICE
,OFFICE OF THE MINORITY LEADER,2017Q1,GENERAL EXPENDITURES,TRAVEL,3/7/2017,AP,E0493228,CITIBANK GOV CARD SERVICE,1/16/2017,1/16/2017,MEALS,21.25,2017,CITIBANK GOV CARD SERVICE
,OFFICE OF THE MINORITY LEADER,2017Q1,GENERAL EXPENDITURES,TRAVEL,3/7/2017,AP,E0493228,CITIBANK GOV CARD SERVICE,1/25/2017,1/25/2017,MEALS,12.14,2017,CITIBANK GOV CARD SERVICE
,OFFICE OF THE MINORITY LEADER,2017Q1,GENERAL EXPENDITURES,TRAVEL,3/7/2017,AP,E0493228,CITIBANK GOV CARD SERVICE,1/26/2017,1/26/2017,MEALS,3.04,2017,CITIBANK GOV CARD SERVICE
,OFFICE OF THE MINORITY LEADER,2017Q1,GENERAL EXPENDITURES,TRAVEL,3/7/2017,AP,E0493228,CITIBANK GOV CARD SERVICE,1/16/2017,1/16/2017,TAXI/PARKING/TOLLS,47.85,2017,CITIBANK GOV CARD SERVICE
,OFFICE OF THE MINORITY LEADER,2017Q1,GENERAL EXPENDITURES,TRAVEL,3/7/2017,AP,E0493228,CITIBANK GOV CARD SERVICE,1/17/2017,1/17/2017,TAXI/PARKING/TOLLS,84.2,2017,CITIBANK GOV CARD SERVICE
,OFFICE OF THE MINORITY LEADER,2017Q1,GENERAL EXPENDITURES,TRAVEL,3/7/2017,AP,E0493229,POLZIN SAVANNAH J.,2/25/2017,2/27/2017,TAXI/PARKING/TOLLS,32.17,2017,POLZIN SAVANNAH J.
,OFFICE OF THE MINORITY LEADER,2017Q1,GENERAL EXPENDITURES,TRAVEL,3/7/2017,AP,E0493231,KAPLAN EMMA L.,2/2/2017,2/17/2017,TAXI/PARKING/TOLLS,38.15,2017,KAPLAN EMMA L.
,OFFICE OF THE MINORITY LEADER,2017Q1,GENERAL EXPENDITURES,TRAVEL,3/15/2017,AP,E0496014,SURGEON BINA G,1/15/2017,1/26/2017,TAXI/PARKING/TOLLS,63.78,2017,SURGEON BINA G
,OFFICE OF THE MINORITY LEADER,2017Q1,GENERAL EXPENDITURES,TRAVEL,3/15/2017,AP,E0496015,SMITH KELSEY L.,2/17/2017,3/28/2017,TAXI/PARKING/TOLLS,52.04,2017,SMITH KELSEY L.
,OFFICE OF THE MINORITY LEADER,2017Q1,GENERAL EXPENDITURES,TRAVEL,3/15/2017,AP,E0496016,GRIFFIN TAYLOR T.,2/17/2017,2/19/2017,MEALS,125.92,2017,GRIFFIN TAYLOR T.
,OFFICE OF THE MINORITY LEADER,2017Q1,GENERAL EXPENDITURES,TRAVEL,3/15/2017,AP,E0496016,GRIFFIN TAYLOR T.,2/18/2017,2/20/2017,PRIVATE AUTO MILEAGE,34.54,2017,GRIFFIN TAYLOR T.
,OFFICE OF THE MINORITY LEADER,2017Q1,GENERAL EXPENDITURES,TRAVEL,3/15/2017,AP,E0496016,GRIFFIN TAYLOR T.,2/18/2017,2/20/2017,TAXI/PARKING/TOLLS,9,2017,GRIFFIN TAYLOR T.
,OFFICE OF THE MINORITY LEADER,2017Q1,GENERAL EXPENDITURES,TRAVEL,3/15/2017,AP,E0496017,LIZARRAGA JAIME E.,2/22/2017,2/24/2017,LODGING,416.4,2017,LIZARRAGA JAIME E.
,OFFICE OF THE MINORITY LEADER,2017Q1,GENERAL EXPENDITURES,TRAVEL,3/15/2017,AP,E0496017,LIZARRAGA JAIME E.,2/22/2017,2/24/2017,MEALS,134.9,2017,LIZARRAGA JAIME E.
,OFFICE OF THE MINORITY LEADER,2017Q1,GENERAL EXPENDITURES,TRAVEL,3/15/2017,AP,E0496017,LIZARRAGA JAIME E.,2/22/2017,2/24/2017,TAXI/PARKING/TOLLS,136.3,2017,LIZARRAGA JAIME E.
,OFFICE OF THE MINORITY LEADER,2017Q1,GENERAL EXPENDITURES,TRAVEL,3/15/2017,AP,E0496019,CITIBANK GOV CARD SERVICE,1/29/2017,2/1/2017,COMMERCIAL TRANSPORTATION,381.8,2017,CITIBANK GOV CARD SERVICE
,OFFICE OF THE MINORITY LEADER,2017Q1,GENERAL EXPENDITURES,TRAVEL,3/15/2017,AP,E0496019,CITIBANK GOV CARD SERVICE,1/25/2017,1/31/2017,LODGING,483.35,2017,CITIBANK GOV CARD SERVICE
,OFFICE OF THE MINORITY LEADER,2017Q1,GENERAL EXPENDITURES,TRAVEL,3/15/2017,AP,E0496019,CITIBANK GOV CARD SERVICE,1/26/2017,1/31/2017,MEALS,82.78,2017,CITIBANK GOV CARD SERVICE
,OFFICE OF THE MINORITY LEADER,2017Q1,GENERAL EXPENDITURES,TRAVEL,3/15/2017,AP,E0496019,CITIBANK GOV CARD SERVICE,1/24/2017,1/26/2017,CAR RENTAL,222.04,2017,CITIBANK GOV CARD SERVICE
,OFFICE OF THE MINORITY LEADER,2017Q1,GENERAL EXPENDITURES,TRAVEL,3/15/2017,AP,E0496019,CITIBANK GOV CARD SERVICE,1/26/2017,2/27/2017,TAXI/PARKING/TOLLS,131.38,2017,CITIBANK GOV CARD SERVICE
,OFFICE OF THE MINORITY LEADER,2017Q1,GENERAL EXPENDITURES,TRAVEL,3/15/2017,AP,E0496020,CITIBANK GOV CARD SERVICE,1/31/2017,2/24/2017,COMMERCIAL TRANSPORTATION,2251.6,2017,CITIBANK GOV CARD SERVICE
,OFFICE OF THE MINORITY LEADER,2017Q1,GENERAL EXPENDITURES,TRAVEL,3/15/2017,AP,E0496020,CITIBANK GOV CARD SERVICE,2/10/2017,2/12/2017,LODGING,716.08,2017,CITIBANK GOV CARD SERVICE
,OFFICE OF THE MINORITY LEADER,2017Q1,GENERAL EXPENDITURES,TRAVEL,3/15/2017,AP,E0496020,CITIBANK GOV CARD SERVICE,2/10/2017,2/12/2017,MEALS,67.27,2017,CITIBANK GOV CARD SERVICE
,OFFICE OF THE MINORITY LEADER,2017Q1,GENERAL EXPENDITURES,TRAVEL,3/15/2017,AP,E0496020,CITIBANK GOV CARD SERVICE,2/10/2017,2/20/2017,TAXI/PARKING/TOLLS,224.96,2017,CITIBANK GOV CARD SERVICE
,OFFICE OF THE MINORITY LEADER,2017Q1,GENERAL EXPENDITURES,TRAVEL,3/16/2017,AP,E0496456,CITIBANK GOV CARD SERVICE,2/25/2017,2/25/2017,COMMERCIAL TRANSPORTATION,345,2017,CITIBANK GOV CARD SERVICE
,OFFICE OF THE MINORITY LEADER,2017Q1,GENERAL EXPENDITURES,TRAVEL,3/16/2017,AP,E0496456,CITIBANK GOV CARD SERVICE,1/31/2017,2/26/2017,LODGING,711.58,2017,CITIBANK GOV CARD SERVICE
,OFFICE OF THE MINORITY LEADER,2017Q1,GENERAL EXPENDITURES,TRAVEL,3/16/2017,AP,E0496456,CITIBANK GOV CARD SERVICE,1/31/2017,2/26/2017,MEALS,132.39,2017,CITIBANK GOV CARD SERVICE
,OFFICE OF THE MINORITY LEADER,2017Q1,GENERAL EXPENDITURES,TRAVEL,3/16/2017,AP,E0496456,CITIBANK GOV CARD SERVICE,2/25/2017,2/26/2017,TAXI/PARKING/TOLLS,23.52,2017,CITIBANK GOV CARD SERVICE
,OFFICE OF THE MINORITY LEADER,2017Q1,GENERAL EXPENDITURES,TRAVEL,3/16/2017,AP,E0496457,KAPLAN EMMA L.,2/25/2017,2/25/2017,TAXI/PARKING/TOLLS,22.31,2017,KAPLAN EMMA L.
,OFFICE OF THE MINORITY LEADER,2017Q1,GENERAL EXPENDITURES,TRAVEL,3/16/2017,AP,E0496457,KAPLAN EMMA L.,2/25/2017,3/1/2017,TAXI/PARKING/TOLLS,24.67,2017,KAPLAN EMMA L.
,OFFICE OF THE MINORITY LEADER,2017Q1,GENERAL EXPENDITURES,TRAVEL,3/16/2017,AP,E0496458,CITIBANK GOV CARD SERVICE,1/26/2017,1/26/2017,COMMERCIAL TRANSPORTATION,248.2,2017,CITIBANK GOV CARD SERVICE
,OFFICE OF THE MINORITY LEADER,2017Q1,GENERAL EXPENDITURES,TRAVEL,3/16/2017,AP,E0496458,CITIBANK GOV CARD SERVICE,1/27/2017,1/27/2017,COMMERCIAL TRANSPORTATION,-88.2,2017,CITIBANK GOV CARD SERVICE
,OFFICE OF THE MINORITY LEADER,2017Q1,GENERAL EXPENDITURES,TRAVEL,3/16/2017,AP,E0496458,CITIBANK GOV CARD SERVICE,1/25/2017,1/26/2017,LODGING,460.13,2017,CITIBANK GOV CARD SERVICE
,OFFICE OF THE MINORITY LEADER,2017Q1,GENERAL EXPENDITURES,TRAVEL,3/16/2017,AP,E0496458,CITIBANK GOV CARD SERVICE,1/25/2017,1/26/2017,MEALS,51.55,2017,CITIBANK GOV CARD SERVICE
,OFFICE OF THE MINORITY LEADER,2017Q1,GENERAL EXPENDITURES,TRAVEL,3/16/2017,AP,E0496519,CITIBANK GOV CARD SERVICE,1/11/2017,1/11/2017,COMMERCIAL TRANSPORTATION,-125.2,2017,CITIBANK GOV CARD SERVICE
,OFFICE OF THE MINORITY LEADER,2017Q1,GENERAL EXPENDITURES,TRAVEL,3/16/2017,AP,E0496519,CITIBANK GOV CARD SERVICE,2/12/2017,2/12/2017,COMMERCIAL TRANSPORTATION,298.2,2017,CITIBANK GOV CARD SERVICE
,OFFICE OF THE MINORITY LEADER,2017Q1,GENERAL EXPENDITURES,TRAVEL,3/16/2017,AP,E0496519,CITIBANK GOV CARD SERVICE,2/17/2017,2/17/2017,COMMERCIAL TRANSPORTATION,-220.2,2017,CITIBANK GOV CARD SERVICE
,OFFICE OF THE MINORITY LEADER,2017Q1,GENERAL EXPENDITURES,TRAVEL,3/22/2017,AP,E0498289,POLZIN SAVANNAH J.,1/19/2017,2/14/2017,TAXI/PARKING/TOLLS,57.16,2017,POLZIN SAVANNAH J.
,OFFICE OF THE MINORITY LEADER,2017Q1,GENERAL EXPENDITURES,TRAVEL,3/23/2017,AP,E0498732,PRICE REVA B.,3/12/2017,3/13/2017,COMMERCIAL TRANSPORTATION,542.4,2017,PRICE REVA B.
,OFFICE OF THE MINORITY LEADER,2017Q1,GENERAL EXPENDITURES,TRAVEL,3/23/2017,AP,E0498732,PRICE REVA B.,3/12/2017,3/13/2017,LODGING,279.03,2017,PRICE REVA B.
,OFFICE OF THE MINORITY LEADER,2017Q1,GENERAL EXPENDITURES,TRAVEL,3/23/2017,AP,E0498732,PRICE REVA B.,3/12/2017,3/13/2017,MEALS,54.95,2017,PRICE REVA B.
,OFFICE OF THE MINORITY LEADER,2017Q1,GENERAL EXPENDITURES,TRAVEL,3/23/2017,AP,E0498732,PRICE REVA B.,3/12/2017,3/13/2017,TAXI/PARKING/TOLLS,64,2017,PRICE REVA B.
,OFFICE OF THE MINORITY LEADER,2017Q1,GENERAL EXPENDITURES,TRAVEL,3/29/2017,AP,E0500669,POLZIN SAVANNAH J.,3/20/2017,3/20/2017,TAXI/PARKING/TOLLS,64.98,2017,POLZIN SAVANNAH J.
,OFFICE OF THE MINORITY LEADER,2017Q1,GENERAL EXPENDITURES,TRAVEL,3/29/2017,AP,E0500743,KAPLAN EMMA L.,3/7/2017,3/15/2017,TAXI/PARKING/TOLLS,33.09,2017,KAPLAN EMMA L.
,OFFICE OF THE MINORITY LEADER,2017Q1,GENERAL EXPENDITURES,RENT  COMMUNICATION  UTILITIES,3/2/2017,AP,E0492346,FEDEX,1/27/2017,1/27/2017,POSTAGE / COURIER / BOX RENTAL,12.88,2017,FEDEX
,OFFICE OF THE MINORITY LEADER,2017Q1,GENERAL EXPENDITURES,RENT  COMMUNICATION  UTILITIES,3/15/2017,AP,E0496020,CITIBANK GOV CARD SERVICE,2/10/2017,2/10/2017,POSTAGE / COURIER / BOX RENTAL,3.99,2017,CITIBANK GOV CARD SERVICE
,OFFICE OF THE MINORITY LEADER,2017Q1,GENERAL EXPENDITURES,RENT  COMMUNICATION  UTILITIES,3/31/2017,GL,GRP0067079, ,3/1/2017,3/31/2017,HIR GRAPHICS (TRANSFER),150,2017, 
,OFFICE OF THE MINORITY LEADER,2017Q1,GENERAL EXPENDITURES,PRINTING AND REPRODUCTION,1/27/2017,GL,PIX0065253, ,1/1/2017,1/31/2017,PHOTOGRAPHIC (TRANSFER),291.5,2017, 
,OFFICE OF THE MINORITY LEADER,2017Q1,GENERAL EXPENDITURES,PRINTING AND REPRODUCTION,2/23/2017,GL,PIX0066009, ,2/1/2017,2/28/2017,PHOTOGRAPHIC (TRANSFER),226.4,2017, 
,OFFICE OF THE MINORITY LEADER,2017Q1,GENERAL EXPENDITURES,PRINTING AND REPRODUCTION,3/2/2017,AP,E0492345,DAVID L ANDRUKITIS INC,2/16/2017,2/16/2017,PRINTING & REPRODUCTION,120,2017,DAVID L ANDRUKITIS INC
,OFFICE OF THE MINORITY LEADER,2017Q1,GENERAL EXPENDITURES,PRINTING AND REPRODUCTION,3/15/2017,AP,E0496015,SMITH KELSEY L.,2/10/2017,2/10/2017,PRINTING & REPRODUCTION,57.03,2017,SMITH KELSEY L.
,OFFICE OF THE MINORITY LEADER,2017Q1,GENERAL EXPENDITURES,PRINTING AND REPRODUCTION,3/28/2017,GL,PIX0066926, ,3/1/2017,3/31/2017,PHOTOGRAPHIC (TRANSFER),644.8,2017, 
,OFFICE OF THE MINORITY LEADER,2017Q1,GENERAL EXPENDITURES,OTHER SERVICES,2/6/2017,AP,E0484035,BERNARD RAIMO,1/1/2017,1/31/2017,CONSULTANT CONTRACT SERVICE,7628,2017,BERNARD RAIMO
,OFFICE OF THE MINORITY LEADER,2017Q1,GENERAL EXPENDITURES,OTHER SERVICES,3/8/2017,AP,E0493233,BERNARD RAIMO,2/1/2017,2/28/2017,CONSULTANT CONTRACT SERVICE,7628,2017,BERNARD RAIMO
,OFFICE OF THE MINORITY LEADER,2017Q1,GENERAL EXPENDITURES,SUPPLIES AND MATERIALS,1/24/2017,AP,E0480156,LEADERSHIP DIRECTORIES INC,3/1/2017,2/28/2018,PUBLICATIONS/REFERENCE MAT'L,1147,2018,LEADERSHIP DIRECTORIES INC
,OFFICE OF THE MINORITY LEADER,2017Q1,GENERAL EXPENDITURES,SUPPLIES AND MATERIALS,2/3/2017,AP,E0484036,CAPITOL  HOST,1/24/2017,1/24/2017,FOOD & BEVERAGE,97.75,2017,CAPITOL  HOST
,OFFICE OF THE MINORITY LEADER,2017Q1,GENERAL EXPENDITURES,SUPPLIES AND MATERIALS,2/3/2017,AP,E0484037,CAPITOL  HOST,1/24/2017,1/24/2017,FOOD & BEVERAGE,76.86,2017,CAPITOL  HOST
,OFFICE OF THE MINORITY LEADER,2017Q1,GENERAL EXPENDITURES,SUPPLIES AND MATERIALS,2/3/2017,AP,E0484038,CAPITOL  HOST,1/20/2017,1/20/2017,FOOD & BEVERAGE,36.63,2017,CAPITOL  HOST
,OFFICE OF THE MINORITY LEADER,2017Q1,GENERAL EXPENDITURES,SUPPLIES AND MATERIALS,2/3/2017,AP,E0484039,CAPITOL  HOST,1/12/2017,1/12/2017,FOOD & BEVERAGE,90.5,2017,CAPITOL  HOST
,OFFICE OF THE MINORITY LEADER,2017Q1,GENERAL EXPENDITURES,SUPPLIES AND MATERIALS,2/3/2017,AP,E0484040,CAPITOL  HOST,1/12/2017,1/12/2017,FOOD & BEVERAGE,119.24,2017,CAPITOL  HOST
,OFFICE OF THE MINORITY LEADER,2017Q1,GENERAL EXPENDITURES,SUPPLIES AND MATERIALS,2/3/2017,AP,E0484041,CAPITOL  HOST,1/10/2017,1/10/2017,FOOD & BEVERAGE,73.25,2017,CAPITOL  HOST
,OFFICE OF THE MINORITY LEADER,2017Q1,GENERAL EXPENDITURES,SUPPLIES AND MATERIALS,2/3/2017,AP,E0484043,CAPITOL  HOST,1/6/2017,1/6/2017,FOOD & BEVERAGE,73.25,2017,CAPITOL  HOST
,OFFICE OF THE MINORITY LEADER,2017Q1,GENERAL EXPENDITURES,SUPPLIES AND MATERIALS,2/3/2017,AP,E0484044,CAPITOL  HOST,1/5/2017,1/5/2017,FOOD & BEVERAGE,73.25,2017,CAPITOL  HOST
,OFFICE OF THE MINORITY LEADER,2017Q1,GENERAL EXPENDITURES,SUPPLIES AND MATERIALS,2/3/2017,AP,E0484046,HAGUE QUALITY WATER OF MD INC,2/1/2017,12/31/2017,WATER,4158,2017,HAGUE QUALITY WATER OF MD INC
,OFFICE OF THE MINORITY LEADER,2017Q1,GENERAL EXPENDITURES,SUPPLIES AND MATERIALS,2/3/2017,AP,E0484047,HAGUE QUALITY WATER OF MD INC,1/1/2017,1/31/2017,WATER,378,2017,HAGUE QUALITY WATER OF MD INC
,OFFICE OF THE MINORITY LEADER,2017Q1,GENERAL EXPENDITURES,SUPPLIES AND MATERIALS,2/10/2017,AP,E0485813,TOULIES EN FLEUR,1/2/2017,1/29/2017,HABITATION EXPENSE,1250,2017,TOULIES EN FLEUR
,OFFICE OF THE MINORITY LEADER,2017Q1,GENERAL EXPENDITURES,SUPPLIES AND MATERIALS,2/10/2017,AP,E0485814,TOULIES EN FLEUR,1/9/2017,1/29/2017,HABITATION EXPENSE,1000,2017,TOULIES EN FLEUR
,OFFICE OF THE MINORITY LEADER,2017Q1,GENERAL EXPENDITURES,SUPPLIES AND MATERIALS,2/10/2017,AP,E0485817,BERRET EMILY C.,2/1/2017,2/1/2017,FOOD & BEVERAGE,38,2017,BERRET EMILY C.
,OFFICE OF THE MINORITY LEADER,2017Q1,GENERAL EXPENDITURES,SUPPLIES AND MATERIALS,2/17/2017,AP,904174,CITI PCARD-CAP MARKET CAF,1/3/2017,1/28/2017,FOOD & BEVERAGE,64.35,2017,CITI PCARD-CAP MARKET CAF
,OFFICE OF THE MINORITY LEADER,2017Q1,GENERAL EXPENDITURES,SUPPLIES AND MATERIALS,2/17/2017,AP,904174,CITI PCARD-GIANT,1/3/2017,1/28/2017,FOOD & BEVERAGE,21.04,2017,CITI PCARD-GIANT
,OFFICE OF THE MINORITY LEADER,2017Q1,GENERAL EXPENDITURES,SUPPLIES AND MATERIALS,2/17/2017,AP,904174,CITI PCARD-HARRIS TEETER,1/3/2017,1/28/2017,FOOD & BEVERAGE,174.84,2017,CITI PCARD-HARRIS TEETER
,OFFICE OF THE MINORITY LEADER,2017Q1,GENERAL EXPENDITURES,SUPPLIES AND MATERIALS,2/17/2017,AP,904174,CITI PCARD-HARRISTEETER,1/3/2017,1/28/2017,FOOD & BEVERAGE,326.61,2017,CITI PCARD-HARRISTEETER
,OFFICE OF THE MINORITY LEADER,2017Q1,GENERAL EXPENDITURES,SUPPLIES AND MATERIALS,2/17/2017,AP,904174,CITI PCARD-PRET A MANGER,1/3/2017,1/28/2017,FOOD & BEVERAGE,52,2017,CITI PCARD-PRET A MANGER
,OFFICE OF THE MINORITY LEADER,2017Q1,GENERAL EXPENDITURES,SUPPLIES AND MATERIALS,2/17/2017,AP,904174,CITI PCARD-SAFEWAY  STORE,1/3/2017,1/28/2017,FOOD & BEVERAGE,111.68,2017,CITI PCARD-SAFEWAY  STORE
,OFFICE OF THE MINORITY LEADER,2017Q1,GENERAL EXPENDITURES,SUPPLIES AND MATERIALS,2/17/2017,AP,904174,CITI PCARD-USHR LONGWORTH FOOD CT,1/3/2017,1/28/2017,FOOD & BEVERAGE,81.1,2017,CITI PCARD-USHR LONGWORTH FOOD CT
,OFFICE OF THE MINORITY LEADER,2017Q1,GENERAL EXPENDITURES,SUPPLIES AND MATERIALS,3/2/2017,AP,E0492347,CRYSTAL SPRINGS,1/24/2017,2/7/2017,FOOD & BEVERAGE,346.22,2017,CRYSTAL SPRINGS
,OFFICE OF THE MINORITY LEADER,2017Q1,GENERAL EXPENDITURES,SUPPLIES AND MATERIALS,3/2/2017,AP,E0492348,CAPITOL  HOST,2/13/2017,2/13/2017,FOOD & BEVERAGE,73.25,2017,CAPITOL  HOST
,OFFICE OF THE MINORITY LEADER,2017Q1,GENERAL EXPENDITURES,SUPPLIES AND MATERIALS,3/2/2017,AP,E0492349,CAPITOL  HOST,2/6/2017,2/6/2017,FOOD & BEVERAGE,73.25,2017,CAPITOL  HOST
,OFFICE OF THE MINORITY LEADER,2017Q1,GENERAL EXPENDITURES,SUPPLIES AND MATERIALS,3/2/2017,AP,E0492350,CAPITOL  HOST,2/7/2017,2/7/2017,FOOD & BEVERAGE,73.25,2017,CAPITOL  HOST
,OFFICE OF THE MINORITY LEADER,2017Q1,GENERAL EXPENDITURES,SUPPLIES AND MATERIALS,3/2/2017,AP,E0492351,CAPITOL  HOST,2/1/2017,2/1/2017,FOOD & BEVERAGE,384.38,2017,CAPITOL  HOST
,OFFICE OF THE MINORITY LEADER,2017Q1,GENERAL EXPENDITURES,SUPPLIES AND MATERIALS,3/2/2017,AP,E0492352,CAPITOL  HOST,2/1/2017,2/1/2017,FOOD & BEVERAGE,73.25,2017,CAPITOL  HOST
,OFFICE OF THE MINORITY LEADER,2017Q1,GENERAL EXPENDITURES,SUPPLIES AND MATERIALS,3/2/2017,AP,E0492353,CAPITOL  HOST,1/11/2017,1/11/2017,FOOD & BEVERAGE,39.51,2017,CAPITOL  HOST
,OFFICE OF THE MINORITY LEADER,2017Q1,GENERAL EXPENDITURES,SUPPLIES AND MATERIALS,3/2/2017,AP,E0492354,CAPITOL  HOST,1/4/2017,1/4/2017,FOOD & BEVERAGE,73.25,2017,CAPITOL  HOST
,OFFICE OF THE MINORITY LEADER,2017Q1,GENERAL EXPENDITURES,SUPPLIES AND MATERIALS,3/2/2017,AP,E0492357,BEHRINGER CAROLINE,2/8/2017,2/8/2017,FOOD & BEVERAGE,122,2017,BEHRINGER CAROLINE
,OFFICE OF THE MINORITY LEADER,2017Q1,GENERAL EXPENDITURES,SUPPLIES AND MATERIALS,3/7/2017,AP,E0492360,OCCASIONS CATERERS INC,1/3/2017,1/3/2017,FOOD & BEVERAGE,16900,2017,OCCASIONS CATERERS INC
,OFFICE OF THE MINORITY LEADER,2017Q1,GENERAL EXPENDITURES,SUPPLIES AND MATERIALS,3/7/2017,AP,E0493228,CITIBANK GOV CARD SERVICE,1/26/2017,1/26/2017,PUBLICATIONS/REFERENCE MAT'L,4.8,2017,CITIBANK GOV CARD SERVICE
,OFFICE OF THE MINORITY LEADER,2017Q1,GENERAL EXPENDITURES,SUPPLIES AND MATERIALS,3/15/2017,AP,E0496011,CAPITOL  HOST,3/2/2017,3/2/2017,FOOD & BEVERAGE,106.71,2017,CAPITOL  HOST
,OFFICE OF THE MINORITY LEADER,2017Q1,GENERAL EXPENDITURES,SUPPLIES AND MATERIALS,3/15/2017,AP,E0496012,CAPITOL  HOST,3/1/2017,3/1/2017,FOOD & BEVERAGE,529.28,2017,CAPITOL  HOST
,OFFICE OF THE MINORITY LEADER,2017Q1,GENERAL EXPENDITURES,SUPPLIES AND MATERIALS,3/16/2017,AP,E0496455,BEHRINGER CAROLINE,3/5/2017,3/5/2017,PUBLICATIONS/REFERENCE MAT'L,6.97,2017,BEHRINGER CAROLINE
,OFFICE OF THE MINORITY LEADER,2017Q1,GENERAL EXPENDITURES,SUPPLIES AND MATERIALS,3/21/2017,AP,912200,CITI PCARD-DT,1/29/2017,2/28/2017,FOOD & BEVERAGE,96.25,2017,CITI PCARD-DT
,OFFICE OF THE MINORITY LEADER,2017Q1,GENERAL EXPENDITURES,SUPPLIES AND MATERIALS,3/21/2017,AP,912200,CITI PCARD-FIREHOOK,1/29/2017,2/28/2017,FOOD & BEVERAGE,107.74,2017,CITI PCARD-FIREHOOK
,OFFICE OF THE MINORITY LEADER,2017Q1,GENERAL EXPENDITURES,SUPPLIES AND MATERIALS,3/21/2017,AP,912200,CITI PCARD-PRET A MANGER,1/29/2017,2/28/2017,FOOD & BEVERAGE,501.16,2017,CITI PCARD-PRET A MANGER
,OFFICE OF THE MINORITY LEADER,2017Q1,GENERAL EXPENDITURES,SUPPLIES AND MATERIALS,3/21/2017,AP,912200,CITI PCARD-TARGET,1/29/2017,2/28/2017,FOOD & BEVERAGE,472.27,2017,CITI PCARD-TARGET
,OFFICE OF THE MINORITY LEADER,2017Q1,GENERAL EXPENDITURES,SUPPLIES AND MATERIALS,3/21/2017,AP,912200,CITI PCARD-WHOLEFDS,1/29/2017,2/28/2017,FOOD & BEVERAGE,201.91,2017,CITI PCARD-WHOLEFDS
,OFFICE OF THE MINORITY LEADER,2017Q1,GENERAL EXPENDITURES,SUPPLIES AND MATERIALS,3/29/2017,AP,E0500670,SOUTHWEST DISTRIBUTION INC,4/1/2017,6/30/2017,PUBLICATIONS/REFERENCE MAT'L,3849.95,2017,SOUTHWEST DISTRIBUTION INC
,OFFICE OF THE MINORITY LEADER,2017Q1,GENERAL EXPENDITURES,SUPPLIES AND MATERIALS,3/29/2017,AP,E0500672,CAPITOL  HOST,2/16/2017,2/16/2017,FOOD & BEVERAGE,220,2017,CAPITOL  HOST
,OFFICE OF THE MINORITY LEADER,2017Q1,GENERAL EXPENDITURES,SUPPLIES AND MATERIALS,3/29/2017,AP,E0500673,CAPITOL  HOST,3/8/2017,3/8/2017,FOOD & BEVERAGE,76.86,2017,CAPITOL  HOST
,OFFICE OF THE MINORITY LEADER,2017Q1,GENERAL EXPENDITURES,SUPPLIES AND MATERIALS,3/29/2017,AP,E0500676,CAPITOL  HOST,3/9/2017,3/9/2017,FOOD & BEVERAGE,149.84,2017,CAPITOL  HOST
,OFFICE OF THE MINORITY LEADER,2017Q1,GENERAL EXPENDITURES,SUPPLIES AND MATERIALS,3/29/2017,AP,E0500677,CAPITOL  HOST,3/9/2017,3/9/2017,FOOD & BEVERAGE,73.25,2017,CAPITOL  HOST
,OFFICE OF THE MINORITY LEADER,2017Q1,GENERAL EXPENDITURES,SUPPLIES AND MATERIALS,3/29/2017,AP,E0500685,CRYSTAL SPRINGS,3/7/2017,3/7/2017,FOOD & BEVERAGE,114.04,2017,CRYSTAL SPRINGS
,OFFICE OF THE MINORITY LEADER,2017Q1,GENERAL EXPENDITURES,PERSONNEL COMPENSATION,   ,   ,   ,ADAMS CARRIE E,1/1/2017,1/2/2017,DIGITAL DIRECTOR,555.56,2017,ADAMS CARRIE E
,OFFICE OF THE MINORITY LEADER,2017Q1,GENERAL EXPENDITURES,PERSONNEL COMPENSATION,   ,   ,   ,AGUILAR JORGE A,11/1/2016,11/1/2016,PRESS SEC/DIR HISPANIC MEDIA,10250,2016,AGUILAR JORGE A
,OFFICE OF THE MINORITY LEADER,2017Q1,GENERAL EXPENDITURES,PERSONNEL COMPENSATION,   ,   ,   ,AGUILAR JORGE A,11/1/2016,1/2/2017,PRESS SEC/DIR HISPANIC MEDIA,-5833.33,2017,AGUILAR JORGE A
,OFFICE OF THE MINORITY LEADER,2017Q1,GENERAL EXPENDITURES,PERSONNEL COMPENSATION,   ,   ,   ,BEHRINGER CAROLINE,11/1/2016,11/1/2016,DEPUTY COMMUNICATIONS DIRECTOR,14033.33,2016,BEHRINGER CAROLINE
,OFFICE OF THE MINORITY LEADER,2017Q1,GENERAL EXPENDITURES,PERSONNEL COMPENSATION,   ,   ,   ,BEHRINGER CAROLINE,11/1/2016,1/2/2017,DEPUTY COMMUNICATIONS DIRECTOR,-10111.11,2017,BEHRINGER CAROLINE
,OFFICE OF THE MINORITY LEADER,2017Q1,GENERAL EXPENDITURES,PERSONNEL COMPENSATION,   ,   ,   ,BERRET EMILY C,11/1/2016,11/1/2016,SPECIAL ASST TO THE LEADER,9833.33,2016,BERRET EMILY C
,OFFICE OF THE MINORITY LEADER,2017Q1,GENERAL EXPENDITURES,PERSONNEL COMPENSATION,   ,   ,   ,BERRET EMILY C,11/1/2016,1/2/2017,SPECIAL ASST TO THE LEADER,-5444.44,2017,BERRET EMILY C
,OFFICE OF THE MINORITY LEADER,2017Q1,GENERAL EXPENDITURES,PERSONNEL COMPENSATION,   ,   ,   ,BLOOM MICHAEL T.,11/1/2016,11/1/2016,SENIOR ADVISOR,13583.33,2016,BLOOM MICHAEL T.
,OFFICE OF THE MINORITY LEADER,2017Q1,GENERAL EXPENDITURES,PERSONNEL COMPENSATION,   ,   ,   ,BLOOM MICHAEL T.,11/1/2016,1/2/2017,SENIOR ADVISOR,-8944.44,2017,BLOOM MICHAEL T.
,OFFICE OF THE MINORITY LEADER,2017Q1,GENERAL EXPENDITURES,PERSONNEL COMPENSATION,   ,   ,   ,CAPRON MARGARET W.,11/1/2016,11/1/2016,SENIOR ADV POLICY & COMM,13958.08,2016,CAPRON MARGARET W.
,OFFICE OF THE MINORITY LEADER,2017Q1,GENERAL EXPENDITURES,PERSONNEL COMPENSATION,   ,   ,   ,CAPRON MARGARET W.,11/1/2016,1/2/2017,SENIOR ADV POLICY & COMM,-10320.87,2017,CAPRON MARGARET W.
,OFFICE OF THE MINORITY LEADER,2017Q1,GENERAL EXPENDITURES,PERSONNEL COMPENSATION,   ,   ,   ,CAYEA DEVAN W,11/1/2016,1/2/2017,DEPUTY DIRECTOR OF ADVANCE,4361.11,2017,CAYEA DEVAN W
,OFFICE OF THE MINORITY LEADER,2017Q1,GENERAL EXPENDITURES,PERSONNEL COMPENSATION,   ,   ,   ,CHERRY STEPHANIE,11/1/2016,11/1/2016,DIRECTOR OF MEDIA AFFAIRS,9987.42,2016,CHERRY STEPHANIE
,OFFICE OF THE MINORITY LEADER,2017Q1,GENERAL EXPENDITURES,PERSONNEL COMPENSATION,   ,   ,   ,CHERRY STEPHANIE,11/1/2016,1/2/2017,DIRECTOR OF MEDIA AFFAIRS,-5588.26,2017,CHERRY STEPHANIE
,OFFICE OF THE MINORITY LEADER,2017Q1,GENERAL EXPENDITURES,PERSONNEL COMPENSATION,   ,   ,   ,CONNELLY HENRY V,11/1/2016,11/1/2016,DIRECTOR OF SPEECHWRITING,11083.33,2016,CONNELLY HENRY V
,OFFICE OF THE MINORITY LEADER,2017Q1,GENERAL EXPENDITURES,PERSONNEL COMPENSATION,   ,   ,   ,CONNELLY HENRY V,11/1/2016,1/2/2017,DIRECTOR OF SPEECHWRITING,-6611.11,2017,CONNELLY HENRY V
,OFFICE OF THE MINORITY LEADER,2017Q1,GENERAL EXPENDITURES,PERSONNEL COMPENSATION,   ,   ,   ,DEGRAFF KENNETH B.,1/1/2017,1/2/2017,SENIOR POLICY ADVISOR,638.89,2017,DEGRAFF KENNETH B.
,OFFICE OF THE MINORITY LEADER,2017Q1,GENERAL EXPENDITURES,PERSONNEL COMPENSATION,   ,   ,   ,DEVLIN PATRICK J.,1/1/2017,1/2/2017,COMMUNICATIONS DIRECTOR,694.44,2017,DEVLIN PATRICK J.
,OFFICE OF THE MINORITY LEADER,2017Q1,GENERAL EXPENDITURES,PERSONNEL COMPENSATION,   ,   ,   ,DEWHIRST DIANE,1/1/2017,1/2/2017,DEPUTY CHIEF OF STAFF,958.33,2017,DEWHIRST DIANE
,OFFICE OF THE MINORITY LEADER,2017Q1,GENERAL EXPENDITURES,PERSONNEL COMPENSATION,   ,   ,   ,EDMONSON ROBERT D,11/1/2016,11/1/2016,CHIEF OF STAFF,8958.83,2016,EDMONSON ROBERT D
,OFFICE OF THE MINORITY LEADER,2017Q1,GENERAL EXPENDITURES,PERSONNEL COMPENSATION,   ,   ,   ,EDMONSON ROBERT D,11/1/2016,1/2/2017,CHIEF OF STAFF,-5444.44,2017,EDMONSON ROBERT D
,OFFICE OF THE MINORITY LEADER,2017Q1,GENERAL EXPENDITURES,PERSONNEL COMPENSATION,   ,   ,   ,ELSHAMI NADEAM,1/1/2017,1/2/2017,CHIEF OF STAFF,958.33,2017,ELSHAMI NADEAM
,OFFICE OF THE MINORITY LEADER,2017Q1,GENERAL EXPENDITURES,PERSONNEL COMPENSATION,   ,   ,   ,FISCHER JR ROBERT V.,1/1/2017,1/2/2017,ASST FLOOR CHIEF,958.33,2017,FISCHER JR ROBERT V.
,OFFICE OF THE MINORITY LEADER,2017Q1,GENERAL EXPENDITURES,PERSONNEL COMPENSATION,   ,   ,   ,GREENER APRIL L.,1/1/2017,1/2/2017,RESEARCH DIRECTOR,583.33,2017,GREENER APRIL L.
,OFFICE OF THE MINORITY LEADER,2017Q1,GENERAL EXPENDITURES,PERSONNEL COMPENSATION,   ,   ,   ,GRIFFIN SAHARRA E,1/1/2017,1/2/2017,ASST TO THE EXECUTIVE OFFICE,183.33,2017,GRIFFIN SAHARRA E
,OFFICE OF THE MINORITY LEADER,2017Q1,GENERAL EXPENDITURES,PERSONNEL COMPENSATION,   ,   ,   ,GRIFFIN SAHARRA E,12/1/2016,12/31/2016,ASST TO THE EXECUTIVE OFFICE (OVERTIME),2876.83,2016,GRIFFIN SAHARRA E
,OFFICE OF THE MINORITY LEADER,2017Q1,GENERAL EXPENDITURES,PERSONNEL COMPENSATION,   ,   ,   ,GRIFFIN TAYLOR T,11/1/2016,11/1/2016,DEPUTY PRESS SECRETARY,8208.33,2016,GRIFFIN TAYLOR T
,OFFICE OF THE MINORITY LEADER,2017Q1,GENERAL EXPENDITURES,PERSONNEL COMPENSATION,   ,   ,   ,GRIFFIN TAYLOR T,11/1/2016,1/2/2017,DEPUTY PRESS SECRETARY,-3927.78,2017,GRIFFIN TAYLOR T
,OFFICE OF THE MINORITY LEADER,2017Q1,GENERAL EXPENDITURES,PERSONNEL COMPENSATION,   ,   ,   ,HAMMILL ANDREW T.,1/1/2017,1/2/2017,DEPUTY CHIEF OF STAFF,958.33,2017,HAMMILL ANDREW T.
,OFFICE OF THE MINORITY LEADER,2017Q1,GENERAL EXPENDITURES,PERSONNEL COMPENSATION,   ,   ,   ,HAYNES JR WILFRED J.,1/1/2017,1/2/2017,IT DIRECTOR,545.12,2017,HAYNES JR WILFRED J.
,OFFICE OF THE MINORITY LEADER,2017Q1,GENERAL EXPENDITURES,PERSONNEL COMPENSATION,   ,   ,   ,HOLMES NATHANIEL J,11/1/2016,11/1/2016,DEPUTY DIRECTOR OF SCHEDULING,8708.33,2016,HOLMES NATHANIEL J
,OFFICE OF THE MINORITY LEADER,2017Q1,GENERAL EXPENDITURES,PERSONNEL COMPENSATION,   ,   ,   ,HOLMES NATHANIEL J,11/1/2016,1/2/2017,DEPUTY DIRECTOR OF SCHEDULING,-4394.44,2017,HOLMES NATHANIEL J
,OFFICE OF THE MINORITY LEADER,2017Q1,GENERAL EXPENDITURES,PERSONNEL COMPENSATION,   ,   ,   ,KAPLAN EMMA L,11/1/2016,11/1/2016,MBR SERV ADVISER/SPECIAL ASST,9208.33,2016,KAPLAN EMMA L
,OFFICE OF THE MINORITY LEADER,2017Q1,GENERAL EXPENDITURES,PERSONNEL COMPENSATION,   ,   ,   ,KAPLAN EMMA L,11/1/2016,1/2/2017,MBR SERV ADVISER/SPECIAL ASST,-4861.11,2017,KAPLAN EMMA L
,OFFICE OF THE MINORITY LEADER,2017Q1,GENERAL EXPENDITURES,PERSONNEL COMPENSATION,   ,   ,   ,KEATING ROSE M,1/1/2017,1/2/2017,ASST FLOOR MANAGER,694.44,2017,KEATING ROSE M
,OFFICE OF THE MINORITY LEADER,2017Q1,GENERAL EXPENDITURES,PERSONNEL COMPENSATION,   ,   ,   ,KEITA KAMILAH Z,1/1/2017,1/2/2017,DEPUTY INFOMATION TECH. DIRECT,495.18,2017,KEITA KAMILAH Z
,OFFICE OF THE MINORITY LEADER,2017Q1,GENERAL EXPENDITURES,PERSONNEL COMPENSATION,   ,   ,   ,KUNDANIS GEORGE,1/1/2017,1/2/2017,DEPUTY CHIEF OF STAFF,958.33,2017,KUNDANIS GEORGE
,OFFICE OF THE MINORITY LEADER,2017Q1,GENERAL EXPENDITURES,PERSONNEL COMPENSATION,   ,   ,   ,LEE SERYEUNG,1/1/2017,1/2/2017,SENIOR PRESS ASSISTANT,194.44,2017,LEE SERYEUNG
,OFFICE OF THE MINORITY LEADER,2017Q1,GENERAL EXPENDITURES,PERSONNEL COMPENSATION,   ,   ,   ,LEE SERYEUNG,12/1/2016,12/31/2016,SENIOR PRESS ASSISTANT (OVERTIME),1511.34,2016,LEE SERYEUNG
,OFFICE OF THE MINORITY LEADER,2017Q1,GENERAL EXPENDITURES,PERSONNEL COMPENSATION,   ,   ,   ,LIZARRAGA JAIME E.,12/1/2016,1/2/2017,SR ADV & DIR OF MEMBER SVC,3272.15,2017,LIZARRAGA JAIME E.
,OFFICE OF THE MINORITY LEADER,2017Q1,GENERAL EXPENDITURES,PERSONNEL COMPENSATION,   ,   ,   ,LONG MICHAEL G,11/1/2016,11/1/2016,SENIOR ADVISOR,13583.33,2016,LONG MICHAEL G
,OFFICE OF THE MINORITY LEADER,2017Q1,GENERAL EXPENDITURES,PERSONNEL COMPENSATION,   ,   ,   ,LONG MICHAEL G,11/1/2016,1/2/2017,SENIOR ADVISOR,-8944.44,2017,LONG MICHAEL G
,OFFICE OF THE MINORITY LEADER,2017Q1,GENERAL EXPENDITURES,PERSONNEL COMPENSATION,   ,   ,   ,MANGRUM PEARL J.,11/1/2016,11/1/2016,FINANCIAL ADMINISTRATOR,10200.92,2016,MANGRUM PEARL J.
,OFFICE OF THE MINORITY LEADER,2017Q1,GENERAL EXPENDITURES,PERSONNEL COMPENSATION,   ,   ,   ,MANGRUM PEARL J.,11/1/2016,1/2/2017,FINANCIAL ADMINISTRATOR,-6572.22,2017,MANGRUM PEARL J.
,OFFICE OF THE MINORITY LEADER,2017Q1,GENERAL EXPENDITURES,PERSONNEL COMPENSATION,   ,   ,   ,MASON TAMIKA K,1/1/2017,1/2/2017,SR STAFF ASST SYS ADMIN,277.78,2017,MASON TAMIKA K
,OFFICE OF THE MINORITY LEADER,2017Q1,GENERAL EXPENDITURES,PERSONNEL COMPENSATION,   ,   ,   ,MELTZER RICHARD,1/1/2017,1/2/2017,POLICY DIRECTOR,958.33,2017,MELTZER RICHARD
,OFFICE OF THE MINORITY LEADER,2017Q1,GENERAL EXPENDITURES,PERSONNEL COMPENSATION,   ,   ,   ,MONGE KATHERINE S,1/1/2017,1/2/2017,SENIOR POLICY ADVISOR,833.33,2017,MONGE KATHERINE S
,OFFICE OF THE MINORITY LEADER,2017Q1,GENERAL EXPENDITURES,PERSONNEL COMPENSATION,   ,   ,   ,PALMER ASHLI S,1/1/2017,1/2/2017,POLICY DIRECTOR,722.22,2017,PALMER ASHLI S
,OFFICE OF THE MINORITY LEADER,2017Q1,GENERAL EXPENDITURES,PERSONNEL COMPENSATION,   ,   ,   ,PARKER WYNDEE R.,1/1/2017,1/2/2017,SENIOR POLICY ADVISOR,958.33,2017,PARKER WYNDEE R.
,OFFICE OF THE MINORITY LEADER,2017Q1,GENERAL EXPENDITURES,PERSONNEL COMPENSATION,   ,   ,   ,PFEIFFER AMY M,1/1/2017,1/2/2017,SENIOR ADVISOR,555.56,2017,PFEIFFER AMY M
,OFFICE OF THE MINORITY LEADER,2017Q1,GENERAL EXPENDITURES,PERSONNEL COMPENSATION,   ,   ,   ,POWELL LATRICE S,1/1/2017,1/2/2017,ASSISTANT CLOAKROOM MANAGER,611.11,2017,POWELL LATRICE S
,OFFICE OF THE MINORITY LEADER,2017Q1,GENERAL EXPENDITURES,PERSONNEL COMPENSATION,   ,   ,   ,PRICE REVA B.,11/1/2016,11/1/2016,OUTREACH DIRECTOR & ADVISOR,14033.42,2016,PRICE REVA B.
,OFFICE OF THE MINORITY LEADER,2017Q1,GENERAL EXPENDITURES,PERSONNEL COMPENSATION,   ,   ,   ,PRICE REVA B.,11/1/2016,1/2/2017,OUTREACH DIRECTOR & ADVISOR,-9931.99,2017,PRICE REVA B.
,OFFICE OF THE MINORITY LEADER,2017Q1,GENERAL EXPENDITURES,PERSONNEL COMPENSATION,   ,   ,   ,PRIMUS WENDELL E.,1/1/2017,1/2/2017,SENIOR POLICY ADVISOR,958.33,2017,PRIMUS WENDELL E.
,OFFICE OF THE MINORITY LEADER,2017Q1,GENERAL EXPENDITURES,PERSONNEL COMPENSATION,   ,   ,   ,ROBINSON MALAIKA,1/1/2017,1/2/2017,DEP DIR OF SPEECHWRITING,361.11,2017,ROBINSON MALAIKA
,OFFICE OF THE MINORITY LEADER,2017Q1,GENERAL EXPENDITURES,PERSONNEL COMPENSATION,   ,   ,   ,ROCHELLE COURTNEY E,1/1/2017,1/2/2017,DISTRICT SCHEDULER/EXEC ASSIST,111.11,2017,ROCHELLE COURTNEY E
,OFFICE OF THE MINORITY LEADER,2017Q1,GENERAL EXPENDITURES,PERSONNEL COMPENSATION,   ,   ,   ,SLATER SAMANTHA A,1/1/2017,1/2/2017,EXEC DIR DEM POLICY COMM CMTE,638.89,2017,SLATER SAMANTHA A
,OFFICE OF THE MINORITY LEADER,2017Q1,GENERAL EXPENDITURES,PERSONNEL COMPENSATION,   ,   ,   ,SLATER SAMANTHA A,1/1/2017,1/2/2017,EXEC DIR DEM POLICY COMM CMTE (OTHER COMPENSATION),8944.44,2017,SLATER SAMANTHA A
,OFFICE OF THE MINORITY LEADER,2017Q1,GENERAL EXPENDITURES,PERSONNEL COMPENSATION,   ,   ,   ,SMITH KELSEY L,11/1/2016,11/1/2016,DIR. OF SCHEDULING & ADVANCE,11500,2016,SMITH KELSEY L
,OFFICE OF THE MINORITY LEADER,2017Q1,GENERAL EXPENDITURES,PERSONNEL COMPENSATION,   ,   ,   ,SMITH KELSEY L,11/1/2016,1/2/2017,DIR. OF SCHEDULING & ADVANCE,-7000,2017,SMITH KELSEY L
,OFFICE OF THE MINORITY LEADER,2017Q1,GENERAL EXPENDITURES,PERSONNEL COMPENSATION,   ,   ,   ,STERN KEITH L.,1/1/2017,1/2/2017,DIRECTOR OF FLOOR OPERATIONS,888.89,2017,STERN KEITH L.
,OFFICE OF THE MINORITY LEADER,2017Q1,GENERAL EXPENDITURES,PERSONNEL COMPENSATION,   ,   ,   ,SURGEON BINA G,11/1/2016,11/1/2016,SPECIAL ASST TO THE LEADER,13166.67,2016,SURGEON BINA G
,OFFICE OF THE MINORITY LEADER,2017Q1,GENERAL EXPENDITURES,PERSONNEL COMPENSATION,   ,   ,   ,SURGEON BINA G,11/1/2016,1/2/2017,SPECIAL ASST TO THE LEADER,-8555.56,2017,SURGEON BINA G
,OFFICE OF THE MINORITY LEADER,2017Q1,GENERAL EXPENDITURES,PERSONNEL COMPENSATION,   ,   ,   ,TECKLENBURG MICHAEL H.,1/1/2017,1/2/2017,COUNSEL,722.22,2017,TECKLENBURG MICHAEL H.
,OFFICE OF THE MINORITY LEADER,2017Q1,GENERAL EXPENDITURES,PERSONNEL COMPENSATION,   ,   ,   ,WALTERS SARAH S,12/1/2016,12/31/2016,DIGITAL ASSISTANT (OVERTIME),731.24,2016,WALTERS SARAH S
,OFFICE OF THE MINORITY LEADER,2017Q1,GENERAL EXPENDITURES,PERSONNEL COMPENSATION,   ,   ,   ,WATKINS YELBERTON R.,1/1/2017,1/2/2017,CHIEF OF STAFF,916.67,2017,WATKINS YELBERTON R.
,OFFICE OF THE MINORITY LEADER,2017Q1,GENERAL EXPENDITURES,PERSONNEL COMPENSATION,   ,   ,   ,WEST JULIUS L,11/1/2016,11/30/2016,ADVISER MEMBER SERVICES,10000,2016,WEST JULIUS L
,OFFICE OF THE MINORITY LEADER,2017Q1,GENERAL EXPENDITURES,PERSONNEL COMPENSATION,   ,   ,   ,WEST JULIUS L,11/1/2016,1/2/2017,ADVISER  MEMBER SERVICES,-5600,2017,WEST JULIUS L
,OFFICE OF THE MINORITY LEADER,2017Q1,GENERAL EXPENDITURES,PERSONNEL COMPENSATION,   ,   ,   ,WOLTERS KATE,1/1/2017,1/2/2017,DIRECTOR OF PROTOCOL,797.7,2017,WOLTERS KATE
,OFFICE OF THE MINORITY LEADER,2017Q1,GENERAL EXPENDITURES,TRAVEL,1/4/2017,AR,AC-12552,CITIBANK,10/6/2016,10/19/2016,COMMERCIAL TRANSPORTATION,-1134.3,2016,CITIBANK
,OFFICE OF THE MINORITY LEADER,2017Q1,GENERAL EXPENDITURES,TRAVEL,1/4/2017,AR,AC-12553,CITIBANK,10/6/2016,10/6/2016,TAXI/PARKING/TOLLS,-60.5,2016,CITIBANK
,OFFICE OF THE MINORITY LEADER,2017Q1,GENERAL EXPENDITURES,TRAVEL,1/4/2017,AR,AC-12554,CITIBANK,10/7/2016,10/16/2016,MEALS,-116.19,2016,CITIBANK
,OFFICE OF THE MINORITY LEADER,2017Q1,GENERAL EXPENDITURES,TRAVEL,1/4/2017,AR,AC-12555,CITIBANK,10/7/2016,10/20/2016,LODGING,-4.17,2016,CITIBANK
,OFFICE OF THE MINORITY LEADER,2017Q1,GENERAL EXPENDITURES,TRAVEL,1/8/2017,AP,E0475804,CITIBANK GOV CARD SERVICE,11/16/2016,11/16/2016,TAXI/PARKING/TOLLS,16.13,2016,CITIBANK GOV CARD SERVICE
,OFFICE OF THE MINORITY LEADER,2017Q1,GENERAL EXPENDITURES,TRAVEL,1/23/2017,AP,900852,SMITH KELSEY L.,11/11/2016,12/14/2016,TAXI/PARKING/TOLLS,179.26,2016,SMITH KELSEY L.
,OFFICE OF THE MINORITY LEADER,2017Q1,GENERAL EXPENDITURES,TRAVEL,1/26/2017,AP,E0480465,CITIBANK GOV CARD SERVICE,12/2/2016,12/17/2016,TAXI/PARKING/TOLLS,109.51,2016,CITIBANK GOV CARD SERVICE
,OFFICE OF THE MINORITY LEADER,2017Q1,GENERAL EXPENDITURES,TRAVEL,1/26/2017,AP,E0480578,CITIBANK GOV CARD SERVICE,12/6/2016,12/6/2016,TAXI/PARKING/TOLLS,9.44,2016,CITIBANK GOV CARD SERVICE
,OFFICE OF THE MINORITY LEADER,2017Q1,GENERAL EXPENDITURES,TRAVEL,1/26/2017,AP,E0480579,CITIBANK GOV CARD SERVICE,11/3/2016,11/3/2016,COMMERCIAL TRANSPORTATION,118.1,2016,CITIBANK GOV CARD SERVICE
,OFFICE OF THE MINORITY LEADER,2017Q1,GENERAL EXPENDITURES,TRAVEL,1/26/2017,AP,E0480579,CITIBANK GOV CARD SERVICE,11/4/2016,11/4/2016,COMMERCIAL TRANSPORTATION,220.1,2016,CITIBANK GOV CARD SERVICE
,OFFICE OF THE MINORITY LEADER,2017Q1,GENERAL EXPENDITURES,TRAVEL,1/26/2017,AP,E0480579,CITIBANK GOV CARD SERVICE,10/30/2016,10/30/2016,TAXI/PARKING/TOLLS,20.19,2016,CITIBANK GOV CARD SERVICE
,OFFICE OF THE MINORITY LEADER,2017Q1,GENERAL EXPENDITURES,RENT  COMMUNICATION  UTILITIES,1/11/2017,AP,E0477474,FEDEX,12/15/2016,12/15/2016,POSTAGE / COURIER / BOX RENTAL,55.86,2016,FEDEX
,OFFICE OF THE MINORITY LEADER,2017Q1,GENERAL EXPENDITURES,RENT  COMMUNICATION  UTILITIES,2/3/2017,AP,E0484065,FEDEX,12/27/2016,12/27/2016,POSTAGE / COURIER / BOX RENTAL,57.08,2016,FEDEX
,OFFICE OF THE MINORITY LEADER,2017Q1,GENERAL EXPENDITURES,RENT  COMMUNICATION  UTILITIES,2/9/2017,AR,AC-12696,FEDERAL EXPRESS CORP          ,11/3/2016,11/3/2016,POSTAGE / COURIER / BOX RENTAL,-29.97,2016,FEDERAL EXPRESS CORP          
,OFFICE OF THE MINORITY LEADER,2017Q1,GENERAL EXPENDITURES,RENT  COMMUNICATION  UTILITIES,3/1/2017,AR,AC-12823,FEDERAL EXPRESS CORP          ,12/27/2016,12/27/2016,POSTAGE / COURIER / BOX RENTAL,-46.45,2016,FEDERAL EXPRESS CORP          
,OFFICE OF THE MINORITY LEADER,2017Q1,GENERAL EXPENDITURES,PRINTING AND REPRODUCTION,1/19/2017,AP,900647,CITI PCARD-FACEBK,11/29/2016,12/28/2016,ADVERTISEMENTS,550.99,2016,CITI PCARD-FACEBK
,OFFICE OF THE MINORITY LEADER,2017Q1,GENERAL EXPENDITURES,PRINTING AND REPRODUCTION,2/17/2017,AP,904174,CITI PCARD-FACEBK,12/29/2016,1/2/2017,ADVERTISEMENTS,16.31,2017,CITI PCARD-FACEBK
,OFFICE OF THE MINORITY LEADER,2017Q1,GENERAL EXPENDITURES,OTHER SERVICES,1/11/2017,AP,E0477475,NEAL R GROSS & COMPANY INC,12/13/2016,12/13/2016,STENOGRAPHIC REPORTING,1500,2016,NEAL R GROSS & COMPANY INC
,OFFICE OF THE MINORITY LEADER,2017Q1,GENERAL EXPENDITURES,OTHER SERVICES,1/12/2017,AP,E0475647,BERNARD RAIMO,12/1/2016,12/31/2016,CONSULTANT CONTRACT SERVICE,7628,2016,BERNARD RAIMO
,OFFICE OF THE MINORITY LEADER,2017Q1,GENERAL EXPENDITURES,SUPPLIES AND MATERIALS,1/17/2017,AP,E0477476,OCCASIONS CATERERS INC,12/28/2016,12/28/2016,FOOD & BEVERAGE,7075,2016,OCCASIONS CATERERS INC
,OFFICE OF THE MINORITY LEADER,2017Q1,GENERAL EXPENDITURES,SUPPLIES AND MATERIALS,1/17/2017,AP,E0477479,OCCASIONS CATERERS INC,12/6/2016,12/6/2016,FOOD & BEVERAGE,8505,2016,OCCASIONS CATERERS INC
,OFFICE OF THE MINORITY LEADER,2017Q1,GENERAL EXPENDITURES,SUPPLIES AND MATERIALS,1/19/2017,AP,900647,CITI PCARD-CAP MARKET CAF,11/29/2016,12/28/2016,FOOD & BEVERAGE,19,2016,CITI PCARD-CAP MARKET CAF
,OFFICE OF THE MINORITY LEADER,2017Q1,GENERAL EXPENDITURES,SUPPLIES AND MATERIALS,1/19/2017,AP,900647,CITI PCARD-COSTCO.COM   ONLINE,11/29/2016,12/28/2016,FOOD & BEVERAGE,483.31,2016,CITI PCARD-COSTCO.COM   ONLINE
,OFFICE OF THE MINORITY LEADER,2017Q1,GENERAL EXPENDITURES,SUPPLIES AND MATERIALS,1/19/2017,AP,900647,CITI PCARD-GIANT,11/29/2016,12/28/2016,FOOD & BEVERAGE,123.8,2016,CITI PCARD-GIANT
,OFFICE OF THE MINORITY LEADER,2017Q1,GENERAL EXPENDITURES,SUPPLIES AND MATERIALS,1/19/2017,AP,900647,CITI PCARD-HARRIS TEETER,11/29/2016,12/28/2016,FOOD & BEVERAGE,78.97,2016,CITI PCARD-HARRIS TEETER
,OFFICE OF THE MINORITY LEADER,2017Q1,GENERAL EXPENDITURES,SUPPLIES AND MATERIALS,1/19/2017,AP,900647,CITI PCARD-PRET A MANGER,11/29/2016,12/28/2016,FOOD & BEVERAGE,52,2016,CITI PCARD-PRET A MANGER
,OFFICE OF THE MINORITY LEADER,2017Q1,GENERAL EXPENDITURES,SUPPLIES AND MATERIALS,1/19/2017,AP,900647,CITI PCARD-ROTI MEDITERRANEAN GRI,11/29/2016,12/28/2016,FOOD & BEVERAGE,550.35,2016,CITI PCARD-ROTI MEDITERRANEAN GRI
,OFFICE OF THE MINORITY LEADER,2017Q1,GENERAL EXPENDITURES,SUPPLIES AND MATERIALS,1/19/2017,AP,900647,CITI PCARD-SAFEWAY  STORE,11/29/2016,12/28/2016,FOOD & BEVERAGE,389.46,2016,CITI PCARD-SAFEWAY  STORE
,OFFICE OF THE MINORITY LEADER,2017Q1,GENERAL EXPENDITURES,SUPPLIES AND MATERIALS,2/3/2017,AP,E0484045,CRYSTAL SPRINGS,12/27/2016,12/27/2016,FOOD & BEVERAGE,265.26,2016,CRYSTAL SPRINGS
,OFFICE OF THE MINORITY LEADER,2017Q1,GENERAL EXPENDITURES,SUPPLIES AND MATERIALS,2/3/2017,AP,E0484059,CAPITOL  HOST,11/29/2016,11/29/2016,FOOD & BEVERAGE,53.88,2016,CAPITOL  HOST
,OFFICE OF THE MINORITY LEADER,2017Q1,GENERAL EXPENDITURES,SUPPLIES AND MATERIALS,2/3/2017,AP,E0484064,CAPITOL  HOST,12/13/2016,12/13/2016,FOOD & BEVERAGE,36.63,2016,CAPITOL  HOST
,OFFICE OF THE MINORITY LEADER,2017Q1,GENERAL EXPENDITURES,SUPPLIES AND MATERIALS,2/17/2017,AP,904174,CITI PCARD-ROLANDS GROCERY,12/29/2016,1/2/2017,FOOD & BEVERAGE,6.35,2017,CITI PCARD-ROLANDS GROCERY
,OFFICE OF THE MINORITY LEADER,2017Q1,GENERAL EXPENDITURES,SUPPLIES AND MATERIALS,2/17/2017,AP,904174,CITI PCARD-STARBUCKS STORE,12/29/2016,1/2/2017,PUBLICATIONS/REFERENCE MAT'L,2.64,2017,CITI PCARD-STARBUCKS STORE
,OFFICE OF THE MINORITY LEADER,2017Q1,GENERAL EXPENDITURES,SUPPLIES AND MATERIALS,2/17/2017,AP,904174,CITI PCARD-TARGET,12/29/2016,1/2/2017,FOOD & BEVERAGE,403.1,2017,CITI PCARD-TARGET
,OFFICE OF THE MAJORITY WHIP,2017Q1,GENERAL EXPENDITURES,PERSONNEL COMPENSATION,   ,   ,   ,ACORNLEY MARK A.,1/3/2017,3/31/2017,FINANCIAL ADMINISTRATOR,3666.67,2017,ACORNLEY MARK A.
,OFFICE OF THE MAJORITY WHIP,2017Q1,GENERAL EXPENDITURES,PERSONNEL COMPENSATION,   ,   ,   ,BOND CHRISTOPHER J,1/3/2017,3/31/2017,COMMUNICATIONS DIRECTOR,28336.55,2017,BOND CHRISTOPHER J
,OFFICE OF THE MAJORITY WHIP,2017Q1,GENERAL EXPENDITURES,PERSONNEL COMPENSATION,   ,   ,   ,BRAVO MATTHEW,1/3/2017,3/31/2017,DEPUTY DIRECTOR OF FLOOR OPERA,31180.31,2017,BRAVO MATTHEW
,OFFICE OF THE MAJORITY WHIP,2017Q1,GENERAL EXPENDITURES,PERSONNEL COMPENSATION,   ,   ,   ,CAVAZOS ANDREW J,1/3/2017,3/31/2017,ASST TO THE CHIEF OF STAFF,11488.9,2017,CAVAZOS ANDREW J
,OFFICE OF THE MAJORITY WHIP,2017Q1,GENERAL EXPENDITURES,PERSONNEL COMPENSATION,   ,   ,   ,DEASE ALEXANDRA E,1/3/2017,3/31/2017,STAFF ASSISTANT,10188.9,2017,DEASE ALEXANDRA E
,OFFICE OF THE MAJORITY WHIP,2017Q1,GENERAL EXPENDITURES,PERSONNEL COMPENSATION,   ,   ,   ,DEASE ALEXANDRA E,2/1/2017,2/1/2017,SHARED EMPLOYEE,833.33,2017,DEASE ALEXANDRA E
,OFFICE OF THE MAJORITY WHIP,2017Q1,GENERAL EXPENDITURES,PERSONNEL COMPENSATION,   ,   ,   ,FINE LAUREN R,2/6/2017,3/31/2017,PRESS SECRETARY,10694.44,2017,FINE LAUREN R
,OFFICE OF THE MAJORITY WHIP,2017Q1,GENERAL EXPENDITURES,PERSONNEL COMPENSATION,   ,   ,   ,GOSNELL ELLEN C,1/3/2017,1/30/2017,STAFF ASSISTANT,4355.56,2017,GOSNELL ELLEN C
,OFFICE OF THE MAJORITY WHIP,2017Q1,GENERAL EXPENDITURES,PERSONNEL COMPENSATION,   ,   ,   ,GOSNELL ELLEN C,2/1/2017,3/31/2017,SCHEDULE COORDINATOR,5833.34,2017,GOSNELL ELLEN C
,OFFICE OF THE MAJORITY WHIP,2017Q1,GENERAL EXPENDITURES,PERSONNEL COMPENSATION,   ,   ,   ,HAMILTON PARKER,1/3/2017,3/31/2017,COS TO THE CHIEF DEP WHIP,29333.33,2017,HAMILTON PARKER
,OFFICE OF THE MAJORITY WHIP,2017Q1,GENERAL EXPENDITURES,PERSONNEL COMPENSATION,   ,   ,   ,HODGSON CHRISTOPHER M,1/3/2017,3/31/2017,DEPUTY FLOOR DIRECTOR,17722.23,2017,HODGSON CHRISTOPHER M
,OFFICE OF THE MAJORITY WHIP,2017Q1,GENERAL EXPENDITURES,PERSONNEL COMPENSATION,   ,   ,   ,HORTON BRETT H.,1/3/2017,3/31/2017,CHIEF OF STAFF,41873.33,2017,HORTON BRETT H.
,OFFICE OF THE MAJORITY WHIP,2017Q1,GENERAL EXPENDITURES,PERSONNEL COMPENSATION,   ,   ,   ,HUDAK KELLEY K,1/3/2017,3/31/2017,BUSINESS COALITIONS COORD,17944.44,2017,HUDAK KELLEY K
,OFFICE OF THE MAJORITY WHIP,2017Q1,GENERAL EXPENDITURES,PERSONNEL COMPENSATION,   ,   ,   ,HUGHES WILLIAM J,1/3/2017,3/31/2017,POLICY DIRECTOR,41725.7,2017,HUGHES WILLIAM J
,OFFICE OF THE MAJORITY WHIP,2017Q1,GENERAL EXPENDITURES,PERSONNEL COMPENSATION,   ,   ,   ,JEWELL MATTHEW L,1/3/2017,3/31/2017,STAFF ASSISTANT,9777.77,2017,JEWELL MATTHEW L
,OFFICE OF THE MAJORITY WHIP,2017Q1,GENERAL EXPENDITURES,PERSONNEL COMPENSATION,   ,   ,   ,NALLS DENNIS A,1/3/2017,3/31/2017,STAFF ASSISTANT,7822.23,2017,NALLS DENNIS A
,OFFICE OF THE MAJORITY WHIP,2017Q1,GENERAL EXPENDITURES,PERSONNEL COMPENSATION,   ,   ,   ,NAPIER BENJAMIN W,1/3/2017,3/31/2017,FLOOR ASSISTANT,14666.67,2017,NAPIER BENJAMIN W
,OFFICE OF THE MAJORITY WHIP,2017Q1,GENERAL EXPENDITURES,PERSONNEL COMPENSATION,   ,   ,   ,PLANNING DAVID M,1/3/2017,3/31/2017,SPECIAL ASST TO CHIEF DEP WHIP,7333.33,2017,PLANNING DAVID M
,OFFICE OF THE MAJORITY WHIP,2017Q1,GENERAL EXPENDITURES,PERSONNEL COMPENSATION,   ,   ,   ,REISER MARTIN G,1/3/2017,3/31/2017,LEGISLATIVE COUNSEL,39746.63,2017,REISER MARTIN G
,OFFICE OF THE MAJORITY WHIP,2017Q1,GENERAL EXPENDITURES,PERSONNEL COMPENSATION,   ,   ,   ,REISING JOHN B,1/3/2017,3/31/2017,DIRECTOR OF OPERATIONS,23627.77,2017,REISING JOHN B
,OFFICE OF THE MAJORITY WHIP,2017Q1,GENERAL EXPENDITURES,PERSONNEL COMPENSATION,   ,   ,   ,SADLOSKY DANIEL J,1/3/2017,3/31/2017,POLICY ASSISTANT,16666.67,2017,SADLOSKY DANIEL J
,OFFICE OF THE MAJORITY WHIP,2017Q1,GENERAL EXPENDITURES,PERSONNEL COMPENSATION,   ,   ,   ,TRUEMAN LAURA,1/3/2017,1/19/2017,SR. POL ADV & CONSER COAL CORD,5666.67,2017,TRUEMAN LAURA
,OFFICE OF THE MAJORITY WHIP,2017Q1,GENERAL EXPENDITURES,PERSONNEL COMPENSATION,   ,   ,   ,WOODARD JOHN S,1/3/2017,3/1/2017,STAFF ASSISTANT,4916.66,2017,WOODARD JOHN S
,OFFICE OF THE MAJORITY WHIP,2017Q1,GENERAL EXPENDITURES,PERSONNEL COMPENSATION,   ,   ,   ,ZULKOSKY ERIC T,1/3/2017,3/31/2017,DIR OF MEMBER SVS & POLICY ADV,11135.43,2017,ZULKOSKY ERIC T
,OFFICE OF THE MAJORITY WHIP,2017Q1,GENERAL EXPENDITURES,TRAVEL,2/23/2017,AP,E0489772,HORTON BRETT H.,1/5/2017,1/13/2017,TAXI/PARKING/TOLLS,122,2017,HORTON BRETT H.
,OFFICE OF THE MAJORITY WHIP,2017Q1,GENERAL EXPENDITURES,TRAVEL,3/15/2017,AP,E0495485,NALLS DENNIS A.,2/1/2017,2/9/2017,PRIVATE AUTO MILEAGE,38.79,2017,NALLS DENNIS A.
,OFFICE OF THE MAJORITY WHIP,2017Q1,GENERAL EXPENDITURES,TRAVEL,3/15/2017,AP,E0495485,NALLS DENNIS A.,2/9/2017,2/27/2017,PRIVATE AUTO MILEAGE,44.14,2017,NALLS DENNIS A.
,OFFICE OF THE MAJORITY WHIP,2017Q1,GENERAL EXPENDITURES,TRAVEL,3/15/2017,AP,E0495504,NALLS DENNIS A.,1/3/2017,1/19/2017,PRIVATE AUTO MILEAGE,22.74,2017,NALLS DENNIS A.
,OFFICE OF THE MAJORITY WHIP,2017Q1,GENERAL EXPENDITURES,TRAVEL,3/15/2017,AP,E0495504,NALLS DENNIS A.,1/19/2017,1/31/2017,PRIVATE AUTO MILEAGE,170.93,2017,NALLS DENNIS A.
,OFFICE OF THE MAJORITY WHIP,2017Q1,GENERAL EXPENDITURES,TRAVEL,3/15/2017,AP,E0495504,NALLS DENNIS A.,1/26/2017,1/26/2017,TAXI/PARKING/TOLLS,23,2017,NALLS DENNIS A.
,OFFICE OF THE MAJORITY WHIP,2017Q1,GENERAL EXPENDITURES,TRAVEL,3/22/2017,AP,E0498479,CITIBANK GOV CARD SERVICE,3/9/2017,3/12/2017,COMMERCIAL TRANSPORTATION,736.6,2017,CITIBANK GOV CARD SERVICE
,OFFICE OF THE MAJORITY WHIP,2017Q1,GENERAL EXPENDITURES,RENT  COMMUNICATION  UTILITIES,2/28/2017,GL,GRP0066174, ,2/1/2017,2/28/2017,HIR GRAPHICS (TRANSFER),10,2017, 
,OFFICE OF THE MAJORITY WHIP,2017Q1,GENERAL EXPENDITURES,PRINTING AND REPRODUCTION,2/17/2017,AP,904174,CITI PCARD-COSTCO  PHOTO CENTER,1/3/2017,1/28/2017,PRINTING & REPRODUCTION,114.41,2017,CITI PCARD-COSTCO  PHOTO CENTER
,OFFICE OF THE MAJORITY WHIP,2017Q1,GENERAL EXPENDITURES,PRINTING AND REPRODUCTION,2/23/2017,GL,PIX0066009, ,2/1/2017,2/28/2017,PHOTOGRAPHIC (TRANSFER),88.85,2017, 
,OFFICE OF THE MAJORITY WHIP,2017Q1,GENERAL EXPENDITURES,PRINTING AND REPRODUCTION,3/28/2017,GL,PIX0066926, ,3/1/2017,3/31/2017,PHOTOGRAPHIC (TRANSFER),12.8,2017, 
,OFFICE OF THE MAJORITY WHIP,2017Q1,GENERAL EXPENDITURES,OTHER SERVICES,3/6/2017,AP,907394,FIRESIDE21,1/1/2017,1/31/2017,WEB DEV HST EMAIL & RLTD SERV,585,2017,FIRESIDE21
,OFFICE OF THE MAJORITY WHIP,2017Q1,GENERAL EXPENDITURES,SUPPLIES AND MATERIALS,1/12/2017,AP,E0476705,ICONSTITUENT LLC,1/1/2017,1/31/2017,PUBLICATIONS/REFERENCE MAT'L,500,2017,ICONSTITUENT LLC
,OFFICE OF THE MAJORITY WHIP,2017Q1,GENERAL EXPENDITURES,SUPPLIES AND MATERIALS,2/3/2017,AP,E0484024,QUENCH,2/1/2017,2/28/2017,WATER,46.53,2017,QUENCH
,OFFICE OF THE MAJORITY WHIP,2017Q1,GENERAL EXPENDITURES,SUPPLIES AND MATERIALS,2/13/2017,AP,E0486310,ICONSTITUENT LLC,2/1/2017,2/28/2017,PUBLICATIONS/REFERENCE MAT'L,500,2017,ICONSTITUENT LLC
,OFFICE OF THE MAJORITY WHIP,2017Q1,GENERAL EXPENDITURES,SUPPLIES AND MATERIALS,2/17/2017,AP,904174,CITI PCARD-D J WALL-ST-JOURNAL,1/3/2017,1/28/2017,PUBLICATIONS/REFERENCE MAT'L,209.32,2017,CITI PCARD-D J WALL-ST-JOURNAL
,OFFICE OF THE MAJORITY WHIP,2017Q1,GENERAL EXPENDITURES,SUPPLIES AND MATERIALS,2/17/2017,AP,904174,CITI PCARD-FS  WALLS,1/3/2017,1/28/2017,SOFTWARE  LESS THAN  $500,100,2017,CITI PCARD-FS  WALLS
,OFFICE OF THE MAJORITY WHIP,2017Q1,GENERAL EXPENDITURES,SUPPLIES AND MATERIALS,3/14/2017,AP,E0495493,QUENCH,3/1/2017,3/31/2017,WATER,46.53,2017,QUENCH
,OFFICE OF THE MAJORITY WHIP,2017Q1,GENERAL EXPENDITURES,SUPPLIES AND MATERIALS,3/21/2017,AP,912200,CITI PCARD-APL  ITUNES.COM/BILL,1/29/2017,2/28/2017,PUBLICATIONS/REFERENCE MAT'L,11.96,2017,CITI PCARD-APL  ITUNES.COM/BILL
,OFFICE OF THE MAJORITY WHIP,2017Q1,GENERAL EXPENDITURES,SUPPLIES AND MATERIALS,3/21/2017,AP,912200,CITI PCARD-FS  WALLS.IO,1/29/2017,2/28/2017,SOFTWARE  LESS THAN  $500,100,2017,CITI PCARD-FS  WALLS.IO
,OFFICE OF THE MAJORITY WHIP,2017Q1,GENERAL EXPENDITURES,SUPPLIES AND MATERIALS,3/21/2017,AP,912200,CITI PCARD-GAINAPP.COM,1/29/2017,2/28/2017,SOFTWARE  LESS THAN  $500,80,2017,CITI PCARD-GAINAPP.COM
,OFFICE OF THE MAJORITY WHIP,2017Q1,GENERAL EXPENDITURES,SUPPLIES AND MATERIALS,3/21/2017,AP,912200,CITI PCARD-PJ'S COFFEE,1/29/2017,2/28/2017,FOOD & BEVERAGE,77.46,2017,CITI PCARD-PJ'S COFFEE
,OFFICE OF THE MAJORITY WHIP,2017Q1,GENERAL EXPENDITURES,PERSONNEL COMPENSATION,   ,   ,   ,ACORNLEY MARK A.,1/1/2017,1/2/2017,FINANCIAL ADMINISTRATOR,83.33,2017,ACORNLEY MARK A.
,OFFICE OF THE MAJORITY WHIP,2017Q1,GENERAL EXPENDITURES,PERSONNEL COMPENSATION,   ,   ,   ,BOND CHRISTOPHER J,1/1/2017,1/2/2017,COMMUNICATIONS DIRECTOR,678.8,2017,BOND CHRISTOPHER J
,OFFICE OF THE MAJORITY WHIP,2017Q1,GENERAL EXPENDITURES,PERSONNEL COMPENSATION,   ,   ,   ,BRAVO MATTHEW,1/1/2017,1/2/2017,DEPUTY DIRECTOR OF FLOOR OPERA,679.55,2017,BRAVO MATTHEW
,OFFICE OF THE MAJORITY WHIP,2017Q1,GENERAL EXPENDITURES,PERSONNEL COMPENSATION,   ,   ,   ,CAVAZOS ANDREW J,1/1/2017,1/2/2017,ASST TO THE CHIEF OF STAFF,261.11,2017,CAVAZOS ANDREW J
,OFFICE OF THE MAJORITY WHIP,2017Q1,GENERAL EXPENDITURES,PERSONNEL COMPENSATION,   ,   ,   ,DEASE ALEXANDRA E,1/1/2017,1/2/2017,STAFF ASSISTANT,311.11,2017,DEASE ALEXANDRA E
,OFFICE OF THE MAJORITY WHIP,2017Q1,GENERAL EXPENDITURES,PERSONNEL COMPENSATION,   ,   ,   ,GOSNELL ELLEN C,1/1/2017,1/2/2017,STAFF ASSISTANT,311.11,2017,GOSNELL ELLEN C
,OFFICE OF THE MAJORITY WHIP,2017Q1,GENERAL EXPENDITURES,PERSONNEL COMPENSATION,   ,   ,   ,HAMILTON PARKER,1/1/2017,1/2/2017,COS TO THE CHIEF DEP WHIP,666.67,2017,HAMILTON PARKER
,OFFICE OF THE MAJORITY WHIP,2017Q1,GENERAL EXPENDITURES,PERSONNEL COMPENSATION,   ,   ,   ,HODGSON CHRISTOPHER M,1/1/2017,1/2/2017,DEPUTY FLOOR DIRECTOR,402.78,2017,HODGSON CHRISTOPHER M
,OFFICE OF THE MAJORITY WHIP,2017Q1,GENERAL EXPENDITURES,PERSONNEL COMPENSATION,   ,   ,   ,HORTON BRETT H.,1/1/2017,1/2/2017,CHIEF OF STAFF,951.67,2017,HORTON BRETT H.
,OFFICE OF THE MAJORITY WHIP,2017Q1,GENERAL EXPENDITURES,PERSONNEL COMPENSATION,   ,   ,   ,HUDAK KELLEY K,1/1/2017,1/2/2017,BUSINESS COALITIONS COORD,388.89,2017,HUDAK KELLEY K
,OFFICE OF THE MAJORITY WHIP,2017Q1,GENERAL EXPENDITURES,PERSONNEL COMPENSATION,   ,   ,   ,HUGHES WILLIAM J,1/1/2017,1/2/2017,POLICY DIRECTOR,948.31,2017,HUGHES WILLIAM J
,OFFICE OF THE MAJORITY WHIP,2017Q1,GENERAL EXPENDITURES,PERSONNEL COMPENSATION,   ,   ,   ,JEWELL MATTHEW L,1/1/2017,1/2/2017,STAFF ASSISTANT,222.22,2017,JEWELL MATTHEW L
,OFFICE OF THE MAJORITY WHIP,2017Q1,GENERAL EXPENDITURES,PERSONNEL COMPENSATION,   ,   ,   ,NALLS DENNIS A,1/1/2017,1/2/2017,STAFF ASSISTANT,177.78,2017,NALLS DENNIS A
,OFFICE OF THE MAJORITY WHIP,2017Q1,GENERAL EXPENDITURES,PERSONNEL COMPENSATION,   ,   ,   ,NAPIER BENJAMIN W,1/1/2017,1/2/2017,FLOOR ASSISTANT,333.33,2017,NAPIER BENJAMIN W
,OFFICE OF THE MAJORITY WHIP,2017Q1,GENERAL EXPENDITURES,PERSONNEL COMPENSATION,   ,   ,   ,PLANNING DAVID M,1/1/2017,1/2/2017,SPECIAL ASST TO CHIEF DEP WHIP,166.67,2017,PLANNING DAVID M
,OFFICE OF THE MAJORITY WHIP,2017Q1,GENERAL EXPENDITURES,PERSONNEL COMPENSATION,   ,   ,   ,REISER MARTIN G,1/1/2017,1/2/2017,LEGISLATIVE COUNSEL,935.62,2017,REISER MARTIN G
,OFFICE OF THE MAJORITY WHIP,2017Q1,GENERAL EXPENDITURES,PERSONNEL COMPENSATION,   ,   ,   ,REISING JOHN B,1/1/2017,1/2/2017,DIRECTOR OF OPERATIONS,497.22,2017,REISING JOHN B
,OFFICE OF THE MAJORITY WHIP,2017Q1,GENERAL EXPENDITURES,PERSONNEL COMPENSATION,   ,   ,   ,SADLOSKY DANIEL J,1/1/2017,1/2/2017,POLICY ASSISTANT,333.33,2017,SADLOSKY DANIEL J
,OFFICE OF THE MAJORITY WHIP,2017Q1,GENERAL EXPENDITURES,PERSONNEL COMPENSATION,   ,   ,   ,TRUEMAN LAURA,1/1/2017,1/2/2017,SR. POL ADV & CONSER COAL CORD,666.67,2017,TRUEMAN LAURA
,OFFICE OF THE MAJORITY WHIP,2017Q1,GENERAL EXPENDITURES,PERSONNEL COMPENSATION,   ,   ,   ,WOODARD JOHN S,1/1/2017,1/2/2017,STAFF ASSISTANT,166.67,2017,WOODARD JOHN S
,OFFICE OF THE MAJORITY WHIP,2017Q1,GENERAL EXPENDITURES,PERSONNEL COMPENSATION,   ,   ,   ,ZULKOSKY ERIC T,1/1/2017,1/2/2017,DIR OF MEMBER SVS & POLICY ADV,380.06,2017,ZULKOSKY ERIC T
,OFFICE OF THE MAJORITY WHIP,2017Q1,GENERAL EXPENDITURES,TRAVEL,2/23/2017,AP,E0489772,HORTON BRETT H.,12/14/2016,12/29/2016,CAR RENTAL,639.14,2016,HORTON BRETT H.
,OFFICE OF THE MAJORITY WHIP,2017Q1,GENERAL EXPENDITURES,TRAVEL,2/23/2017,AP,E0489772,HORTON BRETT H.,12/23/2016,12/29/2016,GASOLINE,52.52,2016,HORTON BRETT H.
,OFFICE OF THE MAJORITY WHIP,2017Q1,GENERAL EXPENDITURES,TRAVEL,2/23/2017,AP,E0489772,HORTON BRETT H.,12/14/2016,12/29/2016,TAXI/PARKING/TOLLS,150,2016,HORTON BRETT H.
,OFFICE OF THE MAJORITY WHIP,2017Q1,GENERAL EXPENDITURES,TRAVEL,2/23/2017,AP,E0489829,CITIBANK GOV CARD SERVICE,12/9/2016,12/20/2016,COMMERCIAL TRANSPORTATION,1792.8,2016,CITIBANK GOV CARD SERVICE
,OFFICE OF THE MAJORITY WHIP,2017Q1,GENERAL EXPENDITURES,TRAVEL,2/23/2017,AP,E0489829,CITIBANK GOV CARD SERVICE,12/14/2016,12/14/2016,LODGING,179.01,2016,CITIBANK GOV CARD SERVICE
,OFFICE OF THE MAJORITY WHIP,2017Q1,GENERAL EXPENDITURES,PRINTING AND REPRODUCTION,3/8/2017,AP,E0492887,SHARP ELECTRONICS CORPORATION,9/1/2016,11/29/2016,PRINTING & REPRODUCTION,364.92,2016,SHARP ELECTRONICS CORPORATION
,OFFICE OF THE MAJORITY WHIP,2017Q1,GENERAL EXPENDITURES,SUPPLIES AND MATERIALS,1/12/2017,AP,E0476696,ICONSTITUENT LLC,12/1/2016,12/31/2016,PUBLICATIONS/REFERENCE MAT'L,500,2016,ICONSTITUENT LLC
,OFFICE OF THE MAJORITY WHIP,2017Q1,GENERAL EXPENDITURES,SUPPLIES AND MATERIALS,1/13/2017,AP,E0476720,BLOOMBERG LP,1/1/2017,12/31/2017,PUBLICATIONS/REFERENCE MAT'L,5940,2017,BLOOMBERG LP
,OFFICE OF THE MAJORITY WHIP,2017Q1,GENERAL EXPENDITURES,SUPPLIES AND MATERIALS,1/19/2017,AP,900647,CITI PCARD-APL  ITUNES.COM/BILL,11/29/2016,12/28/2016,PUBLICATIONS/REFERENCE MAT'L,0.99,2016,CITI PCARD-APL  ITUNES.COM/BILL
,OFFICE OF THE MAJORITY WHIP,2017Q1,GENERAL EXPENDITURES,SUPPLIES AND MATERIALS,1/19/2017,AP,900647,CITI PCARD-FS  WALLS.IO,11/29/2016,12/28/2016,SOFTWARE  LESS THAN  $500,100,2016,CITI PCARD-FS  WALLS.IO
,OFFICE OF THE MAJORITY WHIP,2017Q1,GENERAL EXPENDITURES,SUPPLIES AND MATERIALS,2/17/2017,AP,904174,CITI PCARD-GAINAPP.COM,12/29/2016,1/2/2017,SOFTWARE  LESS THAN  $500,80,2017,CITI PCARD-GAINAPP.COM
,OFFICE OF THE MINORITY WHIP,2017Q1,GENERAL EXPENDITURES,PERSONNEL COMPENSATION,   ,   ,   ,ABOUCHAR KEITH S.,1/3/2017,3/31/2017,SENIOR POLICY ADVISOR,34222.23,2017,ABOUCHAR KEITH S.
,OFFICE OF THE MINORITY WHIP,2017Q1,GENERAL EXPENDITURES,PERSONNEL COMPENSATION,   ,   ,   ,AVILES DANIELLE R,1/3/2017,3/31/2017,DEPUTY FLOOR DIRECTOR,18333.33,2017,AVILES DANIELLE R
,OFFICE OF THE MINORITY WHIP,2017Q1,GENERAL EXPENDITURES,PERSONNEL COMPENSATION,   ,   ,   ,BAUSERMAN TRENTON D,3/20/2017,3/31/2017,SENIOR POLICY ADVISOR,3666.67,2017,BAUSERMAN TRENTON D
,OFFICE OF THE MINORITY WHIP,2017Q1,GENERAL EXPENDITURES,PERSONNEL COMPENSATION,   ,   ,   ,BAYER JOHN S,1/5/2017,3/31/2017,STAFF ASSISTANT,5972.22,2017,BAYER JOHN S
,OFFICE OF THE MINORITY WHIP,2017Q1,GENERAL EXPENDITURES,PERSONNEL COMPENSATION,   ,   ,   ,BAYER JOHN S,1/5/2017,2/28/2017,STAFF ASSISTANT (OVERTIME),1550.46,2017,BAYER JOHN S
,OFFICE OF THE MINORITY WHIP,2017Q1,GENERAL EXPENDITURES,PERSONNEL COMPENSATION,   ,   ,   ,COLLINS MICHAEL E.,1/3/2017,3/31/2017,CHIEF DEPUTY WHIP,10388.9,2017,COLLINS MICHAEL E.
,OFFICE OF THE MINORITY WHIP,2017Q1,GENERAL EXPENDITURES,PERSONNEL COMPENSATION,   ,   ,   ,CORTINA JOSEPH B,1/3/2017,3/31/2017,SPECIAL ASSISTANT,7088.9,2017,CORTINA JOSEPH B
,OFFICE OF THE MINORITY WHIP,2017Q1,GENERAL EXPENDITURES,PERSONNEL COMPENSATION,   ,   ,   ,CORTINA JOSEPH B,1/1/2017,2/28/2017,SPECIAL ASSISTANT (OVERTIME),1463.92,2017,CORTINA JOSEPH B
,OFFICE OF THE MINORITY WHIP,2017Q1,GENERAL EXPENDITURES,PERSONNEL COMPENSATION,   ,   ,   ,COVEY-BRANDT ALEXIS,1/3/2017,3/31/2017,CHIEF OF STAFF,42166.67,2017,COVEY-BRANDT ALEXIS
,OFFICE OF THE MINORITY WHIP,2017Q1,GENERAL EXPENDITURES,PERSONNEL COMPENSATION,   ,   ,   ,DWYER STEPHEN,1/3/2017,3/31/2017,DIGITAL DIR & POLICY ADV,16866.67,2017,DWYER STEPHEN
,OFFICE OF THE MINORITY WHIP,2017Q1,GENERAL EXPENDITURES,PERSONNEL COMPENSATION,   ,   ,   ,FRY COURTNEY,1/3/2017,3/31/2017,DEP OUTREACH DIR & MEM SER ADV,28111.1,2017,FRY COURTNEY
,OFFICE OF THE MINORITY WHIP,2017Q1,GENERAL EXPENDITURES,PERSONNEL COMPENSATION,   ,   ,   ,GOFF SHUWANZA R,1/3/2017,3/31/2017,FLOOR DIRECTOR,28111.1,2017,GOFF SHUWANZA R
,OFFICE OF THE MINORITY WHIP,2017Q1,GENERAL EXPENDITURES,PERSONNEL COMPENSATION,   ,   ,   ,GRANT KATHRYN L,1/3/2017,3/31/2017,COMM DIR AND SR ADVISOR,33000,2017,GRANT KATHRYN L
,OFFICE OF THE MINORITY WHIP,2017Q1,GENERAL EXPENDITURES,PERSONNEL COMPENSATION,   ,   ,   ,LEUSCHEN JAMES P.,1/3/2017,3/31/2017,SENIOR POLICY ADVISOR,34222.23,2017,LEUSCHEN JAMES P.
,OFFICE OF THE MINORITY WHIP,2017Q1,GENERAL EXPENDITURES,PERSONNEL COMPENSATION,   ,   ,   ,MACDONALD CHARLENE,1/3/2017,3/31/2017,SENIOR POLICY ADVISOR,29333.33,2017,MACDONALD CHARLENE
,OFFICE OF THE MINORITY WHIP,2017Q1,GENERAL EXPENDITURES,PERSONNEL COMPENSATION,   ,   ,   ,MAHR THOMAS,1/3/2017,3/31/2017,POLICY DIRECTOR,39111.1,2017,MAHR THOMAS
,OFFICE OF THE MINORITY WHIP,2017Q1,GENERAL EXPENDITURES,PERSONNEL COMPENSATION,   ,   ,   ,MULKERRIN MARGARET A,2/1/2017,3/31/2017,PRESS AND RESEARCH ASSISTANT,8406.66,2017,MULKERRIN MARGARET A
,OFFICE OF THE MINORITY WHIP,2017Q1,GENERAL EXPENDITURES,PERSONNEL COMPENSATION,   ,   ,   ,NELSON CAITLIN M,1/3/2017,3/31/2017,STAFF ASSISTANT,6111.1,2017,NELSON CAITLIN M
,OFFICE OF THE MINORITY WHIP,2017Q1,GENERAL EXPENDITURES,PERSONNEL COMPENSATION,   ,   ,   ,NELSON CAITLIN M,1/1/2017,2/28/2017,STAFF ASSISTANT (OVERTIME),2001.18,2017,NELSON CAITLIN M
,OFFICE OF THE MINORITY WHIP,2017Q1,GENERAL EXPENDITURES,PERSONNEL COMPENSATION,   ,   ,   ,OPARIL MARIA A,1/8/2017,1/30/2017,STAFF ASSISTANT,416.67,2017,OPARIL MARIA A
,OFFICE OF THE MINORITY WHIP,2017Q1,GENERAL EXPENDITURES,PERSONNEL COMPENSATION,   ,   ,   ,REPKO MARY F,1/3/2017,1/20/2017,SENIOR POLICY ADVISOR,7000,2017,REPKO MARY F
,OFFICE OF THE MINORITY WHIP,2017Q1,GENERAL EXPENDITURES,PERSONNEL COMPENSATION,   ,   ,   ,ROMICK BRIAN,1/3/2017,3/31/2017,DEPUTY CHIEF OF STAFF,41555.57,2017,ROMICK BRIAN
,OFFICE OF THE MINORITY WHIP,2017Q1,GENERAL EXPENDITURES,PERSONNEL COMPENSATION,   ,   ,   ,ROWE DEBORAH M,1/3/2017,3/31/2017,EXECUTIVE ASSISTANT/OFC MGR,12329.77,2017,ROWE DEBORAH M
,OFFICE OF THE MINORITY WHIP,2017Q1,GENERAL EXPENDITURES,PERSONNEL COMPENSATION,   ,   ,   ,SAEZ MARIEL S,1/3/2017,3/31/2017,PRESS SECRETARY,19311.1,2017,SAEZ MARIEL S
,OFFICE OF THE MINORITY WHIP,2017Q1,GENERAL EXPENDITURES,PERSONNEL COMPENSATION,   ,   ,   ,SALAZAR RAYMOND J.,1/3/2017,3/31/2017,FLOOR ASSISTANT,13444.43,2017,SALAZAR RAYMOND J.
,OFFICE OF THE MINORITY WHIP,2017Q1,GENERAL EXPENDITURES,PERSONNEL COMPENSATION,   ,   ,   ,SILVERBERG DANIEL I,1/3/2017,3/31/2017,SENIOR POLICY ADVISOR,17355.57,2017,SILVERBERG DANIEL I
,OFFICE OF THE MINORITY WHIP,2017Q1,GENERAL EXPENDITURES,PERSONNEL COMPENSATION,   ,   ,   ,SUGAR-CARLSGAARD JORDAN,1/17/2017,3/31/2017,DIR OF SCHED & SPECIAL EVENTS,16855.55,2017,SUGAR-CARLSGAARD JORDAN
,OFFICE OF THE MINORITY WHIP,2017Q1,GENERAL EXPENDITURES,PERSONNEL COMPENSATION,   ,   ,   ,URRABAZO CLAUDIA,1/3/2017,3/31/2017,DEP. DIR OF MBR SER & OUTR ADV,22488.9,2017,URRABAZO CLAUDIA
,OFFICE OF THE MINORITY WHIP,2017Q1,GENERAL EXPENDITURES,PERSONNEL COMPENSATION,   ,   ,   ,WEISSMANN ADAM,1/3/2017,3/31/2017,SPEECHWRITER,18333.33,2017,WEISSMANN ADAM
,OFFICE OF THE MINORITY WHIP,2017Q1,GENERAL EXPENDITURES,PRINTING AND REPRODUCTION,2/17/2017,AP,904174,CITI PCARD-CANVA FOR WORK MONTHLY,1/3/2017,1/28/2017,PRINTING & REPRODUCTION,12.95,2017,CITI PCARD-CANVA FOR WORK MONTHLY
,OFFICE OF THE MINORITY WHIP,2017Q1,GENERAL EXPENDITURES,PRINTING AND REPRODUCTION,3/21/2017,AP,912200,CITI PCARD-CANVA FOR WORK MONTHLY,1/29/2017,2/28/2017,PRINTING & REPRODUCTION,12.95,2017,CITI PCARD-CANVA FOR WORK MONTHLY
,OFFICE OF THE MINORITY WHIP,2017Q1,GENERAL EXPENDITURES,PRINTING AND REPRODUCTION,3/21/2017,AP,912200,CITI PCARD-GOOGLE  SVCSAPPS,1/29/2017,2/28/2017,ADVERTISEMENTS,120.56,2017,CITI PCARD-GOOGLE  SVCSAPPS
,OFFICE OF THE MINORITY WHIP,2017Q1,GENERAL EXPENDITURES,PERSONNEL COMPENSATION,   ,   ,   ,ABOUCHAR KEITH S.,1/1/2017,1/2/2017,SENIOR POLICY ADVISOR,777.78,2017,ABOUCHAR KEITH S.
,OFFICE OF THE MINORITY WHIP,2017Q1,GENERAL EXPENDITURES,PERSONNEL COMPENSATION,   ,   ,   ,AVILES DANIELLE R,1/1/2017,1/2/2017,DEPUTY FLOOR DIRECTOR,416.67,2017,AVILES DANIELLE R
,OFFICE OF THE MINORITY WHIP,2017Q1,GENERAL EXPENDITURES,PERSONNEL COMPENSATION,   ,   ,   ,COLLINS MICHAEL E.,1/1/2017,1/2/2017,CHIEF DEPUTY WHIP,236.11,2017,COLLINS MICHAEL E.
,OFFICE OF THE MINORITY WHIP,2017Q1,GENERAL EXPENDITURES,PERSONNEL COMPENSATION,   ,   ,   ,CORTINA JOSEPH B,1/1/2017,1/2/2017,SPECIAL ASSISTANT,161.11,2017,CORTINA JOSEPH B
,OFFICE OF THE MINORITY WHIP,2017Q1,GENERAL EXPENDITURES,PERSONNEL COMPENSATION,   ,   ,   ,CORTINA JOSEPH B,12/1/2016,12/31/2016,SPECIAL ASSISTANT (OVERTIME),397.35,2016,CORTINA JOSEPH B
,OFFICE OF THE MINORITY WHIP,2017Q1,GENERAL EXPENDITURES,PERSONNEL COMPENSATION,   ,   ,   ,COVEY-BRANDT ALEXIS,1/1/2017,1/2/2017,CHIEF OF STAFF,958.33,2017,COVEY-BRANDT ALEXIS
,OFFICE OF THE MINORITY WHIP,2017Q1,GENERAL EXPENDITURES,PERSONNEL COMPENSATION,   ,   ,   ,DWYER STEPHEN,1/1/2017,1/2/2017,DIGITAL DIR & POLICY ADV,383.33,2017,DWYER STEPHEN
,OFFICE OF THE MINORITY WHIP,2017Q1,GENERAL EXPENDITURES,PERSONNEL COMPENSATION,   ,   ,   ,FRY COURTNEY,1/1/2017,1/2/2017,DEP OUTREACH DIR & MEM SER ADV,638.89,2017,FRY COURTNEY
,OFFICE OF THE MINORITY WHIP,2017Q1,GENERAL EXPENDITURES,PERSONNEL COMPENSATION,   ,   ,   ,GOFF SHUWANZA R,1/1/2017,1/2/2017,FLOOR DIRECTOR,638.89,2017,GOFF SHUWANZA R
,OFFICE OF THE MINORITY WHIP,2017Q1,GENERAL EXPENDITURES,PERSONNEL COMPENSATION,   ,   ,   ,GRANT KATHRYN L,1/1/2017,1/2/2017,COMM DIR AND SR ADVISOR,750,2017,GRANT KATHRYN L
,OFFICE OF THE MINORITY WHIP,2017Q1,GENERAL EXPENDITURES,PERSONNEL COMPENSATION,   ,   ,   ,LEUSCHEN JAMES P.,1/1/2017,1/2/2017,SENIOR POLICY ADVISOR,777.78,2017,LEUSCHEN JAMES P.
,OFFICE OF THE MINORITY WHIP,2017Q1,GENERAL EXPENDITURES,PERSONNEL COMPENSATION,   ,   ,   ,MACDONALD CHARLENE,1/1/2017,1/2/2017,SENIOR POLICY ADVISOR,666.67,2017,MACDONALD CHARLENE
,OFFICE OF THE MINORITY WHIP,2017Q1,GENERAL EXPENDITURES,PERSONNEL COMPENSATION,   ,   ,   ,MAHR THOMAS,1/1/2017,1/2/2017,POLICY DIRECTOR,888.89,2017,MAHR THOMAS
,OFFICE OF THE MINORITY WHIP,2017Q1,GENERAL EXPENDITURES,PERSONNEL COMPENSATION,   ,   ,   ,NELSON CAITLIN M,1/1/2017,1/2/2017,STAFF ASSISTANT,138.89,2017,NELSON CAITLIN M
,OFFICE OF THE MINORITY WHIP,2017Q1,GENERAL EXPENDITURES,PERSONNEL COMPENSATION,   ,   ,   ,NELSON CAITLIN M,12/1/2016,12/31/2016,STAFF ASSISTANT (OVERTIME),829.32,2016,NELSON CAITLIN M
,OFFICE OF THE MINORITY WHIP,2017Q1,GENERAL EXPENDITURES,PERSONNEL COMPENSATION,   ,   ,   ,OPARIL MARIA A,1/1/2017,1/2/2017,STAFF ASSISTANT,138.89,2017,OPARIL MARIA A
,OFFICE OF THE MINORITY WHIP,2017Q1,GENERAL EXPENDITURES,PERSONNEL COMPENSATION,   ,   ,   ,OPARIL MARIA A,12/1/2016,12/31/2016,STAFF ASSISTANT (OVERTIME),919.46,2016,OPARIL MARIA A
,OFFICE OF THE MINORITY WHIP,2017Q1,GENERAL EXPENDITURES,PERSONNEL COMPENSATION,   ,   ,   ,REPKO MARY F,1/1/2017,1/2/2017,SENIOR POLICY ADVISOR,777.78,2017,REPKO MARY F
,OFFICE OF THE MINORITY WHIP,2017Q1,GENERAL EXPENDITURES,PERSONNEL COMPENSATION,   ,   ,   ,ROMICK BRIAN,1/1/2017,1/2/2017,DEPUTY CHIEF OF STAFF,944.44,2017,ROMICK BRIAN
,OFFICE OF THE MINORITY WHIP,2017Q1,GENERAL EXPENDITURES,PERSONNEL COMPENSATION,   ,   ,   ,ROWE DEBORAH M,1/1/2017,1/2/2017,EXECUTIVE ASSISTANT/OFC MGR,280.22,2017,ROWE DEBORAH M
,OFFICE OF THE MINORITY WHIP,2017Q1,GENERAL EXPENDITURES,PERSONNEL COMPENSATION,   ,   ,   ,SAEZ MARIEL S,1/1/2017,1/2/2017,PRESS SECRETARY,438.89,2017,SAEZ MARIEL S
,OFFICE OF THE MINORITY WHIP,2017Q1,GENERAL EXPENDITURES,PERSONNEL COMPENSATION,   ,   ,   ,SALAZAR RAYMOND J.,1/1/2017,1/2/2017,FLOOR ASSISTANT,305.56,2017,SALAZAR RAYMOND J.
,OFFICE OF THE MINORITY WHIP,2017Q1,GENERAL EXPENDITURES,PERSONNEL COMPENSATION,   ,   ,   ,SILVERBERG DANIEL I,1/1/2017,1/2/2017,SENIOR POLICY ADVISOR,394.44,2017,SILVERBERG DANIEL I
,OFFICE OF THE MINORITY WHIP,2017Q1,GENERAL EXPENDITURES,PERSONNEL COMPENSATION,   ,   ,   ,URRABAZO CLAUDIA,1/1/2017,1/2/2017,DEP. DIR OF MBR SER & OUTR ADV,511.11,2017,URRABAZO CLAUDIA
,OFFICE OF THE MINORITY WHIP,2017Q1,GENERAL EXPENDITURES,PERSONNEL COMPENSATION,   ,   ,   ,WEISSMANN ADAM,1/1/2017,1/2/2017,SPEECHWRITER,416.67,2017,WEISSMANN ADAM
,OFFICE OF THE MINORITY WHIP,2017Q1,GENERAL EXPENDITURES,PRINTING AND REPRODUCTION,2/17/2017,AP,904174,CITI PCARD-GOOGLE  SVCSAPPS,12/29/2016,1/2/2017,ADVERTISEMENTS,57.1,2017,CITI PCARD-GOOGLE  SVCSAPPS
,OFFICE OF THE MINORITY WHIP,2017Q1,GENERAL EXPENDITURES,PRINTING AND REPRODUCTION,3/8/2017,AP,E0488183,DAVID L ANDRUKITIS INC,12/20/2016,12/20/2016,PRINTING & REPRODUCTION,4586.24,2016,DAVID L ANDRUKITIS INC
,OFFICE OF THE MINORITY WHIP,2017Q1,GENERAL EXPENDITURES,SUPPLIES AND MATERIALS,1/19/2017,AP,900647,CITI PCARD-CANVA FOR WORK MONTHLY,11/29/2016,12/28/2016,PUBLICATIONS/REFERENCE MAT'L,12.95,2016,CITI PCARD-CANVA FOR WORK MONTHLY
,OFFICE OF THE MINORITY WHIP,2017Q1,GENERAL EXPENDITURES,SUPPLIES AND MATERIALS,1/30/2017,AP,E0482421,ROMICK BRIAN,12/16/2016,12/16/2016,OFFICE SUPPLIES (OUTSIDE),105.74,2016,ROMICK BRIAN
,DEMOCRATIC CAUCUS,2017Q1,GENERAL EXPENDITURES,PERSONNEL COMPENSATION,   ,   ,   ,ASSIM ANISAH,3/15/2017,3/31/2017,STAFF ASSISTANT,1244.44,2017,ASSIM ANISAH
,DEMOCRATIC CAUCUS,2017Q1,GENERAL EXPENDITURES,PERSONNEL COMPENSATION,   ,   ,   ,BACKEMEYER COURTNEY G,1/3/2017,1/30/2017,COMMUNICTNS DIR TO VICE CHRMN,7000,2017,BACKEMEYER COURTNEY G
,DEMOCRATIC CAUCUS,2017Q1,GENERAL EXPENDITURES,PERSONNEL COMPENSATION,   ,   ,   ,BACKEMEYER COURTNEY G,2/1/2017,3/31/2017,DIR OF STARTEGIC COMM,15000,2017,BACKEMEYER COURTNEY G
,DEMOCRATIC CAUCUS,2017Q1,GENERAL EXPENDITURES,PERSONNEL COMPENSATION,   ,   ,   ,CARRILLO MANUEL J,1/3/2017,3/31/2017,DIRECTOR OF OPERATIONS,14666.67,2017,CARRILLO MANUEL J
,DEMOCRATIC CAUCUS,2017Q1,GENERAL EXPENDITURES,PERSONNEL COMPENSATION,   ,   ,   ,CASEY KEVIN,1/3/2017,3/31/2017,POLICY DIRECTOR / VICE CHAIR,21266.67,2017,CASEY KEVIN
,DEMOCRATIC CAUCUS,2017Q1,GENERAL EXPENDITURES,PERSONNEL COMPENSATION,   ,   ,   ,DELANEY ERIC L.,1/3/2017,1/18/2017,SR. ADVISOR FOR MBR SERV,2400,2017,DELANEY ERIC L.
,DEMOCRATIC CAUCUS,2017Q1,GENERAL EXPENDITURES,PERSONNEL COMPENSATION,   ,   ,   ,FRENCH LAUREN N,1/23/2017,3/31/2017,COMMUNICATIONS DIRECTOR,11138.89,2017,FRENCH LAUREN N
,DEMOCRATIC CAUCUS,2017Q1,GENERAL EXPENDITURES,PERSONNEL COMPENSATION,   ,   ,   ,GOLDBERG NICOLE E.,3/1/2017,3/31/2017,SR. CAUCUS POLICY ADVISOR,5666.67,2017,GOLDBERG NICOLE E.
,DEMOCRATIC CAUCUS,2017Q1,GENERAL EXPENDITURES,PERSONNEL COMPENSATION,   ,   ,   ,HORTA CHRISTOFER,1/3/2017,3/31/2017,STAFF ASSISTANT,7011.1,2017,HORTA CHRISTOFER
,DEMOCRATIC CAUCUS,2017Q1,GENERAL EXPENDITURES,PERSONNEL COMPENSATION,   ,   ,   ,HORTA CHRISTOFER,2/1/2017,2/28/2017,STAFF ASSISTANT (OVERTIME),2089.68,2017,HORTA CHRISTOFER
,DEMOCRATIC CAUCUS,2017Q1,GENERAL EXPENDITURES,PERSONNEL COMPENSATION,   ,   ,   ,KEATING KATHERINE E.,1/3/2017,1/30/2017,SHARED EMPLOYEE,6708.33,2017,KEATING KATHERINE E.
,DEMOCRATIC CAUCUS,2017Q1,GENERAL EXPENDITURES,PERSONNEL COMPENSATION,   ,   ,   ,KEATING KATHERINE E.,2/1/2017,3/31/2017,CHIEF OF STAFF,14375,2017,KEATING KATHERINE E.
,DEMOCRATIC CAUCUS,2017Q1,GENERAL EXPENDITURES,PERSONNEL COMPENSATION,   ,   ,   ,MARTINEZ ANTHONY M,1/3/2017,3/31/2017,DIGITAL STRATEGIST,15222.23,2017,MARTINEZ ANTHONY M
,DEMOCRATIC CAUCUS,2017Q1,GENERAL EXPENDITURES,PERSONNEL COMPENSATION,   ,   ,   ,MARTINEZ GRISELLA M,1/3/2017,2/12/2017,POLICY DIRECTOR,9000,2017,MARTINEZ GRISELLA M
,DEMOCRATIC CAUCUS,2017Q1,GENERAL EXPENDITURES,PERSONNEL COMPENSATION,   ,   ,   ,NADA BASMAH Y,1/3/2017,3/17/2017,PRESS ASSISTANT,6875,2017,NADA BASMAH Y
,DEMOCRATIC CAUCUS,2017Q1,GENERAL EXPENDITURES,PERSONNEL COMPENSATION,   ,   ,   ,RODRIGUEZ-CIAMPOLI FABIOLA,1/3/2017,2/28/2017,EXECUTIVE DIRECTOR,23361.1,2017,RODRIGUEZ-CIAMPOLI FABIOLA
,DEMOCRATIC CAUCUS,2017Q1,GENERAL EXPENDITURES,PERSONNEL COMPENSATION,   ,   ,   ,SACHSE ANDREW M,1/3/2017,3/31/2017,OUTREACH AND MEMBER SERVICES,12222.23,2017,SACHSE ANDREW M
,DEMOCRATIC CAUCUS,2017Q1,GENERAL EXPENDITURES,PERSONNEL COMPENSATION,   ,   ,   ,SANCHEZ CARLOS S.,1/9/2017,3/31/2017,EXECUTIVE DIRECTOR,35305.56,2017,SANCHEZ CARLOS S.
,DEMOCRATIC CAUCUS,2017Q1,GENERAL EXPENDITURES,TRAVEL,2/16/2017,AP,E0488339,CARRILLO MANUEL J.,2/6/2017,2/10/2017,CAR RENTAL,1383.03,2017,CARRILLO MANUEL J.
,DEMOCRATIC CAUCUS,2017Q1,GENERAL EXPENDITURES,TRAVEL,2/17/2017,AP,E0488705,BACKEMEYER COURTNEY G.,2/6/2017,2/10/2017,CAR RENTAL,608.52,2017,BACKEMEYER COURTNEY G.
,DEMOCRATIC CAUCUS,2017Q1,GENERAL EXPENDITURES,TRAVEL,2/28/2017,AP,E0491180,CARRILLO MANUEL J.,2/22/2017,2/22/2017,TAXI/PARKING/TOLLS,5.99,2017,CARRILLO MANUEL J.
,DEMOCRATIC CAUCUS,2017Q1,GENERAL EXPENDITURES,RENT  COMMUNICATION  UTILITIES,2/17/2017,AP,904174,CITI PCARD-FEDEX,1/3/2017,1/28/2017,POSTAGE / COURIER / BOX RENTAL,27.5,2017,CITI PCARD-FEDEX
,DEMOCRATIC CAUCUS,2017Q1,GENERAL EXPENDITURES,PRINTING AND REPRODUCTION,1/27/2017,GL,PIX0065253, ,1/1/2017,1/31/2017,PHOTOGRAPHIC (TRANSFER),66.5,2017, 
,DEMOCRATIC CAUCUS,2017Q1,GENERAL EXPENDITURES,PRINTING AND REPRODUCTION,2/17/2017,AP,904174,CITI PCARD-LAMINATION SERVICES,1/3/2017,1/28/2017,PRINTING & REPRODUCTION,308,2017,CITI PCARD-LAMINATION SERVICES
,DEMOCRATIC CAUCUS,2017Q1,GENERAL EXPENDITURES,PRINTING AND REPRODUCTION,3/30/2017,AP,E0501958,DAVID L ANDRUKITIS INC,3/22/2017,3/22/2017,PRINTING & REPRODUCTION,67,2017,DAVID L ANDRUKITIS INC
,DEMOCRATIC CAUCUS,2017Q1,GENERAL EXPENDITURES,OTHER SERVICES,2/17/2017,AP,904174,CITI PCARD-DROPBOX,1/3/2017,1/28/2017,NON-TECHNOLOGY SERVICE CONTR,750,2017,CITI PCARD-DROPBOX
,DEMOCRATIC CAUCUS,2017Q1,GENERAL EXPENDITURES,OTHER SERVICES,3/21/2017,AP,912200,CITI PCARD-CLASSICLEANERS-LONGWOR,1/29/2017,2/28/2017,LAUNDRY SERVICES,293.93,2017,CITI PCARD-CLASSICLEANERS-LONGWOR
,DEMOCRATIC CAUCUS,2017Q1,GENERAL EXPENDITURES,SUPPLIES AND MATERIALS,1/31/2017,AP,E0482940,TVEYES INC,2/1/2017,12/31/2017,PUBLICATIONS/REFERENCE MAT'L,1100,2017,TVEYES INC
,DEMOCRATIC CAUCUS,2017Q1,GENERAL EXPENDITURES,SUPPLIES AND MATERIALS,2/3/2017,AP,E0483973,RODRIGUEZ-CIAMPOLI FABIOLA,1/27/2017,1/27/2017,FOOD & BEVERAGE,1081.81,2017,RODRIGUEZ-CIAMPOLI FABIOLA
,DEMOCRATIC CAUCUS,2017Q1,GENERAL EXPENDITURES,SUPPLIES AND MATERIALS,2/17/2017,AP,904174,CITI PCARD-BETHESDA BAGELS,1/3/2017,1/28/2017,FOOD & BEVERAGE,2292.67,2017,CITI PCARD-BETHESDA BAGELS
,DEMOCRATIC CAUCUS,2017Q1,GENERAL EXPENDITURES,SUPPLIES AND MATERIALS,2/17/2017,AP,904174,CITI PCARD-CQ ROLL CALL INC.,1/3/2017,1/28/2017,PUBLICATIONS/REFERENCE MAT'L,8248,2017,CITI PCARD-CQ ROLL CALL INC.
,DEMOCRATIC CAUCUS,2017Q1,GENERAL EXPENDITURES,SUPPLIES AND MATERIALS,2/17/2017,AP,904174,CITI PCARD-CVC CATERING,1/3/2017,1/28/2017,FOOD & BEVERAGE,5672.5,2017,CITI PCARD-CVC CATERING
,DEMOCRATIC CAUCUS,2017Q1,GENERAL EXPENDITURES,SUPPLIES AND MATERIALS,2/17/2017,AP,904174,CITI PCARD-HARRIS TEETER,1/3/2017,1/28/2017,FOOD & BEVERAGE,1031.12,2017,CITI PCARD-HARRIS TEETER
,DEMOCRATIC CAUCUS,2017Q1,GENERAL EXPENDITURES,SUPPLIES AND MATERIALS,2/17/2017,AP,904174,CITI PCARD-IN  CONGRESS CATERING,1/3/2017,1/28/2017,FOOD & BEVERAGE,4460,2017,CITI PCARD-IN  CONGRESS CATERING
,DEMOCRATIC CAUCUS,2017Q1,GENERAL EXPENDITURES,SUPPLIES AND MATERIALS,2/17/2017,AP,904174,CITI PCARD-NYT NY TIMES SUBS,1/3/2017,1/28/2017,PUBLICATIONS/REFERENCE MAT'L,3083.65,2017,CITI PCARD-NYT NY TIMES SUBS
,DEMOCRATIC CAUCUS,2017Q1,GENERAL EXPENDITURES,SUPPLIES AND MATERIALS,2/27/2017,AP,906775,DEER PARK,1/31/2017,1/31/2017,WATER,29.99,2017,DEER PARK
,DEMOCRATIC CAUCUS,2017Q1,GENERAL EXPENDITURES,SUPPLIES AND MATERIALS,3/21/2017,AP,912200,CITI PCARD-AMAZON MKTPLACE PMTS,1/29/2017,2/28/2017,FOOD & BEVERAGE,12.49,2017,CITI PCARD-AMAZON MKTPLACE PMTS
,DEMOCRATIC CAUCUS,2017Q1,GENERAL EXPENDITURES,SUPPLIES AND MATERIALS,3/21/2017,AP,912200,CITI PCARD-BETHESDA BAGELS,1/29/2017,2/28/2017,FOOD & BEVERAGE,2217.67,2017,CITI PCARD-BETHESDA BAGELS
,DEMOCRATIC CAUCUS,2017Q1,GENERAL EXPENDITURES,SUPPLIES AND MATERIALS,3/21/2017,AP,912200,CITI PCARD-CARMINE'S,1/29/2017,2/28/2017,FOOD & BEVERAGE,326.18,2017,CITI PCARD-CARMINE'S
,DEMOCRATIC CAUCUS,2017Q1,GENERAL EXPENDITURES,SUPPLIES AND MATERIALS,3/21/2017,AP,912200,CITI PCARD-DOMINO'S,1/29/2017,2/28/2017,FOOD & BEVERAGE,109.01,2017,CITI PCARD-DOMINO'S
,DEMOCRATIC CAUCUS,2017Q1,GENERAL EXPENDITURES,SUPPLIES AND MATERIALS,3/21/2017,AP,912200,CITI PCARD-DT,1/29/2017,2/28/2017,FOOD & BEVERAGE,790.51,2017,CITI PCARD-DT
,DEMOCRATIC CAUCUS,2017Q1,GENERAL EXPENDITURES,SUPPLIES AND MATERIALS,3/21/2017,AP,912200,CITI PCARD-HARRIS TEETER,1/29/2017,2/28/2017,FOOD & BEVERAGE,904.85,2017,CITI PCARD-HARRIS TEETER
,DEMOCRATIC CAUCUS,2017Q1,GENERAL EXPENDITURES,SUPPLIES AND MATERIALS,3/21/2017,AP,912200,CITI PCARD-LEVELUP SWEETGREEN,1/29/2017,2/28/2017,FOOD & BEVERAGE,283.09,2017,CITI PCARD-LEVELUP SWEETGREEN
,DEMOCRATIC CAUCUS,2017Q1,GENERAL EXPENDITURES,SUPPLIES AND MATERIALS,3/21/2017,AP,912200,CITI PCARD-MAIN EVENT CATERERS,1/29/2017,2/28/2017,FOOD & BEVERAGE,1459,2017,CITI PCARD-MAIN EVENT CATERERS
,DEMOCRATIC CAUCUS,2017Q1,GENERAL EXPENDITURES,SUPPLIES AND MATERIALS,3/21/2017,AP,912200,CITI PCARD-WE THE PIZZA,1/29/2017,2/28/2017,FOOD & BEVERAGE,71.18,2017,CITI PCARD-WE THE PIZZA
,DEMOCRATIC CAUCUS,2017Q1,GENERAL EXPENDITURES,SUPPLIES AND MATERIALS,3/28/2017,AP,912405,DEER PARK,2/28/2017,2/28/2017,WATER,29.99,2017,DEER PARK
,DEMOCRATIC CAUCUS,2017Q1,GENERAL EXPENDITURES,PERSONNEL COMPENSATION,   ,   ,   ,ALVI HINA R,1/1/2017,1/2/2017,SHARED EMPLOYEE,166.67,2017,ALVI HINA R
,DEMOCRATIC CAUCUS,2017Q1,GENERAL EXPENDITURES,PERSONNEL COMPENSATION,   ,   ,   ,ARMENDARIZ JR ANTONIO,1/1/2017,1/2/2017,PRESS SECRETARY,250,2017,ARMENDARIZ JR ANTONIO
,DEMOCRATIC CAUCUS,2017Q1,GENERAL EXPENDITURES,PERSONNEL COMPENSATION,   ,   ,   ,ARMENDARIZ JR ANTONIO,11/1/2016,11/1/2016,PRESS SECRETARY (OTHER COMPENSATION),2000,2016,ARMENDARIZ JR ANTONIO
,DEMOCRATIC CAUCUS,2017Q1,GENERAL EXPENDITURES,PERSONNEL COMPENSATION,   ,   ,   ,BACKEMEYER COURTNEY G,1/1/2017,1/2/2017,COMMUNICTNS DIR TO VICE CHRMN,177.78,2017,BACKEMEYER COURTNEY G
,DEMOCRATIC CAUCUS,2017Q1,GENERAL EXPENDITURES,PERSONNEL COMPENSATION,   ,   ,   ,CARRILLO MANUEL J,1/1/2017,1/2/2017,OPERATIONS AND EVENTS COOR,316.67,2017,CARRILLO MANUEL J
,DEMOCRATIC CAUCUS,2017Q1,GENERAL EXPENDITURES,PERSONNEL COMPENSATION,   ,   ,   ,CARRILLO MANUEL J,1/1/2017,1/2/2017,OPERATIONS AND EVENTS COOR (OTHER COMPENSATION),3325,2017,CARRILLO MANUEL J
,DEMOCRATIC CAUCUS,2017Q1,GENERAL EXPENDITURES,PERSONNEL COMPENSATION,   ,   ,   ,CARRILLO MANUEL J,11/1/2016,11/1/2016,OPERATIONS AND EVENTS COOR (OTHER COMPENSATION),2000,2016,CARRILLO MANUEL J
,DEMOCRATIC CAUCUS,2017Q1,GENERAL EXPENDITURES,PERSONNEL COMPENSATION,   ,   ,   ,CASEY KEVIN,1/1/2017,1/2/2017,POLICY DIRECTOR / VICE CHAIR,483.33,2017,CASEY KEVIN
,DEMOCRATIC CAUCUS,2017Q1,GENERAL EXPENDITURES,PERSONNEL COMPENSATION,   ,   ,   ,DELANEY ERIC L.,1/1/2017,1/2/2017,SR. ADVISOR FOR MBR SERV,300,2017,DELANEY ERIC L.
,DEMOCRATIC CAUCUS,2017Q1,GENERAL EXPENDITURES,PERSONNEL COMPENSATION,   ,   ,   ,DELANEY ERIC L.,1/1/2017,1/2/2017,SR. ADVISOR FOR MBR SERV (OTHER COMPENSATION),4350,2017,DELANEY ERIC L.
,DEMOCRATIC CAUCUS,2017Q1,GENERAL EXPENDITURES,PERSONNEL COMPENSATION,   ,   ,   ,DELANEY ERIC L.,11/1/2016,11/1/2016,SR. ADVISOR FOR MBR SERV (OTHER COMPENSATION),2000,2016,DELANEY ERIC L.
,DEMOCRATIC CAUCUS,2017Q1,GENERAL EXPENDITURES,PERSONNEL COMPENSATION,   ,   ,   ,HORTA CHRISTOFER,1/1/2017,1/2/2017,STAFF ASSISTANT,155.56,2017,HORTA CHRISTOFER
,DEMOCRATIC CAUCUS,2017Q1,GENERAL EXPENDITURES,PERSONNEL COMPENSATION,   ,   ,   ,HORTA CHRISTOFER,12/1/2016,12/30/2016,STAFF ASSISTANT (OVERTIME),3774.91,2016,HORTA CHRISTOFER
,DEMOCRATIC CAUCUS,2017Q1,GENERAL EXPENDITURES,PERSONNEL COMPENSATION,   ,   ,   ,HORTA CHRISTOFER,11/1/2016,11/1/2016,STAFF ASSISTANT (OTHER COMPENSATION),2000,2016,HORTA CHRISTOFER
,DEMOCRATIC CAUCUS,2017Q1,GENERAL EXPENDITURES,PERSONNEL COMPENSATION,   ,   ,   ,KEATING KATHERINE E.,1/1/2017,1/2/2017,SHARED EMPLOYEE,422.22,2017,KEATING KATHERINE E.
,DEMOCRATIC CAUCUS,2017Q1,GENERAL EXPENDITURES,PERSONNEL COMPENSATION,   ,   ,   ,MARTINEZ ANTHONY M,1/1/2017,1/2/2017,DIGITAL STRATEGIST,272.22,2017,MARTINEZ ANTHONY M
,DEMOCRATIC CAUCUS,2017Q1,GENERAL EXPENDITURES,PERSONNEL COMPENSATION,   ,   ,   ,MARTINEZ ANTHONY M,1/1/2017,1/2/2017,DIGITAL STRATEGIST (OTHER COMPENSATION),272.22,2017,MARTINEZ ANTHONY M
,DEMOCRATIC CAUCUS,2017Q1,GENERAL EXPENDITURES,PERSONNEL COMPENSATION,   ,   ,   ,MARTINEZ ANTHONY M,12/1/2016,12/1/2016,DIGITAL STRATEGIST (OTHER COMPENSATION),2000,2016,MARTINEZ ANTHONY M
,DEMOCRATIC CAUCUS,2017Q1,GENERAL EXPENDITURES,PERSONNEL COMPENSATION,   ,   ,   ,MARTINEZ GRISELLA M,1/1/2017,1/2/2017,POLICY DIRECTOR,450,2017,MARTINEZ GRISELLA M
,DEMOCRATIC CAUCUS,2017Q1,GENERAL EXPENDITURES,PERSONNEL COMPENSATION,   ,   ,   ,MARTINEZ GRISELLA M,1/1/2017,1/2/2017,POLICY DIRECTOR (OTHER COMPENSATION),4837.5,2017,MARTINEZ GRISELLA M
,DEMOCRATIC CAUCUS,2017Q1,GENERAL EXPENDITURES,PERSONNEL COMPENSATION,   ,   ,   ,MARTINEZ GRISELLA M,10/1/2016,10/10/2016,POLICY DIRECTOR (OTHER COMPENSATION),2000,2016,MARTINEZ GRISELLA M
,DEMOCRATIC CAUCUS,2017Q1,GENERAL EXPENDITURES,PERSONNEL COMPENSATION,   ,   ,   ,MCCLUSKIE SEAN E,1/1/2017,1/2/2017,CHIEF OF STAFF,466.67,2017,MCCLUSKIE SEAN E
,DEMOCRATIC CAUCUS,2017Q1,GENERAL EXPENDITURES,PERSONNEL COMPENSATION,   ,   ,   ,NADA BASMAH Y,1/1/2017,1/2/2017,PRESS ASSISTANT,183.33,2017,NADA BASMAH Y
,DEMOCRATIC CAUCUS,2017Q1,GENERAL EXPENDITURES,PERSONNEL COMPENSATION,   ,   ,   ,NADA BASMAH Y,11/1/2016,11/1/2016,PRESS ASSISTANT (OTHER COMPENSATION),2000,2016,NADA BASMAH Y
,DEMOCRATIC CAUCUS,2017Q1,GENERAL EXPENDITURES,PERSONNEL COMPENSATION,   ,   ,   ,NSIAH JOSEPH K,1/1/2017,1/2/2017,POLICY ADVISOR,261.11,2017,NSIAH JOSEPH K
,DEMOCRATIC CAUCUS,2017Q1,GENERAL EXPENDITURES,PERSONNEL COMPENSATION,   ,   ,   ,NSIAH JOSEPH K,1/1/2017,1/2/2017,POLICY ADVISOR (OTHER COMPENSATION),3916.67,2017,NSIAH JOSEPH K
,DEMOCRATIC CAUCUS,2017Q1,GENERAL EXPENDITURES,PERSONNEL COMPENSATION,   ,   ,   ,NSIAH JOSEPH K,11/1/2016,11/1/2016,POLICY ADVISOR (OTHER COMPENSATION),2000,2016,NSIAH JOSEPH K
,DEMOCRATIC CAUCUS,2017Q1,GENERAL EXPENDITURES,PERSONNEL COMPENSATION,   ,   ,   ,PEREZ-SANCHEZ NOEL,1/1/2017,1/2/2017,ADVISOR FOR MBR. SERVICES,250,2017,PEREZ-SANCHEZ NOEL
,DEMOCRATIC CAUCUS,2017Q1,GENERAL EXPENDITURES,PERSONNEL COMPENSATION,   ,   ,   ,PEREZ-SANCHEZ NOEL,1/1/2017,1/2/2017,ADVISOR FOR MBR. SERVICES (OTHER COMPENSATION),2500,2017,PEREZ-SANCHEZ NOEL
,DEMOCRATIC CAUCUS,2017Q1,GENERAL EXPENDITURES,PERSONNEL COMPENSATION,   ,   ,   ,PEREZ-SANCHEZ NOEL,11/1/2016,11/1/2016,ADVISOR FOR MBR. SERVICES (OTHER COMPENSATION),2000,2016,PEREZ-SANCHEZ NOEL
,DEMOCRATIC CAUCUS,2017Q1,GENERAL EXPENDITURES,PERSONNEL COMPENSATION,   ,   ,   ,RODRIGUEZ-CIAMPOLI FABIOLA,1/1/2017,1/2/2017,EXECUTIVE DIRECTOR,805.56,2017,RODRIGUEZ-CIAMPOLI FABIOLA
,DEMOCRATIC CAUCUS,2017Q1,GENERAL EXPENDITURES,PERSONNEL COMPENSATION,   ,   ,   ,RODRIGUEZ-CIAMPOLI FABIOLA,1/1/2017,1/2/2017,EXECUTIVE DIRECTOR (OTHER COMPENSATION),1611.11,2017,RODRIGUEZ-CIAMPOLI FABIOLA
,DEMOCRATIC CAUCUS,2017Q1,GENERAL EXPENDITURES,PERSONNEL COMPENSATION,   ,   ,   ,RODRIGUEZ-CIAMPOLI FABIOLA,4/1/2016,4/1/2016,EXECUTIVE DIRECTOR (OTHER COMPENSATION),2000,2016,RODRIGUEZ-CIAMPOLI FABIOLA
,DEMOCRATIC CAUCUS,2017Q1,GENERAL EXPENDITURES,PERSONNEL COMPENSATION,   ,   ,   ,SACHSE ANDREW M,1/1/2017,1/2/2017,STAFF ASSISTANT,194.44,2017,SACHSE ANDREW M
,DEMOCRATIC CAUCUS,2017Q1,GENERAL EXPENDITURES,PERSONNEL COMPENSATION,   ,   ,   ,SALAZAR MIGUEL R,1/1/2017,1/2/2017,PRESS SECRETARY,272.22,2017,SALAZAR MIGUEL R
,DEMOCRATIC CAUCUS,2017Q1,GENERAL EXPENDITURES,PERSONNEL COMPENSATION,   ,   ,   ,SALAZAR MIGUEL R,1/1/2017,1/2/2017,PRESS SECRETARY (OTHER COMPENSATION),816.67,2017,SALAZAR MIGUEL R
,DEMOCRATIC CAUCUS,2017Q1,GENERAL EXPENDITURES,PERSONNEL COMPENSATION,   ,   ,   ,SALAZAR MIGUEL R,11/1/2016,11/1/2016,PRESS SECRETARY (OTHER COMPENSATION),2000,2016,SALAZAR MIGUEL R
,DEMOCRATIC CAUCUS,2017Q1,GENERAL EXPENDITURES,PERSONNEL COMPENSATION,   ,   ,   ,SHARMA MOH R,1/1/2017,1/2/2017,SENIOR POLICY ADVISOR,322.22,2017,SHARMA MOH R
,DEMOCRATIC CAUCUS,2017Q1,GENERAL EXPENDITURES,PERSONNEL COMPENSATION,   ,   ,   ,SHARMA MOH R,1/1/2017,1/2/2017,SENIOR POLICY ADVISOR (OTHER COMPENSATION),3625,2017,SHARMA MOH R
,DEMOCRATIC CAUCUS,2017Q1,GENERAL EXPENDITURES,PERSONNEL COMPENSATION,   ,   ,   ,SHARMA MOH R,11/1/2016,11/1/2016,SENIOR POLICY ADVISOR (OTHER COMPENSATION),2000,2016,SHARMA MOH R
,DEMOCRATIC CAUCUS,2017Q1,GENERAL EXPENDITURES,PERSONNEL COMPENSATION,   ,   ,   ,WOODRUM JEREMY S,1/1/2017,1/2/2017,LEGISLATIVE DIR.  VICE CHAIR,238.89,2017,WOODRUM JEREMY S
,DEMOCRATIC CAUCUS,2017Q1,GENERAL EXPENDITURES,TRAVEL,1/3/2017,AP,E0472076,SALAZAR MIGUEL R.,11/18/2016,11/18/2016,TAXI/PARKING/TOLLS,8.75,2016,SALAZAR MIGUEL R.
,DEMOCRATIC CAUCUS,2017Q1,GENERAL EXPENDITURES,OTHER SERVICES,1/19/2017,AP,900647,CITI PCARD-CLASSICLEANERS,11/29/2016,12/28/2016,LAUNDRY SERVICES,260.5,2016,CITI PCARD-CLASSICLEANERS
,DEMOCRATIC CAUCUS,2017Q1,GENERAL EXPENDITURES,SUPPLIES AND MATERIALS,1/19/2017,AP,900647,CITI PCARD-BETHESDA BAGELS,11/29/2016,12/28/2016,FOOD & BEVERAGE,1912.99,2016,CITI PCARD-BETHESDA BAGELS
,DEMOCRATIC CAUCUS,2017Q1,GENERAL EXPENDITURES,SUPPLIES AND MATERIALS,1/19/2017,AP,900647,CITI PCARD-BOX BOX.NET BUS SRVCS,11/29/2016,12/28/2016,PUBLICATIONS/REFERENCE MAT'L,1200,2016,CITI PCARD-BOX BOX.NET BUS SRVCS
,DEMOCRATIC CAUCUS,2017Q1,GENERAL EXPENDITURES,SUPPLIES AND MATERIALS,1/19/2017,AP,900647,CITI PCARD-CAPITOL HOST,11/29/2016,12/28/2016,FOOD & BEVERAGE,673.5,2016,CITI PCARD-CAPITOL HOST
,DEMOCRATIC CAUCUS,2017Q1,GENERAL EXPENDITURES,SUPPLIES AND MATERIALS,1/19/2017,AP,900647,CITI PCARD-CARMINE'S,11/29/2016,12/28/2016,FOOD & BEVERAGE,1890.49,2016,CITI PCARD-CARMINE'S
,DEMOCRATIC CAUCUS,2017Q1,GENERAL EXPENDITURES,SUPPLIES AND MATERIALS,1/19/2017,AP,900647,CITI PCARD-DOMINO'S,11/29/2016,12/28/2016,FOOD & BEVERAGE,98.94,2016,CITI PCARD-DOMINO'S
,DEMOCRATIC CAUCUS,2017Q1,GENERAL EXPENDITURES,SUPPLIES AND MATERIALS,1/19/2017,AP,900647,CITI PCARD-HARRIS TEETER,11/29/2016,12/28/2016,FOOD & BEVERAGE,1778.9,2016,CITI PCARD-HARRIS TEETER
,DEMOCRATIC CAUCUS,2017Q1,GENERAL EXPENDITURES,SUPPLIES AND MATERIALS,1/19/2017,AP,900647,CITI PCARD-LA TIMES SUBSCRIPTION,11/29/2016,12/28/2016,PUBLICATIONS/REFERENCE MAT'L,11.96,2016,CITI PCARD-LA TIMES SUBSCRIPTION
,DEMOCRATIC CAUCUS,2017Q1,GENERAL EXPENDITURES,SUPPLIES AND MATERIALS,1/19/2017,AP,900647,CITI PCARD-SAINT GERMAIN CATERING,11/29/2016,12/28/2016,FOOD & BEVERAGE,5865.1,2016,CITI PCARD-SAINT GERMAIN CATERING
,DEMOCRATIC CAUCUS,2017Q1,GENERAL EXPENDITURES,SUPPLIES AND MATERIALS,1/20/2017,AP,900787,DEER PARK,12/31/2016,12/31/2016,WATER,29.99,2016,DEER PARK
,REPUBLICAN CONFERENCE,2017Q1,GENERAL EXPENDITURES,PERSONNEL COMPENSATION,   ,   ,   ,BARKLEY RACHEL K,2/21/2017,3/31/2017,DIRECTOR OF OUTREACH,10277.77,2017,BARKLEY RACHEL K
,REPUBLICAN CONFERENCE,2017Q1,GENERAL EXPENDITURES,PERSONNEL COMPENSATION,   ,   ,   ,CROCKER NICHOLAS L,1/3/2017,3/31/2017,MEMBER SERVICES COORDINATOR,14666.67,2017,CROCKER NICHOLAS L
,REPUBLICAN CONFERENCE,2017Q1,GENERAL EXPENDITURES,PERSONNEL COMPENSATION,   ,   ,   ,DEHNEL KENDALL L,2/6/2017,3/31/2017,STAFF ASSISTANT,4888.89,2017,DEHNEL KENDALL L
,REPUBLICAN CONFERENCE,2017Q1,GENERAL EXPENDITURES,PERSONNEL COMPENSATION,   ,   ,   ,DEUTSCH JEREMY,1/3/2017,3/31/2017,CHIEF OF STAFF,41433.33,2017,DEUTSCH JEREMY
,REPUBLICAN CONFERENCE,2017Q1,GENERAL EXPENDITURES,PERSONNEL COMPENSATION,   ,   ,   ,FINE GAVRIELA R,1/11/2017,3/31/2017,STAFF ASSIST/EXC ASSIST TO COS,7312.49,2017,FINE GAVRIELA R
,REPUBLICAN CONFERENCE,2017Q1,GENERAL EXPENDITURES,PERSONNEL COMPENSATION,   ,   ,   ,FUHS MOLLY B,1/3/2017,3/31/2017,PRESS SECRETARY,7650,2017,FUHS MOLLY B
,REPUBLICAN CONFERENCE,2017Q1,GENERAL EXPENDITURES,PERSONNEL COMPENSATION,   ,   ,   ,HALL MIKAYLA M,1/3/2017,3/31/2017,SPEECH WRITER,12711.1,2017,HALL MIKAYLA M
,REPUBLICAN CONFERENCE,2017Q1,GENERAL EXPENDITURES,PERSONNEL COMPENSATION,   ,   ,   ,HAUCK KARA,1/3/2017,3/31/2017,COMMUNICATIONS DIRECTOR,23222.23,2017,HAUCK KARA
,REPUBLICAN CONFERENCE,2017Q1,GENERAL EXPENDITURES,PERSONNEL COMPENSATION,   ,   ,   ,HODSON NATHAN M,1/3/2017,3/31/2017,DEPUTY CHIEF OF STAFF,38777.77,2017,HODSON NATHAN M
,REPUBLICAN CONFERENCE,2017Q1,GENERAL EXPENDITURES,PERSONNEL COMPENSATION,   ,   ,   ,KING EMILY P,1/3/2017,3/31/2017,DEPUTY SCHEDULER,8555.57,2017,KING EMILY P
,REPUBLICAN CONFERENCE,2017Q1,GENERAL EXPENDITURES,PERSONNEL COMPENSATION,   ,   ,   ,MARK REBECCA,1/27/2017,1/30/2017,SR. ADVISOR TECH POLICY/WOMEN,7638.89,2017,MARK REBECCA
,REPUBLICAN CONFERENCE,2017Q1,GENERAL EXPENDITURES,PERSONNEL COMPENSATION,   ,   ,   ,MCQUADE KATHRYN E,1/3/2017,3/31/2017,MEDIA AFFAIRS AND EVENTS COORD,20777.77,2017,MCQUADE KATHRYN E
,REPUBLICAN CONFERENCE,2017Q1,GENERAL EXPENDITURES,PERSONNEL COMPENSATION,   ,   ,   ,POWELL JARED K,1/3/2017,3/31/2017,STAFF ASSISTANT,10352.23,2017,POWELL JARED K
,REPUBLICAN CONFERENCE,2017Q1,GENERAL EXPENDITURES,PERSONNEL COMPENSATION,   ,   ,   ,ROGERS SARAH E,1/3/2017,3/31/2017,DIRECTOR OF MEMBER SERVICES,30555.57,2017,ROGERS SARAH E
,REPUBLICAN CONFERENCE,2017Q1,GENERAL EXPENDITURES,PERSONNEL COMPENSATION,   ,   ,   ,ROOS AMBER E,1/3/2017,3/31/2017,FINANCE ASSISTANT,2169.62,2017,ROOS AMBER E
,REPUBLICAN CONFERENCE,2017Q1,GENERAL EXPENDITURES,PERSONNEL COMPENSATION,   ,   ,   ,ROSS JOHN E.,1/3/2017,3/31/2017,FINANCE DIRECTOR,2169.25,2017,ROSS JOHN E.
,REPUBLICAN CONFERENCE,2017Q1,GENERAL EXPENDITURES,PERSONNEL COMPENSATION,   ,   ,   ,SMENTEK DAVID,1/3/2017,3/31/2017,POLICY COORDINATOR,7333.33,2017,SMENTEK DAVID
,REPUBLICAN CONFERENCE,2017Q1,GENERAL EXPENDITURES,PERSONNEL COMPENSATION,   ,   ,   ,SUNDAY JESSICA M,1/3/2017,3/31/2017,DIR OF OPERATIONS & CULTURE,19215.77,2017,SUNDAY JESSICA M
,REPUBLICAN CONFERENCE,2017Q1,GENERAL EXPENDITURES,PERSONNEL COMPENSATION,   ,   ,   ,THORNE DRAY A,1/3/2017,3/31/2017,SYSTEMS ADMINISTRATOR,10066.67,2017,THORNE DRAY A
,REPUBLICAN CONFERENCE,2017Q1,GENERAL EXPENDITURES,TRAVEL,1/27/2017,AP,E0480862,CROCKER NICHOLAS L.,1/18/2017,1/18/2017,TAXI/PARKING/TOLLS,42.54,2017,CROCKER NICHOLAS L.
,REPUBLICAN CONFERENCE,2017Q1,GENERAL EXPENDITURES,TRAVEL,2/15/2017,AP,E0487850,CITIBANK GOV CARD SERVICE,1/18/2017,1/18/2017,COMMERCIAL TRANSPORTATION,261,2017,CITIBANK GOV CARD SERVICE
,REPUBLICAN CONFERENCE,2017Q1,GENERAL EXPENDITURES,TRAVEL,2/15/2017,AP,E0487850,CITIBANK GOV CARD SERVICE,1/24/2017,1/24/2017,COMMERCIAL TRANSPORTATION,9,2017,CITIBANK GOV CARD SERVICE
,REPUBLICAN CONFERENCE,2017Q1,GENERAL EXPENDITURES,TRAVEL,2/15/2017,AP,E0487850,CITIBANK GOV CARD SERVICE,1/4/2017,1/10/2017,TAXI/PARKING/TOLLS,19.62,2017,CITIBANK GOV CARD SERVICE
,REPUBLICAN CONFERENCE,2017Q1,GENERAL EXPENDITURES,TRAVEL,2/27/2017,AP,E0490256,CITIBANK GOV CARD SERVICE,1/24/2017,1/24/2017,COMMERCIAL TRANSPORTATION,89,2017,CITIBANK GOV CARD SERVICE
,REPUBLICAN CONFERENCE,2017Q1,GENERAL EXPENDITURES,TRAVEL,3/20/2017,AP,E0497041,CITIBANK GOV CARD SERVICE,1/27/2017,1/27/2017,COMMERCIAL TRANSPORTATION,184,2017,CITIBANK GOV CARD SERVICE
,REPUBLICAN CONFERENCE,2017Q1,GENERAL EXPENDITURES,TRAVEL,3/20/2017,AP,E0497041,CITIBANK GOV CARD SERVICE,2/7/2017,2/24/2017,TAXI/PARKING/TOLLS,36.91,2017,CITIBANK GOV CARD SERVICE
,REPUBLICAN CONFERENCE,2017Q1,GENERAL EXPENDITURES,PRINTING AND REPRODUCTION,2/17/2017,AP,904174,CITI PCARD-MINUTEMAN PRESS WASHIN,1/3/2017,1/28/2017,PRINTING & REPRODUCTION,158.63,2017,CITI PCARD-MINUTEMAN PRESS WASHIN
,REPUBLICAN CONFERENCE,2017Q1,GENERAL EXPENDITURES,PRINTING AND REPRODUCTION,3/13/2017,AP,E0497149,ACCURATE WORD LLC,2/27/2017,2/27/2017,PRINTING & REPRODUCTION,39.95,2017,ACCURATE WORD LLC
,REPUBLICAN CONFERENCE,2017Q1,GENERAL EXPENDITURES,PRINTING AND REPRODUCTION,3/21/2017,AP,912200,CITI PCARD-FACEBK,1/29/2017,2/28/2017,ADVERTISEMENTS,1156.25,2017,CITI PCARD-FACEBK
,REPUBLICAN CONFERENCE,2017Q1,GENERAL EXPENDITURES,PRINTING AND REPRODUCTION,3/21/2017,AP,912200,CITI PCARD-GETTY IMAGES,1/29/2017,2/28/2017,PRINTING & REPRODUCTION,99,2017,CITI PCARD-GETTY IMAGES
,REPUBLICAN CONFERENCE,2017Q1,GENERAL EXPENDITURES,PRINTING AND REPRODUCTION,3/31/2017,AP,E0500785,BLUE RIVER PRINTING INC,3/13/2017,3/13/2017,PRINTING & REPRODUCTION,449.4,2017,BLUE RIVER PRINTING INC
,REPUBLICAN CONFERENCE,2017Q1,GENERAL EXPENDITURES,SUPPLIES AND MATERIALS,1/12/2017,AP,E0474927,WALL STREET JOURNAL,3/23/2017,3/22/2019,PUBLICATIONS/REFERENCE MAT'L,903.6,2019,WALL STREET JOURNAL
,REPUBLICAN CONFERENCE,2017Q1,GENERAL EXPENDITURES,SUPPLIES AND MATERIALS,1/19/2017,AP,E0479344,ARAMARK REFRESHMENT SERVICES,1/6/2017,1/6/2017,FOOD & BEVERAGE,1551.52,2017,ARAMARK REFRESHMENT SERVICES
,REPUBLICAN CONFERENCE,2017Q1,GENERAL EXPENDITURES,SUPPLIES AND MATERIALS,1/19/2017,AP,E0479345,ARAMARK REFRESHMENT SERVICES,1/1/2017,1/31/2017,FOOD & BEVERAGE,108,2017,ARAMARK REFRESHMENT SERVICES
,REPUBLICAN CONFERENCE,2017Q1,GENERAL EXPENDITURES,SUPPLIES AND MATERIALS,1/30/2017,AP,E0483410,ARAMARK REFRESHMENT SERVICES,2/1/2017,2/28/2017,FOOD & BEVERAGE,108,2017,ARAMARK REFRESHMENT SERVICES
,REPUBLICAN CONFERENCE,2017Q1,GENERAL EXPENDITURES,SUPPLIES AND MATERIALS,1/30/2017,AP,E0483411,ARAMARK REFRESHMENT SERVICES,3/1/2017,12/31/2017,FOOD & BEVERAGE,1080,2017,ARAMARK REFRESHMENT SERVICES
,REPUBLICAN CONFERENCE,2017Q1,GENERAL EXPENDITURES,SUPPLIES AND MATERIALS,2/7/2017,AP,E0485079,HAGUE QUALITY WATER OF MD INC,2/1/2017,2/28/2017,WATER,63,2017,HAGUE QUALITY WATER OF MD INC
,REPUBLICAN CONFERENCE,2017Q1,GENERAL EXPENDITURES,SUPPLIES AND MATERIALS,2/7/2017,AP,E0485080,CROCKER NICHOLAS L.,1/30/2017,1/30/2017,FOOD & BEVERAGE,31.94,2017,CROCKER NICHOLAS L.
,REPUBLICAN CONFERENCE,2017Q1,GENERAL EXPENDITURES,SUPPLIES AND MATERIALS,2/7/2017,AP,E0485081,HAGUE QUALITY WATER OF MD INC,1/1/2017,1/31/2017,WATER,63,2017,HAGUE QUALITY WATER OF MD INC
,REPUBLICAN CONFERENCE,2017Q1,GENERAL EXPENDITURES,SUPPLIES AND MATERIALS,2/13/2017,AP,E0487847,ARAMARK REFRESHMENT SERVICES,1/12/2017,1/12/2017,WATER,60,2017,ARAMARK REFRESHMENT SERVICES
,REPUBLICAN CONFERENCE,2017Q1,GENERAL EXPENDITURES,SUPPLIES AND MATERIALS,2/13/2017,AP,E0487848,ARAMARK REFRESHMENT SERVICES,2/3/2017,2/3/2017,FOOD & BEVERAGE,2767.95,2017,ARAMARK REFRESHMENT SERVICES
,REPUBLICAN CONFERENCE,2017Q1,GENERAL EXPENDITURES,SUPPLIES AND MATERIALS,2/15/2017,AP,E0487849,CROCKER NICHOLAS L.,2/8/2017,2/8/2017,FOOD & BEVERAGE,410.97,2017,CROCKER NICHOLAS L.
,REPUBLICAN CONFERENCE,2017Q1,GENERAL EXPENDITURES,SUPPLIES AND MATERIALS,2/15/2017,AP,E0487851,CAPITOL  HOST,2/9/2017,2/9/2017,FOOD & BEVERAGE,1392.15,2017,CAPITOL  HOST
,REPUBLICAN CONFERENCE,2017Q1,GENERAL EXPENDITURES,SUPPLIES AND MATERIALS,2/16/2017,AP,902730,WALL STREET JOURNAL,3/23/2017,3/22/2019,PUBLICATIONS/REFERENCE MAT'L,-903.6,2019,WALL STREET JOURNAL
,REPUBLICAN CONFERENCE,2017Q1,GENERAL EXPENDITURES,SUPPLIES AND MATERIALS,2/17/2017,AP,904174,CITI PCARD-ADOBE  CREATIVE CLOUD,1/3/2017,1/28/2017,SOFTWARE  LESS THAN  $500,370.07,2017,CITI PCARD-ADOBE  CREATIVE CLOUD
,REPUBLICAN CONFERENCE,2017Q1,GENERAL EXPENDITURES,SUPPLIES AND MATERIALS,2/17/2017,AP,904174,CITI PCARD-CHICK-FIL-A,1/3/2017,1/28/2017,FOOD & BEVERAGE,3318.18,2017,CITI PCARD-CHICK-FIL-A
,REPUBLICAN CONFERENCE,2017Q1,GENERAL EXPENDITURES,SUPPLIES AND MATERIALS,2/17/2017,AP,904174,CITI PCARD-CORNER BAKERY,1/3/2017,1/28/2017,FOOD & BEVERAGE,1458.45,2017,CITI PCARD-CORNER BAKERY
,REPUBLICAN CONFERENCE,2017Q1,GENERAL EXPENDITURES,SUPPLIES AND MATERIALS,2/17/2017,AP,904174,CITI PCARD-DROPBOX,1/3/2017,1/28/2017,SOFTWARE  LESS THAN  $500,198,2017,CITI PCARD-DROPBOX
,REPUBLICAN CONFERENCE,2017Q1,GENERAL EXPENDITURES,SUPPLIES AND MATERIALS,2/17/2017,AP,904174,CITI PCARD-POTBELLY,1/3/2017,1/28/2017,FOOD & BEVERAGE,167.2,2017,CITI PCARD-POTBELLY
,REPUBLICAN CONFERENCE,2017Q1,GENERAL EXPENDITURES,SUPPLIES AND MATERIALS,2/17/2017,AP,904174,CITI PCARD-SQU SQ  ZORBA'S CAFE,1/3/2017,1/28/2017,FOOD & BEVERAGE,435.5,2017,CITI PCARD-SQU SQ  ZORBA'S CAFE
,REPUBLICAN CONFERENCE,2017Q1,GENERAL EXPENDITURES,SUPPLIES AND MATERIALS,2/27/2017,AP,906775,DEER PARK,1/31/2017,1/31/2017,WATER,454.45,2017,DEER PARK
,REPUBLICAN CONFERENCE,2017Q1,GENERAL EXPENDITURES,SUPPLIES AND MATERIALS,2/27/2017,AP,E0490257,CROCKER NICHOLAS L.,2/11/2017,2/11/2017,FOOD & BEVERAGE,31.34,2017,CROCKER NICHOLAS L.
,REPUBLICAN CONFERENCE,2017Q1,GENERAL EXPENDITURES,SUPPLIES AND MATERIALS,3/9/2017,AP,E0494480,HAGUE QUALITY WATER OF MD INC,3/1/2017,3/31/2017,WATER,63,2017,HAGUE QUALITY WATER OF MD INC
,REPUBLICAN CONFERENCE,2017Q1,GENERAL EXPENDITURES,SUPPLIES AND MATERIALS,3/21/2017,AP,912200,CITI PCARD-ADOBE  CREATIVE CLOUD,1/29/2017,2/28/2017,SOFTWARE  LESS THAN  $500,370.07,2017,CITI PCARD-ADOBE  CREATIVE CLOUD
,REPUBLICAN CONFERENCE,2017Q1,GENERAL EXPENDITURES,SUPPLIES AND MATERIALS,3/21/2017,AP,912200,CITI PCARD-CHICK-FIL-A,1/29/2017,2/28/2017,FOOD & BEVERAGE,2677.75,2017,CITI PCARD-CHICK-FIL-A
,REPUBLICAN CONFERENCE,2017Q1,GENERAL EXPENDITURES,SUPPLIES AND MATERIALS,3/21/2017,AP,912200,CITI PCARD-CORNER BAKERY,1/29/2017,2/28/2017,FOOD & BEVERAGE,1503.6,2017,CITI PCARD-CORNER BAKERY
,REPUBLICAN CONFERENCE,2017Q1,GENERAL EXPENDITURES,SUPPLIES AND MATERIALS,3/21/2017,AP,912200,CITI PCARD-COSI,1/29/2017,2/28/2017,FOOD & BEVERAGE,200,2017,CITI PCARD-COSI
,REPUBLICAN CONFERENCE,2017Q1,GENERAL EXPENDITURES,SUPPLIES AND MATERIALS,3/21/2017,AP,912200,CITI PCARD-HARRISTEETER,1/29/2017,2/28/2017,FOOD & BEVERAGE,133.19,2017,CITI PCARD-HARRISTEETER
,REPUBLICAN CONFERENCE,2017Q1,GENERAL EXPENDITURES,SUPPLIES AND MATERIALS,3/21/2017,AP,912200,CITI PCARD-MANGIALARDO & SONS,1/29/2017,2/28/2017,FOOD & BEVERAGE,186.85,2017,CITI PCARD-MANGIALARDO & SONS
,REPUBLICAN CONFERENCE,2017Q1,GENERAL EXPENDITURES,SUPPLIES AND MATERIALS,3/21/2017,AP,912200,CITI PCARD-QDOBA MEXICAN GRIL,1/29/2017,2/28/2017,FOOD & BEVERAGE,994.34,2017,CITI PCARD-QDOBA MEXICAN GRIL
,REPUBLICAN CONFERENCE,2017Q1,GENERAL EXPENDITURES,SUPPLIES AND MATERIALS,3/21/2017,AP,912200,CITI PCARD-SMK WUFOO.COM CHARGE,1/29/2017,2/28/2017,PUBLICATIONS/REFERENCE MAT'L,29.95,2017,CITI PCARD-SMK WUFOO.COM CHARGE
,REPUBLICAN CONFERENCE,2017Q1,GENERAL EXPENDITURES,SUPPLIES AND MATERIALS,3/21/2017,AP,912200,CITI PCARD-SQU SQ  ZORBA'S CAFE,1/29/2017,2/28/2017,FOOD & BEVERAGE,304,2017,CITI PCARD-SQU SQ  ZORBA'S CAFE
,REPUBLICAN CONFERENCE,2017Q1,GENERAL EXPENDITURES,SUPPLIES AND MATERIALS,3/21/2017,AP,912200,CITI PCARD-WELKIO,1/29/2017,2/28/2017,SOFTWARE  LESS THAN  $500,99,2017,CITI PCARD-WELKIO
,REPUBLICAN CONFERENCE,2017Q1,GENERAL EXPENDITURES,SUPPLIES AND MATERIALS,3/21/2017,AP,912200,CITI PCARD-ZAPIER.COM/CHARGE,1/29/2017,2/28/2017,SOFTWARE  LESS THAN  $500,220,2017,CITI PCARD-ZAPIER.COM/CHARGE
,REPUBLICAN CONFERENCE,2017Q1,GENERAL EXPENDITURES,SUPPLIES AND MATERIALS,3/28/2017,AP,912405,DEER PARK,2/28/2017,2/28/2017,WATER,254.45,2017,DEER PARK
,REPUBLICAN CONFERENCE,2017Q1,GENERAL EXPENDITURES,PERSONNEL COMPENSATION,   ,   ,   ,CROCKER NICHOLAS L,1/1/2017,1/2/2017,MEMBER SERVICES COORDINATOR,277.78,2017,CROCKER NICHOLAS L
,REPUBLICAN CONFERENCE,2017Q1,GENERAL EXPENDITURES,PERSONNEL COMPENSATION,   ,   ,   ,DEUTSCH JEREMY,12/1/2016,1/2/2017,CHIEF OF STAFF,4836.11,2017,DEUTSCH JEREMY
,REPUBLICAN CONFERENCE,2017Q1,GENERAL EXPENDITURES,PERSONNEL COMPENSATION,   ,   ,   ,FUHS MOLLY B,1/1/2017,1/2/2017,PRESS SECRETARY,83.33,2017,FUHS MOLLY B
,REPUBLICAN CONFERENCE,2017Q1,GENERAL EXPENDITURES,PERSONNEL COMPENSATION,   ,   ,   ,HALL MIKAYLA M,1/1/2017,1/2/2017,SPEECH WRITER,288.89,2017,HALL MIKAYLA M
,REPUBLICAN CONFERENCE,2017Q1,GENERAL EXPENDITURES,PERSONNEL COMPENSATION,   ,   ,   ,HAUCK KARA,1/1/2017,1/2/2017,COMMUNICATIONS DIRECTOR,527.78,2017,HAUCK KARA
,REPUBLICAN CONFERENCE,2017Q1,GENERAL EXPENDITURES,PERSONNEL COMPENSATION,   ,   ,   ,HODSON NATHAN M,1/1/2017,1/2/2017,DEPUTY CHIEF OF STAFF,805.56,2017,HODSON NATHAN M
,REPUBLICAN CONFERENCE,2017Q1,GENERAL EXPENDITURES,PERSONNEL COMPENSATION,   ,   ,   ,HODSON NATHAN M,1/1/2017,1/2/2017,DEPUTY CHIEF OF STAFF (OTHER COMPENSATION),1950.92,2017,HODSON NATHAN M
,REPUBLICAN CONFERENCE,2017Q1,GENERAL EXPENDITURES,PERSONNEL COMPENSATION,   ,   ,   ,KING EMILY P,1/1/2017,1/2/2017,DEPUTY SCHEDULER,194.44,2017,KING EMILY P
,REPUBLICAN CONFERENCE,2017Q1,GENERAL EXPENDITURES,PERSONNEL COMPENSATION,   ,   ,   ,MARK REBECCA,1/1/2017,1/2/2017,SR. ADVISOR TECH POLICY/WOMEN,427.78,2017,MARK REBECCA
,REPUBLICAN CONFERENCE,2017Q1,GENERAL EXPENDITURES,PERSONNEL COMPENSATION,   ,   ,   ,MARK REBECCA,1/1/2017,1/2/2017,SR. ADVISOR TECH POLICY/WOMEN (OTHER COMPENSATION),965.42,2017,MARK REBECCA
,REPUBLICAN CONFERENCE,2017Q1,GENERAL EXPENDITURES,PERSONNEL COMPENSATION,   ,   ,   ,PEREZ MEGAN C,1/1/2017,1/2/2017,POLICY ADVISOR,305.56,2017,PEREZ MEGAN C
,REPUBLICAN CONFERENCE,2017Q1,GENERAL EXPENDITURES,PERSONNEL COMPENSATION,   ,   ,   ,POWELL JARED K,1/1/2017,1/2/2017,STAFF ASSISTANT,235.28,2017,POWELL JARED K
,REPUBLICAN CONFERENCE,2017Q1,GENERAL EXPENDITURES,PERSONNEL COMPENSATION,   ,   ,   ,ROGERS SARAH E,1/1/2017,1/2/2017,DIRECTOR OF MEMBER SERVICES,694.44,2017,ROGERS SARAH E
,REPUBLICAN CONFERENCE,2017Q1,GENERAL EXPENDITURES,PERSONNEL COMPENSATION,   ,   ,   ,ROGERS SARAH E,1/1/2017,1/2/2017,DIRECTOR OF MEMBER SERVICES (OTHER COMPENSATION),1382.42,2017,ROGERS SARAH E
,REPUBLICAN CONFERENCE,2017Q1,GENERAL EXPENDITURES,PERSONNEL COMPENSATION,   ,   ,   ,ROOS AMBER E,1/1/2017,1/2/2017,FINANCE ASSISTANT,72.96,2017,ROOS AMBER E
,REPUBLICAN CONFERENCE,2017Q1,GENERAL EXPENDITURES,PERSONNEL COMPENSATION,   ,   ,   ,ROSS JOHN E.,1/1/2017,1/2/2017,FINANCE DIRECTOR,25.65,2017,ROSS JOHN E.
,REPUBLICAN CONFERENCE,2017Q1,GENERAL EXPENDITURES,PERSONNEL COMPENSATION,   ,   ,   ,SMENTEK DAVID,12/1/2016,1/2/2017,POLICY COORDINATOR,1250,2017,SMENTEK DAVID
,REPUBLICAN CONFERENCE,2017Q1,GENERAL EXPENDITURES,PERSONNEL COMPENSATION,   ,   ,   ,SUNDAY JESSICA M,1/1/2017,1/2/2017,DIR OF OPERATIONS & CULTURE,263.11,2017,SUNDAY JESSICA M
,REPUBLICAN CONFERENCE,2017Q1,GENERAL EXPENDITURES,PERSONNEL COMPENSATION,   ,   ,   ,THORNE DRAY A,1/1/2017,1/2/2017,SYSTEMS ADMINISTRATOR,100,2017,THORNE DRAY A
,REPUBLICAN CONFERENCE,2017Q1,GENERAL EXPENDITURES,PERSONNEL COMPENSATION,   ,   ,   ,WHITE JERRY L,1/1/2017,1/2/2017,POLICY DIRECTOR,656.25,2017,WHITE JERRY L
,REPUBLICAN CONFERENCE,2017Q1,GENERAL EXPENDITURES,PERSONNEL COMPENSATION,   ,   ,   ,WHITE JERRY L,1/1/2017,1/2/2017,POLICY DIRECTOR (OTHER COMPENSATION),1799.08,2017,WHITE JERRY L
,REPUBLICAN CONFERENCE,2017Q1,GENERAL EXPENDITURES,TRAVEL,1/3/2017,AP,E0474337,HODSON NATHAN,12/16/2016,12/16/2016,TAXI/PARKING/TOLLS,18.51,2016,HODSON NATHAN
,REPUBLICAN CONFERENCE,2017Q1,GENERAL EXPENDITURES,TRAVEL,1/24/2017,AP,E0479825,CITIBANK GOV CARD SERVICE,12/12/2016,12/12/2016,COMMERCIAL TRANSPORTATION,-240,2016,CITIBANK GOV CARD SERVICE
,REPUBLICAN CONFERENCE,2017Q1,GENERAL EXPENDITURES,TRAVEL,1/24/2017,AP,E0479825,CITIBANK GOV CARD SERVICE,12/16/2016,12/16/2016,COMMERCIAL TRANSPORTATION,909,2016,CITIBANK GOV CARD SERVICE
,REPUBLICAN CONFERENCE,2017Q1,GENERAL EXPENDITURES,TRAVEL,1/24/2017,AP,E0479825,CITIBANK GOV CARD SERVICE,12/6/2016,12/16/2016,TAXI/PARKING/TOLLS,50.61,2016,CITIBANK GOV CARD SERVICE
,REPUBLICAN CONFERENCE,2017Q1,GENERAL EXPENDITURES,TRAVEL,1/31/2017,AP,E0482674,CITIBANK GOV CARD SERVICE,12/12/2016,12/12/2016,COMMERCIAL TRANSPORTATION,1772,2016,CITIBANK GOV CARD SERVICE
,REPUBLICAN CONFERENCE,2017Q1,GENERAL EXPENDITURES,RENT  COMMUNICATION  UTILITIES,1/24/2017,AP,E0479377,FEDEX CUSTOM CRITICAL INC,10/27/2016,10/27/2016,POSTAGE / COURIER / BOX RENTAL,544.93,2016,FEDEX CUSTOM CRITICAL INC
,REPUBLICAN CONFERENCE,2017Q1,GENERAL EXPENDITURES,RENT  COMMUNICATION  UTILITIES,1/27/2017,AP,E0480853,FEDEX FREIGHT INC,10/27/2016,11/3/2016,POSTAGE / COURIER / BOX RENTAL,18.11,2016,FEDEX FREIGHT INC
,REPUBLICAN CONFERENCE,2017Q1,GENERAL EXPENDITURES,PRINTING AND REPRODUCTION,1/19/2017,AP,900647,CITI PCARD-FACEBK,11/29/2016,12/28/2016,ADVERTISEMENTS,575.86,2016,CITI PCARD-FACEBK
,REPUBLICAN CONFERENCE,2017Q1,GENERAL EXPENDITURES,PRINTING AND REPRODUCTION,1/19/2017,AP,900647,CITI PCARD-GETTY IMAGES,11/29/2016,12/28/2016,PRINTING & REPRODUCTION,99,2016,CITI PCARD-GETTY IMAGES
,REPUBLICAN CONFERENCE,2017Q1,GENERAL EXPENDITURES,PRINTING AND REPRODUCTION,2/15/2017,AP,902712,HODSON NATHAN,10/31/2016,10/31/2016,PRINTING & REPRODUCTION,420.01,2016,HODSON NATHAN
,REPUBLICAN CONFERENCE,2017Q1,GENERAL EXPENDITURES,PRINTING AND REPRODUCTION,2/17/2017,AP,904174,CITI PCARD-FACEBK,12/29/2016,1/2/2017,ADVERTISEMENTS,413.37,2017,CITI PCARD-FACEBK
,REPUBLICAN CONFERENCE,2017Q1,GENERAL EXPENDITURES,PRINTING AND REPRODUCTION,2/17/2017,AP,904174,CITI PCARD-GETTY IMAGES,12/29/2016,1/2/2017,PRINTING & REPRODUCTION,99,2017,CITI PCARD-GETTY IMAGES
,REPUBLICAN CONFERENCE,2017Q1,GENERAL EXPENDITURES,SUPPLIES AND MATERIALS,1/3/2017,AP,E0472799,HODSON NATHAN,12/21/2016,12/21/2016,FOOD & BEVERAGE,1057.13,2016,HODSON NATHAN
,REPUBLICAN CONFERENCE,2017Q1,GENERAL EXPENDITURES,SUPPLIES AND MATERIALS,1/12/2017,AP,E0477217,ARAMARK REFRESHMENT SERVICES,12/12/2016,12/12/2016,FOOD & BEVERAGE,1643.5,2016,ARAMARK REFRESHMENT SERVICES
,REPUBLICAN CONFERENCE,2017Q1,GENERAL EXPENDITURES,SUPPLIES AND MATERIALS,1/19/2017,AP,900647,CITI PCARD-200 BBQ,11/29/2016,12/28/2016,FOOD & BEVERAGE,851.5,2016,CITI PCARD-200 BBQ
,REPUBLICAN CONFERENCE,2017Q1,GENERAL EXPENDITURES,SUPPLIES AND MATERIALS,1/19/2017,AP,900647,CITI PCARD-ADOBE  CREATIVE CLOUD,11/29/2016,12/28/2016,SOFTWARE  LESS THAN  $500,370.07,2016,CITI PCARD-ADOBE  CREATIVE CLOUD
,REPUBLICAN CONFERENCE,2017Q1,GENERAL EXPENDITURES,SUPPLIES AND MATERIALS,1/19/2017,AP,900647,CITI PCARD-CARMINE'S,11/29/2016,12/28/2016,FOOD & BEVERAGE,496.95,2016,CITI PCARD-CARMINE'S
,REPUBLICAN CONFERENCE,2017Q1,GENERAL EXPENDITURES,SUPPLIES AND MATERIALS,1/19/2017,AP,900647,CITI PCARD-CHICK-FIL-A,11/29/2016,12/28/2016,FOOD & BEVERAGE,2594.25,2016,CITI PCARD-CHICK-FIL-A
,REPUBLICAN CONFERENCE,2017Q1,GENERAL EXPENDITURES,SUPPLIES AND MATERIALS,1/19/2017,AP,900647,CITI PCARD-CORNER BAKERY,11/29/2016,12/28/2016,FOOD & BEVERAGE,2014.95,2016,CITI PCARD-CORNER BAKERY
,REPUBLICAN CONFERENCE,2017Q1,GENERAL EXPENDITURES,SUPPLIES AND MATERIALS,1/19/2017,AP,900647,CITI PCARD-FIREHOOK BAKERY,11/29/2016,12/28/2016,FOOD & BEVERAGE,549.12,2016,CITI PCARD-FIREHOOK BAKERY
,REPUBLICAN CONFERENCE,2017Q1,GENERAL EXPENDITURES,SUPPLIES AND MATERIALS,1/19/2017,AP,900647,CITI PCARD-GIANT,11/29/2016,12/28/2016,FOOD & BEVERAGE,81.84,2016,CITI PCARD-GIANT
,REPUBLICAN CONFERENCE,2017Q1,GENERAL EXPENDITURES,SUPPLIES AND MATERIALS,1/19/2017,AP,900647,CITI PCARD-HARRIS TEETER,11/29/2016,12/28/2016,FOOD & BEVERAGE,90.87,2016,CITI PCARD-HARRIS TEETER
,REPUBLICAN CONFERENCE,2017Q1,GENERAL EXPENDITURES,SUPPLIES AND MATERIALS,1/19/2017,AP,900647,CITI PCARD-I L C MADISON CAFE,11/29/2016,12/28/2016,FOOD & BEVERAGE,642.6,2016,CITI PCARD-I L C MADISON CAFE
,REPUBLICAN CONFERENCE,2017Q1,GENERAL EXPENDITURES,SUPPLIES AND MATERIALS,1/19/2017,AP,900647,CITI PCARD-LE BON CAFE - SPLENDID,11/29/2016,12/28/2016,FOOD & BEVERAGE,403,2016,CITI PCARD-LE BON CAFE - SPLENDID
,REPUBLICAN CONFERENCE,2017Q1,GENERAL EXPENDITURES,SUPPLIES AND MATERIALS,1/19/2017,AP,900647,CITI PCARD-NEW YORK TIMES DIGITAL,11/29/2016,12/28/2016,PUBLICATIONS/REFERENCE MAT'L,15,2016,CITI PCARD-NEW YORK TIMES DIGITAL
,REPUBLICAN CONFERENCE,2017Q1,GENERAL EXPENDITURES,SUPPLIES AND MATERIALS,1/19/2017,AP,900647,CITI PCARD-NY TIMES NATL SALES,11/29/2016,12/28/2016,PUBLICATIONS/REFERENCE MAT'L,516.91,2016,CITI PCARD-NY TIMES NATL SALES
,REPUBLICAN CONFERENCE,2017Q1,GENERAL EXPENDITURES,SUPPLIES AND MATERIALS,1/19/2017,AP,900647,CITI PCARD-SQU SQ  ZORBA'S CAFE,11/29/2016,12/28/2016,FOOD & BEVERAGE,389,2016,CITI PCARD-SQU SQ  ZORBA'S CAFE
,REPUBLICAN CONFERENCE,2017Q1,GENERAL EXPENDITURES,SUPPLIES AND MATERIALS,1/19/2017,AP,900647,CITI PCARD-WHOLEFDS CYC,11/29/2016,12/28/2016,FOOD & BEVERAGE,15.75,2016,CITI PCARD-WHOLEFDS CYC
,REPUBLICAN CONFERENCE,2017Q1,GENERAL EXPENDITURES,SUPPLIES AND MATERIALS,1/19/2017,AP,900647,CITI PCARD-WPC DIGITALSUBSCRIPTIO,11/29/2016,12/28/2016,PUBLICATIONS/REFERENCE MAT'L,157.57,2016,CITI PCARD-WPC DIGITALSUBSCRIPTIO
,REPUBLICAN CONFERENCE,2017Q1,GENERAL EXPENDITURES,SUPPLIES AND MATERIALS,1/20/2017,AP,900787,DEER PARK,12/31/2016,12/31/2016,WATER,409.5,2016,DEER PARK
,REPUBLICAN CONFERENCE,2017Q1,GENERAL EXPENDITURES,SUPPLIES AND MATERIALS,1/25/2017,AP,E0474336,POLITICO LLC,9/21/2017,12/31/2017,PUBLICATIONS/REFERENCE MAT'L,2470.35,2017,POLITICO LLC
,REPUBLICAN CONFERENCE,2017Q1,GENERAL EXPENDITURES,SUPPLIES AND MATERIALS,2/7/2017,AP,E0485068,HAGUE QUALITY WATER OF MD INC,11/1/2016,11/30/2016,WATER,63,2016,HAGUE QUALITY WATER OF MD INC
,REPUBLICAN CONFERENCE,2017Q1,GENERAL EXPENDITURES,SUPPLIES AND MATERIALS,2/7/2017,AP,E0485069,HAGUE QUALITY WATER OF MD INC,12/1/2016,12/31/2016,WATER,63,2016,HAGUE QUALITY WATER OF MD INC
,REPUBLICAN CONFERENCE,2017Q1,GENERAL EXPENDITURES,SUPPLIES AND MATERIALS,2/16/2017,AP,902730,WALL STREET JOURNAL,1/2/2017,3/22/2019,PUBLICATIONS/REFERENCE MAT'L,903.6,2019,WALL STREET JOURNAL
,REPUBLICAN CONFERENCE,2017Q1,GENERAL EXPENDITURES,SUPPLIES AND MATERIALS,2/17/2017,AP,904174,CITI PCARD-WE THE PIZZA,12/29/2016,1/2/2017,FOOD & BEVERAGE,2864.72,2017,CITI PCARD-WE THE PIZZA
,CHIEF ADMIN OFCR OF THE HOUSE,2017Q1,MICROSOFT ENTERPRISE LICENSES,EQUIPMENT,2/3/2017,AP,901975,DELL MARKETING LP,12/30/2016,12/30/2016,MAINTENANCE / REPAIRS,2346359,2016,DELL MARKETING LP
,CHIEF ADMIN OFCR OF THE HOUSE,2017Q1,SALARIES  OFFICERS & EMPLOYEES,PERSONNEL COMPENSATION,   ,   ,   ,ABBOTT JESSICA A.,1/1/2017,3/31/2017,FINANCIAL ANALYST,34145.25,2017,ABBOTT JESSICA A.
,CHIEF ADMIN OFCR OF THE HOUSE,2017Q1,SALARIES  OFFICERS & EMPLOYEES,PERSONNEL COMPENSATION,   ,   ,   ,ABEL TIMOTHY,1/1/2017,3/31/2017,SR TECHNICAL SUPPORT REP (A),25436.25,2017,ABEL TIMOTHY
,CHIEF ADMIN OFCR OF THE HOUSE,2017Q1,SALARIES  OFFICERS & EMPLOYEES,PERSONNEL COMPENSATION,   ,   ,   ,ABRAHAM JERMEL M,1/1/2017,3/31/2017,FINANCIAL ANALYST,18681.51,2017,ABRAHAM JERMEL M
,CHIEF ADMIN OFCR OF THE HOUSE,2017Q1,SALARIES  OFFICERS & EMPLOYEES,PERSONNEL COMPENSATION,   ,   ,   ,ACUESTA JULY J,1/1/2017,3/31/2017,SENIOR SYSTEMS ENGINEER,29576.41,2017,ACUESTA JULY J
,CHIEF ADMIN OFCR OF THE HOUSE,2017Q1,SALARIES  OFFICERS & EMPLOYEES,PERSONNEL COMPENSATION,   ,   ,   ,ADDISON TRACY,1/1/2017,3/31/2017,LOGISTICS & DIST SPEC (A),12317.01,2017,ADDISON TRACY
,CHIEF ADMIN OFCR OF THE HOUSE,2017Q1,SALARIES  OFFICERS & EMPLOYEES,PERSONNEL COMPENSATION,   ,   ,   ,ADDISON TRACY,12/1/2016,2/28/2017,LOGISTICS & DIST SPEC (A) (OVERTIME),1926.64,2017,ADDISON TRACY
,CHIEF ADMIN OFCR OF THE HOUSE,2017Q1,SALARIES  OFFICERS & EMPLOYEES,PERSONNEL COMPENSATION,   ,   ,   ,ADELAKUN DEEN A.,1/1/2017,3/31/2017,SR TECH SOLUTIONS ENGINEER,24012.24,2017,ADELAKUN DEEN A.
,CHIEF ADMIN OFCR OF THE HOUSE,2017Q1,SALARIES  OFFICERS & EMPLOYEES,PERSONNEL COMPENSATION,   ,   ,   ,ADENIJI ADERONKE F,1/1/2017,3/31/2017,DIRECTOR  INFORMATION ASSURANC,36786,2017,ADENIJI ADERONKE F
,CHIEF ADMIN OFCR OF THE HOUSE,2017Q1,SALARIES  OFFICERS & EMPLOYEES,PERSONNEL COMPENSATION,   ,   ,   ,AGEE MATTHEW P.,1/1/2017,3/31/2017,RESOURCE MANAGER,33554.49,2017,AGEE MATTHEW P.
,CHIEF ADMIN OFCR OF THE HOUSE,2017Q1,SALARIES  OFFICERS & EMPLOYEES,PERSONNEL COMPENSATION,   ,   ,   ,AGNEW ROSE M.,1/1/2017,3/31/2017,SR PAYROLL & BENS GENERALIST,22589.49,2017,AGNEW ROSE M.
,CHIEF ADMIN OFCR OF THE HOUSE,2017Q1,SALARIES  OFFICERS & EMPLOYEES,PERSONNEL COMPENSATION,   ,   ,   ,AGNEW ROSE M.,12/1/2016,1/31/2017,SR PAYROLL & BENS GENERALIST (OVERTIME),11536.29,2017,AGNEW ROSE M.
,CHIEF ADMIN OFCR OF THE HOUSE,2017Q1,SALARIES  OFFICERS & EMPLOYEES,PERSONNEL COMPENSATION,   ,   ,   ,AHMED MUNEER,1/1/2017,3/31/2017,APPLICATION SYSTEMS ADMINISTRA,32375.25,2017,AHMED MUNEER
,CHIEF ADMIN OFCR OF THE HOUSE,2017Q1,SALARIES  OFFICERS & EMPLOYEES,PERSONNEL COMPENSATION,   ,   ,   ,AHUJA KALPANA A.,1/1/2017,3/31/2017,DIRECTOR WEB SYSTEMS,35482.5,2017,AHUJA KALPANA A.
,CHIEF ADMIN OFCR OF THE HOUSE,2017Q1,SALARIES  OFFICERS & EMPLOYEES,PERSONNEL COMPENSATION,   ,   ,   ,AKULA MALLIKARJUNA R,1/1/2017,3/31/2017,SENIOR SOFTWARE SPECIALIST,34176,2017,AKULA MALLIKARJUNA R
,CHIEF ADMIN OFCR OF THE HOUSE,2017Q1,SALARIES  OFFICERS & EMPLOYEES,PERSONNEL COMPENSATION,   ,   ,   ,ALEXANDER GORDON,1/1/2017,3/31/2017,TECH SOLUTIONS ENGINEER,19574.67,2017,ALEXANDER GORDON
,CHIEF ADMIN OFCR OF THE HOUSE,2017Q1,SALARIES  OFFICERS & EMPLOYEES,PERSONNEL COMPENSATION,   ,   ,   ,ALLEN PATRICK R,1/1/2017,3/31/2017,DIRECTOR BUSINESS CONTINUITY,37439.01,2017,ALLEN PATRICK R
,CHIEF ADMIN OFCR OF THE HOUSE,2017Q1,SALARIES  OFFICERS & EMPLOYEES,PERSONNEL COMPENSATION,   ,   ,   ,ALLISON KEVIN M.,1/1/2017,3/31/2017,LOGISTICS & DIST SPEC (A),15003.99,2017,ALLISON KEVIN M.
,CHIEF ADMIN OFCR OF THE HOUSE,2017Q1,SALARIES  OFFICERS & EMPLOYEES,PERSONNEL COMPENSATION,   ,   ,   ,ALLISON KEVIN M.,12/1/2016,1/31/2017,LOGISTICS & DIST SPEC (A) (OVERTIME),1992.93,2017,ALLISON KEVIN M.
,CHIEF ADMIN OFCR OF THE HOUSE,2017Q1,SALARIES  OFFICERS & EMPLOYEES,PERSONNEL COMPENSATION,   ,   ,   ,ALSTON MARK A,1/1/2017,3/31/2017,TECH SOLUTIONS ENGINEER,18885.24,2017,ALSTON MARK A
,CHIEF ADMIN OFCR OF THE HOUSE,2017Q1,SALARIES  OFFICERS & EMPLOYEES,PERSONNEL COMPENSATION,   ,   ,   ,ALVEY LISA M.,1/1/2017,3/31/2017,FINANCIAL COUNSELOR,22016.76,2017,ALVEY LISA M.
,CHIEF ADMIN OFCR OF THE HOUSE,2017Q1,SALARIES  OFFICERS & EMPLOYEES,PERSONNEL COMPENSATION,   ,   ,   ,ALVEY LISA M.,11/1/2016,1/31/2017,FINANCIAL COUNSELOR (OVERTIME),1757.36,2017,ALVEY LISA M.
,CHIEF ADMIN OFCR OF THE HOUSE,2017Q1,SALARIES  OFFICERS & EMPLOYEES,PERSONNEL COMPENSATION,   ,   ,   ,ANDERSEN FREDERIC E.,1/1/2017,3/31/2017,ASSISTANT DIRECTOR,24488.76,2017,ANDERSEN FREDERIC E.
,CHIEF ADMIN OFCR OF THE HOUSE,2017Q1,SALARIES  OFFICERS & EMPLOYEES,PERSONNEL COMPENSATION,   ,   ,   ,ANDERSON DONTRELL,1/1/2017,3/31/2017,FINANCIAL COUNSELOR,17643,2017,ANDERSON DONTRELL
,CHIEF ADMIN OFCR OF THE HOUSE,2017Q1,SALARIES  OFFICERS & EMPLOYEES,PERSONNEL COMPENSATION,   ,   ,   ,ANDERSON DONTRELL,12/1/2016,12/31/2016,FINANCIAL COUNSELOR (OVERTIME),395.74,2016,ANDERSON DONTRELL
,CHIEF ADMIN OFCR OF THE HOUSE,2017Q1,SALARIES  OFFICERS & EMPLOYEES,PERSONNEL COMPENSATION,   ,   ,   ,ANDREWS THOMAS,1/1/2017,3/31/2017,VOICE & VIDEO BRANCH MGR (A),36786,2017,ANDREWS THOMAS
,CHIEF ADMIN OFCR OF THE HOUSE,2017Q1,SALARIES  OFFICERS & EMPLOYEES,PERSONNEL COMPENSATION,   ,   ,   ,ANDREWS-MOBLEY RACHELLE G.,1/1/2017,3/31/2017,PRINCIPAL TECHNICAL TRAINER,28673.49,2017,ANDREWS-MOBLEY RACHELLE G.
,CHIEF ADMIN OFCR OF THE HOUSE,2017Q1,SALARIES  OFFICERS & EMPLOYEES,PERSONNEL COMPENSATION,   ,   ,   ,ANTHONY TONY,1/1/2017,3/31/2017,PROD/ENGINEER SPEC TEMP,14178.42,2017,ANTHONY TONY
,CHIEF ADMIN OFCR OF THE HOUSE,2017Q1,SALARIES  OFFICERS & EMPLOYEES,PERSONNEL COMPENSATION,   ,   ,   ,APPIAH JOYCE S,1/1/2017,3/31/2017,SENIOR BENEFITS SPECIALIST,27620.76,2017,APPIAH JOYCE S
,CHIEF ADMIN OFCR OF THE HOUSE,2017Q1,SALARIES  OFFICERS & EMPLOYEES,PERSONNEL COMPENSATION,   ,   ,   ,ARMSTRONG JANCIERA C,1/1/2017,3/31/2017,BUDGET ANALYST,29048.25,2017,ARMSTRONG JANCIERA C
,CHIEF ADMIN OFCR OF THE HOUSE,2017Q1,SALARIES  OFFICERS & EMPLOYEES,PERSONNEL COMPENSATION,   ,   ,   ,ARTHUR CAMILLA S.,1/1/2017,3/31/2017,ASSISTANT CAO,42102.75,2017,ARTHUR CAMILLA S.
,CHIEF ADMIN OFCR OF THE HOUSE,2017Q1,SALARIES  OFFICERS & EMPLOYEES,PERSONNEL COMPENSATION,   ,   ,   ,ASATA HEATHER O,1/1/2017,3/31/2017,EXECUTIVE ASSISTANT,18681.51,2017,ASATA HEATHER O
,CHIEF ADMIN OFCR OF THE HOUSE,2017Q1,SALARIES  OFFICERS & EMPLOYEES,PERSONNEL COMPENSATION,   ,   ,   ,ATCHISON DARRYL A.,1/1/2017,3/31/2017,DEPUTY CHIEF ENGINEER,33554.49,2017,ATCHISON DARRYL A.
,CHIEF ADMIN OFCR OF THE HOUSE,2017Q1,SALARIES  OFFICERS & EMPLOYEES,PERSONNEL COMPENSATION,   ,   ,   ,AWAN OMAR,1/1/2017,3/31/2017,PERF & CUST SVC STRAT ANALYST,38529.42,2017,AWAN OMAR
,CHIEF ADMIN OFCR OF THE HOUSE,2017Q1,SALARIES  OFFICERS & EMPLOYEES,PERSONNEL COMPENSATION,   ,   ,   ,BAHAM TODD,1/1/2017,3/31/2017,BROADCAST PRODUCTION TECHNICIA,20766.24,2017,BAHAM TODD
,CHIEF ADMIN OFCR OF THE HOUSE,2017Q1,SALARIES  OFFICERS & EMPLOYEES,PERSONNEL COMPENSATION,   ,   ,   ,BAHAM TODD,12/1/2016,2/28/2017,BROADCAST PRODUCTION TECHNICIA (OVERTIME),2459.18,2017,BAHAM TODD
,CHIEF ADMIN OFCR OF THE HOUSE,2017Q1,SALARIES  OFFICERS & EMPLOYEES,PERSONNEL COMPENSATION,   ,   ,   ,BAILEY DAVID E.,1/1/2017,3/31/2017,SR TECHNICAL SUPPORT REP (A),26382.75,2017,BAILEY DAVID E.
,CHIEF ADMIN OFCR OF THE HOUSE,2017Q1,SALARIES  OFFICERS & EMPLOYEES,PERSONNEL COMPENSATION,   ,   ,   ,BAKER DARRELL F.,1/1/2017,3/31/2017,SR NETWORK COMM SPEC,28134.75,2017,BAKER DARRELL F.
,CHIEF ADMIN OFCR OF THE HOUSE,2017Q1,SALARIES  OFFICERS & EMPLOYEES,PERSONNEL COMPENSATION,   ,   ,   ,BANFIELD KELLI C,1/1/2017,3/31/2017,BROADCAST ENGINEER/PROD SPEC.,23067,2017,BANFIELD KELLI C
,CHIEF ADMIN OFCR OF THE HOUSE,2017Q1,SALARIES  OFFICERS & EMPLOYEES,PERSONNEL COMPENSATION,   ,   ,   ,BANKS BIANCA N,1/1/2017,3/31/2017,MANAGER,21165.24,2017,BANKS BIANCA N
,CHIEF ADMIN OFCR OF THE HOUSE,2017Q1,SALARIES  OFFICERS & EMPLOYEES,PERSONNEL COMPENSATION,   ,   ,   ,BARBEE GLENN,1/1/2017,3/31/2017,NETWORK TECHNICIAN,24012.24,2017,BARBEE GLENN
,CHIEF ADMIN OFCR OF THE HOUSE,2017Q1,SALARIES  OFFICERS & EMPLOYEES,PERSONNEL COMPENSATION,   ,   ,   ,BARBEE DONELL G,1/1/2017,3/31/2017,RETAIL INVENTORY SPECIALIST,11064.51,2017,BARBEE DONELL G
,CHIEF ADMIN OFCR OF THE HOUSE,2017Q1,SALARIES  OFFICERS & EMPLOYEES,PERSONNEL COMPENSATION,   ,   ,   ,BARBEE DONELL G,1/1/2017,1/31/2017,RETAIL INVENTORY SPECIALIST (OVERTIME),143.62,2017,BARBEE DONELL G
,CHIEF ADMIN OFCR OF THE HOUSE,2017Q1,SALARIES  OFFICERS & EMPLOYEES,PERSONNEL COMPENSATION,   ,   ,   ,BARBOUR JUNE M.,1/1/2017,3/31/2017,BROADCAST PRODUCTION TECHNICIA,20766.24,2017,BARBOUR JUNE M.
,CHIEF ADMIN OFCR OF THE HOUSE,2017Q1,SALARIES  OFFICERS & EMPLOYEES,PERSONNEL COMPENSATION,   ,   ,   ,BARBOUR JUNE M.,12/1/2016,2/28/2017,BROADCAST PRODUCTION TECHNICIA (OVERTIME),257.9,2017,BARBOUR JUNE M.
,CHIEF ADMIN OFCR OF THE HOUSE,2017Q1,SALARIES  OFFICERS & EMPLOYEES,PERSONNEL COMPENSATION,   ,   ,   ,BARCINIAK DANA L.,1/1/2017,3/31/2017,OFFICE MANAGER,23809.26,2017,BARCINIAK DANA L.
,CHIEF ADMIN OFCR OF THE HOUSE,2017Q1,SALARIES  OFFICERS & EMPLOYEES,PERSONNEL COMPENSATION,   ,   ,   ,BARCINIAK DANA L.,1/1/2017,1/31/2017,OFFICE MANAGER (OVERTIME),698.24,2017,BARCINIAK DANA L.
,CHIEF ADMIN OFCR OF THE HOUSE,2017Q1,SALARIES  OFFICERS & EMPLOYEES,PERSONNEL COMPENSATION,   ,   ,   ,BAREFOOT JEFFREY,1/1/2017,3/31/2017,BROADCAST ENGINEER/PROD SPEC.,21640.74,2017,BAREFOOT JEFFREY
,CHIEF ADMIN OFCR OF THE HOUSE,2017Q1,SALARIES  OFFICERS & EMPLOYEES,PERSONNEL COMPENSATION,   ,   ,   ,BARNABAE MONICA M.,1/1/2017,3/31/2017,DIRECTOR-HOUSE CHILD CARE CNTR,29214.75,2017,BARNABAE MONICA M.
,CHIEF ADMIN OFCR OF THE HOUSE,2017Q1,SALARIES  OFFICERS & EMPLOYEES,PERSONNEL COMPENSATION,   ,   ,   ,BARR PAUL,1/1/2017,3/31/2017,SUPERVISOR LOGISTICS & DIST (A,16812.51,2017,BARR PAUL
,CHIEF ADMIN OFCR OF THE HOUSE,2017Q1,SALARIES  OFFICERS & EMPLOYEES,PERSONNEL COMPENSATION,   ,   ,   ,BARRETT ROBERT R.,1/1/2017,3/31/2017,DIRECTOR  ENTERPRISE APPLICATI,41090.49,2017,BARRETT ROBERT R.
,CHIEF ADMIN OFCR OF THE HOUSE,2017Q1,SALARIES  OFFICERS & EMPLOYEES,PERSONNEL COMPENSATION,   ,   ,   ,BARTON TISHA R,1/1/2017,3/31/2017,SPECIAL ASSISTANT,21640.74,2017,BARTON TISHA R
,CHIEF ADMIN OFCR OF THE HOUSE,2017Q1,SALARIES  OFFICERS & EMPLOYEES,PERSONNEL COMPENSATION,   ,   ,   ,BASILIO TYRONE A.,1/1/2017,3/31/2017,TECHNICAL SUPPORT REP,21183.99,2017,BASILIO TYRONE A.
,CHIEF ADMIN OFCR OF THE HOUSE,2017Q1,SALARIES  OFFICERS & EMPLOYEES,PERSONNEL COMPENSATION,   ,   ,   ,BATES DEBORAH A.,1/1/2017,3/31/2017,PRODUCTION/ENGINEER SPEC (TEMP,11717.26,2017,BATES DEBORAH A.
,CHIEF ADMIN OFCR OF THE HOUSE,2017Q1,SALARIES  OFFICERS & EMPLOYEES,PERSONNEL COMPENSATION,   ,   ,   ,BATH GEORGE J,1/1/2017,3/31/2017,SENIOR ADVISOR,42102.75,2017,BATH GEORGE J
,CHIEF ADMIN OFCR OF THE HOUSE,2017Q1,SALARIES  OFFICERS & EMPLOYEES,PERSONNEL COMPENSATION,   ,   ,   ,BEARDSLEE  LEAH,1/1/2017,3/31/2017,DIGITAL MEDIA COORDINATOR,14703.99,2017,BEARDSLEE  LEAH
,CHIEF ADMIN OFCR OF THE HOUSE,2017Q1,SALARIES  OFFICERS & EMPLOYEES,PERSONNEL COMPENSATION,   ,   ,   ,BEAUBIAN TRACI R.,1/1/2017,3/31/2017,CHIEF FINANCIAL OFFICER,42102.75,2017,BEAUBIAN TRACI R.
,CHIEF ADMIN OFCR OF THE HOUSE,2017Q1,SALARIES  OFFICERS & EMPLOYEES,PERSONNEL COMPENSATION,   ,   ,   ,BEIDEL BERNARD E.,1/1/2017,2/9/2017,DIR  OFFICE OF EMPLOYEE ASSIST,17980.57,2017,BEIDEL BERNARD E.
,CHIEF ADMIN OFCR OF THE HOUSE,2017Q1,SALARIES  OFFICERS & EMPLOYEES,PERSONNEL COMPENSATION,   ,   ,   ,BEIDEL BERNARD E.,3/1/2017,3/30/2017,CASEWORK SUPERVISOR,263.96,2017,BEIDEL BERNARD E.
,CHIEF ADMIN OFCR OF THE HOUSE,2017Q1,SALARIES  OFFICERS & EMPLOYEES,PERSONNEL COMPENSATION,   ,   ,   ,BEIDEL BERNARD E.,3/1/2017,3/30/2017,CASEWORK SUPERVISOR (OTHER COMPENSATION),9823.98,2017,BEIDEL BERNARD E.
,CHIEF ADMIN OFCR OF THE HOUSE,2017Q1,SALARIES  OFFICERS & EMPLOYEES,PERSONNEL COMPENSATION,   ,   ,   ,BELL FRANK E,1/1/2017,3/31/2017,SENIOR TECHNICAL ADVISOR,36137.76,2017,BELL FRANK E
,CHIEF ADMIN OFCR OF THE HOUSE,2017Q1,SALARIES  OFFICERS & EMPLOYEES,PERSONNEL COMPENSATION,   ,   ,   ,BELL TOCA R,1/1/2017,1/20/2017,ADMINISTRATIVE SPECIALIST,2429.11,2017,BELL TOCA R
,CHIEF ADMIN OFCR OF THE HOUSE,2017Q1,SALARIES  OFFICERS & EMPLOYEES,PERSONNEL COMPENSATION,   ,   ,   ,BELL TOCA R,1/1/2017,1/20/2017,ADMINISTRATIVE SPECIALIST (OTHER COMPENSATION),242.91,2017,BELL TOCA R
,CHIEF ADMIN OFCR OF THE HOUSE,2017Q1,SALARIES  OFFICERS & EMPLOYEES,PERSONNEL COMPENSATION,   ,   ,   ,BENN PHILLIP F.,1/1/2017,3/31/2017,ELECTRONICS TECHNICIAN (A),24488.76,2017,BENN PHILLIP F.
,CHIEF ADMIN OFCR OF THE HOUSE,2017Q1,SALARIES  OFFICERS & EMPLOYEES,PERSONNEL COMPENSATION,   ,   ,   ,BENT BENETO,1/1/2017,3/31/2017,JOURNEYMAN TEXTILE SPEC,13260.24,2017,BENT BENETO
,CHIEF ADMIN OFCR OF THE HOUSE,2017Q1,SALARIES  OFFICERS & EMPLOYEES,PERSONNEL COMPENSATION,   ,   ,   ,BENT BENETO,12/1/2016,12/31/2016,JOURNEYMAN TEXTILE SPEC (OVERTIME),557.69,2016,BENT BENETO
,CHIEF ADMIN OFCR OF THE HOUSE,2017Q1,SALARIES  OFFICERS & EMPLOYEES,PERSONNEL COMPENSATION,   ,   ,   ,BERGER DONALD W.,1/1/2017,3/31/2017,TECHNICAL DIRECTOR (A),25081.33,2017,BERGER DONALD W.
,CHIEF ADMIN OFCR OF THE HOUSE,2017Q1,SALARIES  OFFICERS & EMPLOYEES,PERSONNEL COMPENSATION,   ,   ,   ,BERGER DONALD W.,12/1/2016,2/28/2017,TECHNICAL DIRECTOR (A) (OVERTIME),70.66,2017,BERGER DONALD W.
,CHIEF ADMIN OFCR OF THE HOUSE,2017Q1,SALARIES  OFFICERS & EMPLOYEES,PERSONNEL COMPENSATION,   ,   ,   ,BESSAHA NABIL,2/8/2017,3/31/2017,SR INFO SYS SEC ANALYST,15929.29,2017,BESSAHA NABIL
,CHIEF ADMIN OFCR OF THE HOUSE,2017Q1,SALARIES  OFFICERS & EMPLOYEES,PERSONNEL COMPENSATION,   ,   ,   ,BEST CHARLENE,1/1/2017,3/31/2017,MANAGER (HOUSE ASSET SERVICES),25715.76,2017,BEST CHARLENE
,CHIEF ADMIN OFCR OF THE HOUSE,2017Q1,SALARIES  OFFICERS & EMPLOYEES,PERSONNEL COMPENSATION,   ,   ,   ,BETHEA LASHON L,1/1/2017,3/31/2017,TECHNICAL TRAINER,27143.49,2017,BETHEA LASHON L
,CHIEF ADMIN OFCR OF THE HOUSE,2017Q1,SALARIES  OFFICERS & EMPLOYEES,PERSONNEL COMPENSATION,   ,   ,   ,BILLARD MICHAEL A.,1/1/2017,3/31/2017,COMMUNICATIONS SPEC,27143.49,2017,BILLARD MICHAEL A.
,CHIEF ADMIN OFCR OF THE HOUSE,2017Q1,SALARIES  OFFICERS & EMPLOYEES,PERSONNEL COMPENSATION,   ,   ,   ,BILLUPS BRIAN E.,1/1/2017,3/31/2017,NETWORK TECHNICIAN (A),21183.99,2017,BILLUPS BRIAN E.
,CHIEF ADMIN OFCR OF THE HOUSE,2017Q1,SALARIES  OFFICERS & EMPLOYEES,PERSONNEL COMPENSATION,   ,   ,   ,BINSTED ANNE M,1/1/2017,3/31/2017,CHIEF OF STAFF,42102.75,2017,BINSTED ANNE M
,CHIEF ADMIN OFCR OF THE HOUSE,2017Q1,SALARIES  OFFICERS & EMPLOYEES,PERSONNEL COMPENSATION,   ,   ,   ,BLAKLEY JEFFREY S,1/1/2017,3/31/2017,DIRECTOR PHOTOGRAPHY,27049.74,2017,BLAKLEY JEFFREY S
,CHIEF ADMIN OFCR OF THE HOUSE,2017Q1,SALARIES  OFFICERS & EMPLOYEES,PERSONNEL COMPENSATION,   ,   ,   ,BLAKNEY HAROLD,1/1/2017,3/31/2017,SENIOR SYSTEMS ENGINEER,40050.99,2017,BLAKNEY HAROLD
,CHIEF ADMIN OFCR OF THE HOUSE,2017Q1,SALARIES  OFFICERS & EMPLOYEES,PERSONNEL COMPENSATION,   ,   ,   ,BOB DARREL,1/1/2017,3/31/2017,PAYROLL & BENEFITS GENERALIST,18056.01,2017,BOB DARREL
,CHIEF ADMIN OFCR OF THE HOUSE,2017Q1,SALARIES  OFFICERS & EMPLOYEES,PERSONNEL COMPENSATION,   ,   ,   ,BOB DARREL,1/1/2017,1/31/2017,PAYROLL & BENEFITS GENERALIST (OVERTIME),3381.3,2017,BOB DARREL
,CHIEF ADMIN OFCR OF THE HOUSE,2017Q1,SALARIES  OFFICERS & EMPLOYEES,PERSONNEL COMPENSATION,   ,   ,   ,BOGAN DAVID S.,1/1/2017,3/31/2017,SUPERVISOR  RETAIL INVENTORY,21183.99,2017,BOGAN DAVID S.
,CHIEF ADMIN OFCR OF THE HOUSE,2017Q1,SALARIES  OFFICERS & EMPLOYEES,PERSONNEL COMPENSATION,   ,   ,   ,BOGER KELLY M.,1/1/2017,3/31/2017,SUPERVISOR  ASSET/INVENTORY,23539.5,2017,BOGER KELLY M.
,CHIEF ADMIN OFCR OF THE HOUSE,2017Q1,SALARIES  OFFICERS & EMPLOYEES,PERSONNEL COMPENSATION,   ,   ,   ,BOLDIG CHRISTOPHER R.,1/1/2017,3/31/2017,ASSOCIATE ADMIN. COUNSEL,32375.25,2017,BOLDIG CHRISTOPHER R.
